Transaction Date,Local Authority Department,BENEFICIARY,Purpose,Amount,Non Recoverable,Merchant Category
01-08-2022,Resources,Onsar Ltd,Events,1915.5,0,COMMERCIAL SUPPLIER
01-08-2022,Marketing,Rights & Equalities In Newham (Rein),Private Contractors Payment - Other,1125,0,VENDOR
01-08-2022,Children and Young People,The Kennedy and Elliott Partnership LLP,Residential Placements - Private Contractors Payment,4000,0,
01-08-2022,Children and Young People,The Kennedy and Elliott Partnership LLP,Residential Placements - Private Contractors Payment,1600,0,
01-08-2022,Children and Young People,The Kennedy and Elliott Partnership LLP,Residential Placements - Private Contractors Payment,1600,0,
01-08-2022,Children and Young People,The Kennedy and Elliott Partnership LLP,Residential Placements - Private Contractors Payment,6400,0,
01-08-2022,Children and Young People,The Kennedy and Elliott Partnership LLP,Residential Placements - Private Contractors Payment,1600,0,
01-08-2022,Children and Young People,The Kennedy and Elliott Partnership LLP,Residential Placements - Private Contractors Payment,1600,0,
01-08-2022,Children and Young People,The Kennedy and Elliott Partnership LLP,Residential Placements - Private Contractors Payment,4000,0,
01-08-2022,Children and Young People,The Kennedy and Elliott Partnership LLP,Residential Placements - Private Contractors Payment,4000,0,
01-08-2022,Marketing,Mountain Events and Maintenance Ltd,Events,1430,0,NON COMMERCIAL SUPPLIER
01-08-2022,Environment and Sustainable Transport,Mountain Events and Maintenance Ltd,Events,855.5,0,NON COMMERCIAL SUPPLIER
01-08-2022,Adults & Health,Mountain Events and Maintenance Ltd,Events,295,0,NON COMMERCIAL SUPPLIER
01-08-2022,Environment and Sustainable Transport,R.A.M Fleet Solutions Ltd,"Purchase - Equipment, Furniture And Materials",3762,0,COMMERCIAL SUPPLIER
01-08-2022,Inclusive Economy & Housing,Pollard Thomas & Edward Ltd,Consultancy Fees,400,0,NON COMMERCIAL SUPPLIER
01-08-2022,Inclusive Economy & Housing,Adam Khan Architects,"Maintenance - Equipment, Furniture And Materials",42276.28,0,COMMERCIAL SUPPLIER
01-08-2022,RMS,Window Widgets LLP,Building Alterations And Materials,1901.19,0,COMMERCIAL SUPPLIER
01-08-2022,RMS,Window Widgets LLP,Building Alterations And Materials,286.56,0,COMMERCIAL SUPPLIER
01-08-2022,Marketing,Askews and Holts Library Services Ltd,"Books, Publications And Resources",727.94,0,COMMERCIAL SUPPLIER
01-08-2022,Marketing,Askews and Holts Library Services Ltd,"Books, Publications And Resources",2114.35,0,COMMERCIAL SUPPLIER
01-08-2022,Marketing,Askews and Holts Library Services Ltd,"Books, Publications And Resources",1526.5,0,COMMERCIAL SUPPLIER
01-08-2022,Marketing,Askews and Holts Library Services Ltd,"Books, Publications And Resources",345.62,0,COMMERCIAL SUPPLIER
01-08-2022,Marketing,Askews and Holts Library Services Ltd,"Books, Publications And Resources",91.48,0,COMMERCIAL SUPPLIER
01-08-2022,RMS,Winkhaus Ltd,Building Alterations And Materials,230.73,0,COMMERCIAL SUPPLIER
01-08-2022,Environment and Sustainable Transport,Mjm Supplies Ltd,Highway Services,230.4,0,VENDOR
01-08-2022,Housing Revenue Account,Barnes & Partners Solicitors,Legal Fees,4311.52,0,LEGAL SERVICES
01-08-2022,Adults & Health,Stannah Lift Services Ltd,Private Contractors Payment - Other,3867,0,CIS
01-08-2022,Housing Revenue Account,Driscoll Kingston Solicitors,Legal Fees,3016.74,0,NON COMMERCIAL SUPPLIER
01-08-2022,Adults & Health,Greatbatch Ltd t/a Letterbox Distribution,"Advertising, Publicity And Marketing",5114.25,0,COMMERCIAL SUPPLIER
01-08-2022,Adults & Health,Valuing  Care Limited,Consultancy Fees,14998,0,COMMERCIAL SUPPLIER
01-08-2022,oneSource,Daisy Corporate Services Trading Ltd,Land Line Telephone Costs,4722.62,0,COMMERCIAL SUPPLIER
01-08-2022,oneSource,Daisy Corporate Services Trading Ltd,Land Line Telephone Costs,2355.04,0,COMMERCIAL SUPPLIER
01-08-2022,Housing Revenue Account,Daisy Corporate Services Trading Ltd,Cyclical/Planned Maintenance - Mechanical And Electrical,321.77,0,COMMERCIAL SUPPLIER
01-08-2022,oneSource,Daisy Corporate Services Trading Ltd,Land Line Telephone Costs,14309.57,0,COMMERCIAL SUPPLIER
01-08-2022,Housing Revenue Account,Daisy Corporate Services Trading Ltd,Land Line Telephone Costs,309.58,0,COMMERCIAL SUPPLIER
01-08-2022,Housing Revenue Account,Daisy Corporate Services Trading Ltd,Land Line Telephone Costs,3156.99,0,COMMERCIAL SUPPLIER
01-08-2022,Dedicated Schools Budget,Personal Information - Redacted,Occupational Health,1524,0,COMMERCIAL SUPPLIER
01-08-2022,Dedicated Schools Budget,Personal Information - Redacted,Private Contractors Payment - Other,1524,0,COMMERCIAL SUPPLIER
01-08-2022,Children and Young People,Goldline Cars Ltd,Client Transport,880,0,COMMERCIAL SUPPLIER
01-08-2022,Children and Young People,Goldline Cars Ltd,Client Transport,613.2,0,COMMERCIAL SUPPLIER
01-08-2022,Children and Young People,Goldline Cars Ltd,Client Transport,415,0,COMMERCIAL SUPPLIER
01-08-2022,Children and Young People,Goldline Cars Ltd,Client Transport,220,0,COMMERCIAL SUPPLIER
01-08-2022,Children and Young People,Goldline Cars Ltd,Client Transport,910,0,COMMERCIAL SUPPLIER
01-08-2022,Children and Young People,Goldline Cars Ltd,Client Transport,276.4,0,COMMERCIAL SUPPLIER
01-08-2022,Children and Young People,Goldline Cars Ltd,Client Transport,210,0,COMMERCIAL SUPPLIER
01-08-2022,Inclusive Economy & Housing,L M Installations Ltd,"Maintenance - Equipment, Furniture And Materials",1608.95,0,CIS
01-08-2022,Adults & Health,Futures for Shared Lives Ltd,Adult Placement Scheme - Private Contractors Payment,536.27,0,NON COMMERCIAL SUPPLIER
01-08-2022,Adults & Health,Futures for Shared Lives Ltd,Adult Placement Scheme - Private Contractors Payment,536.27,0,NON COMMERCIAL SUPPLIER
01-08-2022,Adults & Health,Futures for Shared Lives Ltd,Adult Placement Scheme - Private Contractors Payment,766.1,0,NON COMMERCIAL SUPPLIER
01-08-2022,Adults & Health,Futures for Shared Lives Ltd,Adult Placement Scheme - Private Contractors Payment,536.27,0,NON COMMERCIAL SUPPLIER
01-08-2022,Marketing,Caramel Rock,Events,900,0,COMMERCIAL SUPPLIER
01-08-2022,Children and Young People,"PSI(UK)Ltd,",Consultancy Fees,3025,0,LOCAL AUTHORITY SERVICES
01-08-2022,Inclusive Economy & Housing,Personal Information - Redacted,Building Regulations Income,13200,0,
01-08-2022,oneSource,Bdi Securities,Security Services (Excluding Premises),1346.13,0,COMMERCIAL SUPPLIER
01-08-2022,oneSource,Bdi Securities,Security Services (Excluding Premises),404.54,0,COMMERCIAL SUPPLIER
01-08-2022,Adults & Health,Saadia Ltd t/a 24-7 Healthcare,Facilities Management,4828.9,0,COMMERCIAL SUPPLIER
01-08-2022,Adults & Health,Saadia Ltd t/a 24-7 Healthcare,Facilities Management,5514.9,0,COMMERCIAL SUPPLIER
01-08-2022,Adults & Health,Saadia Ltd t/a 24-7 Healthcare,Facilities Management,649.73,0,COMMERCIAL SUPPLIER
01-08-2022,Housing Revenue Account,Gough & Co Solicitors Ltd,Legal Fees,5450,0,INDIVIDUALS
01-08-2022,Inclusive Economy & Housing,Action Shutters Ltd,Building Alterations And Materials,625,0,NON COMMERCIAL SUPPLIER
01-08-2022,Inclusive Economy & Housing,Action Shutters Ltd,Building Alterations And Materials,625,0,NON COMMERCIAL SUPPLIER
01-08-2022,Children and Young People,Expert In Mind,Legal Fees,1540.8,0,COMMERCIAL SUPPLIER
01-08-2022,Housing Revenue Account,John Rowan & Partners,Facilities Management,6162.65,0,NON COMMERCIAL SUPPLIER
01-08-2022,Housing Revenue Account,John Rowan & Partners,Facilities Management,1436,0,NON COMMERCIAL SUPPLIER
01-08-2022,Housing Revenue Account,John Rowan & Partners,Facilities Management,2500,0,NON COMMERCIAL SUPPLIER
01-08-2022,Environment and Sustainable Transport,Autolocks Kent Ltd,"Purchase - Equipment, Furniture And Materials",340,0,COMMERCIAL SUPPLIER
01-08-2022,Adults & Health,Dolphin Mobility Ltd,Private Contractors Payment - Other,5497,0,COMMERCIAL SUPPLIER
01-08-2022,Adults & Health,Dolphin Mobility Ltd,Private Contractors Payment - Other,7454,0,COMMERCIAL SUPPLIER
01-08-2022,Environment and Sustainable Transport,Rushton Workwear Ltd,Highway Services,51.5,0,COMMERCIAL SUPPLIER
01-08-2022,Environment and Sustainable Transport,Rushton Workwear Ltd,Highway Services,128.75,0,COMMERCIAL SUPPLIER
01-08-2022,Environment and Sustainable Transport,Rushton Workwear Ltd,Highway Services,257.5,0,COMMERCIAL SUPPLIER
01-08-2022,Environment and Sustainable Transport,Rushton Workwear Ltd,Highway Services,128.75,0,COMMERCIAL SUPPLIER
01-08-2022,Adults & Health,Hope Superjobs Ltd,Home Care - Private Contractors Payment,1023.14,0,COMMERCIAL SUPPLIER
01-08-2022,Adults & Health,Hope Superjobs Ltd,Home Care - Private Contractors Payment,1023.14,0,COMMERCIAL SUPPLIER
01-08-2022,Adults & Health,Hope Superjobs Ltd,Home Care - Private Contractors Payment,357.8,0,COMMERCIAL SUPPLIER
01-08-2022,Adults & Health,Caritas Anchor House,Private Contractors Payment - Other,77750,0,VENDOR
01-08-2022,Environment and Sustainable Transport,Sparshatt Truck & Van Ltd,Highway Services,175.52,0,COMMERCIAL SUPPLIER
01-08-2022,Environment and Sustainable Transport,Sparshatt Truck & Van Ltd,Highway Services,148.8,0,COMMERCIAL SUPPLIER
01-08-2022,Environment and Sustainable Transport,Sparshatt Truck & Van Ltd,Highway Services,42,0,COMMERCIAL SUPPLIER
01-08-2022,Environment and Sustainable Transport,Sparshatt Truck & Van Ltd,Highway Services,133.87,0,COMMERCIAL SUPPLIER
01-08-2022,Environment and Sustainable Transport,Sparshatt Truck & Van Ltd,Highway Services,8.96,0,COMMERCIAL SUPPLIER
01-08-2022,Environment and Sustainable Transport,Sparshatt Truck & Van Ltd,Highway Services,12.39,0,COMMERCIAL SUPPLIER
01-08-2022,Environment and Sustainable Transport,Sparshatt Truck & Van Ltd,Highway Services,27.06,0,COMMERCIAL SUPPLIER
01-08-2022,Environment and Sustainable Transport,Sparshatt Truck & Van Ltd,Highway Services,23.4,0,COMMERCIAL SUPPLIER
01-08-2022,RMS,Travis Perkins Trading Company Ltd,Building Alterations And Materials,771.36,0,COMMERCIAL SUPPLIER
01-08-2022,RMS,Travis Perkins Trading Company Ltd,Building Alterations And Materials,525.8,0,COMMERCIAL SUPPLIER
01-08-2022,RMS,Travis Perkins Trading Company Ltd,Building Alterations And Materials,1683,0,COMMERCIAL SUPPLIER
01-08-2022,RMS,Travis Perkins Trading Company Ltd,Building Alterations And Materials,588.6,0,COMMERCIAL SUPPLIER
01-08-2022,RMS,Travis Perkins Trading Company Ltd,Building Alterations And Materials,588.6,0,COMMERCIAL SUPPLIER
01-08-2022,RMS,Travis Perkins Trading Company Ltd,Building Alterations And Materials,7552,0,COMMERCIAL SUPPLIER
01-08-2022,RMS,Travis Perkins Trading Company Ltd,Building Alterations And Materials,381.8,0,COMMERCIAL SUPPLIER
01-08-2022,RMS,Travis Perkins Trading Company Ltd,Building Alterations And Materials,929.48,0,COMMERCIAL SUPPLIER
01-08-2022,RMS,Travis Perkins Trading Company Ltd,Building Alterations And Materials,295.2,0,COMMERCIAL SUPPLIER
01-08-2022,RMS,Travis Perkins Trading Company Ltd,Building Alterations And Materials,1565,0,COMMERCIAL SUPPLIER
01-08-2022,Adults & Health,York Hotel,Supported Other Accommodation - Private Contractors Payment,180,0,COMMERCIAL SUPPLIER
01-08-2022,Adults & Health,York Hotel,Supported Other Accommodation - Private Contractors Payment,420,0,COMMERCIAL SUPPLIER
01-08-2022,Adults & Health,York Hotel,Supported Other Accommodation - Private Contractors Payment,60,0,COMMERCIAL SUPPLIER
01-08-2022,Adults & Health,York Hotel,Supported Other Accommodation - Private Contractors Payment,420,0,COMMERCIAL SUPPLIER
01-08-2022,Adults & Health,York Hotel,Supported Other Accommodation - Private Contractors Payment,420,0,COMMERCIAL SUPPLIER
01-08-2022,Adults & Health,York Hotel,Supported Other Accommodation - Private Contractors Payment,420,0,COMMERCIAL SUPPLIER
01-08-2022,Adults & Health,York Hotel,Supported Other Accommodation - Private Contractors Payment,420,0,COMMERCIAL SUPPLIER
01-08-2022,Adults & Health,York Hotel,Supported Other Accommodation - Private Contractors Payment,420,0,COMMERCIAL SUPPLIER
01-08-2022,Adults & Health,York Hotel,Supported Other Accommodation - Private Contractors Payment,420,0,COMMERCIAL SUPPLIER
01-08-2022,Adults & Health,York Hotel,Supported Other Accommodation - Private Contractors Payment,420,0,COMMERCIAL SUPPLIER
01-08-2022,Adults & Health,York Hotel,Supported Other Accommodation - Private Contractors Payment,420,0,COMMERCIAL SUPPLIER
01-08-2022,Adults & Health,York Hotel,Supported Other Accommodation - Private Contractors Payment,420,0,COMMERCIAL SUPPLIER
01-08-2022,Adults & Health,Cornerstone Care Services,Daycare - Private Contractors Payment,55.2,0,COMMERCIAL SUPPLIER
01-08-2022,Adults & Health,Cornerstone Care Services,Daycare - Private Contractors Payment,55.2,0,COMMERCIAL SUPPLIER
01-08-2022,Adults & Health,Cornerstone Care Services,Home Care - Private Contractors Payment,410.55,0,COMMERCIAL SUPPLIER
01-08-2022,Adults & Health,Cornerstone Care Services,Daycare - Private Contractors Payment,55.2,0,COMMERCIAL SUPPLIER
01-08-2022,Adults & Health,Cornerstone Care Services,Home Care - Private Contractors Payment,410.55,0,COMMERCIAL SUPPLIER
01-08-2022,Adults & Health,Cornerstone Care Services,Daycare - Private Contractors Payment,55.2,0,COMMERCIAL SUPPLIER
01-08-2022,Adults & Health,Cornerstone Care Services,Home Care - Private Contractors Payment,410.55,0,COMMERCIAL SUPPLIER
01-08-2022,Adults & Health,Cornerstone Care Services,Home Care - Private Contractors Payment,410.55,0,COMMERCIAL SUPPLIER
01-08-2022,Adults & Health,DACS Care & Repair,Private Contractors Payment - Other,4573.8,0,COMMERCIAL SUPPLIER
01-08-2022,Resources,Greenham Trading Ltd,Cleaning Materials,80.17,0,COMMERCIAL SUPPLIER
01-08-2022,Resources,Greenham Trading Ltd,Cleaning Materials,127.38,0,COMMERCIAL SUPPLIER
01-08-2022,Resources,Greenham Trading Ltd,Cleaning Materials,58.49,0,COMMERCIAL SUPPLIER
01-08-2022,Resources,Greenham Trading Ltd,Cleaning Materials,49.77,0,COMMERCIAL SUPPLIER
01-08-2022,Resources,Greenham Trading Ltd,Cleaning Materials,13.17,0,COMMERCIAL SUPPLIER
01-08-2022,Resources,Greenham Trading Ltd,Cleaning Materials,165.72,0,COMMERCIAL SUPPLIER
01-08-2022,Resources,Greenham Trading Ltd,Cleaning Materials,126.81,0,COMMERCIAL SUPPLIER
01-08-2022,Resources,Greenham Trading Ltd,Cleaning Materials,1.58,0,COMMERCIAL SUPPLIER
01-08-2022,Resources,Greenham Trading Ltd,Cleaning Materials,44.46,0,COMMERCIAL SUPPLIER
01-08-2022,Adults & Health,Greenham Trading Ltd,Cleaning Materials,225.42,0,COMMERCIAL SUPPLIER
01-08-2022,Adults & Health,Greenham Trading Ltd,Cleaning Materials,61.8,0,COMMERCIAL SUPPLIER
01-08-2022,oneSource - Non Shared,Greenham Trading Ltd,Cleaning Materials,309.22,0,COMMERCIAL SUPPLIER
01-08-2022,Adults & Health,Greenham Trading Ltd,Cleaning Materials,75.14,0,COMMERCIAL SUPPLIER
01-08-2022,Adults & Health,Greenham Trading Ltd,Cleaning Materials,19.88,0,COMMERCIAL SUPPLIER
01-08-2022,Adults & Health,Greenham Trading Ltd,Cleaning Materials,127.44,0,COMMERCIAL SUPPLIER
01-08-2022,Children and Young People,Safeclimb Ltd,"Purchase - Equipment, Furniture And Materials",343.49,0,VENDOR
01-08-2022,Environment and Sustainable Transport,Worldline IT Services UK Ltd Re Fuel Genie,Transport Fuel,327.41,0,COMMERCIAL SUPPLIER
01-08-2022,Environment and Sustainable Transport,Worldline IT Services UK Ltd Re Fuel Genie,Transport Fuel,230.74,0,COMMERCIAL SUPPLIER
01-08-2022,Environment and Sustainable Transport,Worldline IT Services UK Ltd Re Fuel Genie,Transport Fuel,1029.6,0,COMMERCIAL SUPPLIER
01-08-2022,Children and Young People,Britannia K9 Security Ltd,Security Of Premises,6150,0,COMMERCIAL SUPPLIER
01-08-2022,Environment and Sustainable Transport,Portakabin Ltd,Premises Hire - Facilities,2373.33,0,COMMERCIAL SUPPLIER
01-08-2022,oneSource - Non Shared,Building A Future (Newham Schools) Limited,"Maintenance - Equipment, Furniture And Materials",276481.1,0,VENDOR
01-08-2022,oneSource - Non Shared,Building A Future (Newham Schools) Limited,"Maintenance - Equipment, Furniture And Materials",72819.36,0,VENDOR
01-08-2022,oneSource - Non Shared,Building A Future (Newham Schools) Limited,"Maintenance - Equipment, Furniture And Materials",72313.93,0,VENDOR
01-08-2022,oneSource - Non Shared,Newham Learning Partnership (Project Co) Limited,"Maintenance - Equipment, Furniture And Materials",318521.23,0,VENDOR
01-08-2022,oneSource - Non Shared,Newham Learning Partnership (Project Co) Limited,"Maintenance - Equipment, Furniture And Materials",393678.07,0,VENDOR
01-08-2022,oneSource,Royal Mail Group Plc,Postage And Courier Services,26302.35,0,COMMERCIAL SUPPLIER
01-08-2022,oneSource,Royal Mail Group Plc,Postage And Courier Services,348.48,0,COMMERCIAL SUPPLIER
01-08-2022,Housing Revenue Account,Community Equipment Services-London Borough Of Croydon,Salaries,8174.34,0,COMMERCIAL SUPPLIER
01-08-2022,Digital,NEC Software Solutions UK Ltd,Ict Licences,16666.68,0,COMMERCIAL SUPPLIER
01-08-2022,RMS,Benchmarx Kitchens and Joinery,Building Alterations And Materials,861.61,0,COMMERCIAL SUPPLIER
01-08-2022,Environment and Sustainable Transport,Mopc,Private Contractors Payment - Other,155589.42,0,VENDOR
01-08-2022,Environment and Sustainable Transport,Terberg Matec Uk Ltd,Highway Services,1.41,0,COMMERCIAL SUPPLIER
01-08-2022,Environment and Sustainable Transport,Terberg Matec Uk Ltd,Highway Services,1.58,0,COMMERCIAL SUPPLIER
01-08-2022,Environment and Sustainable Transport,Terberg Matec Uk Ltd,Highway Services,1437.17,0,COMMERCIAL SUPPLIER
01-08-2022,Environment and Sustainable Transport,Terberg Matec Uk Ltd,Highway Services,96.51,0,COMMERCIAL SUPPLIER
01-08-2022,Environment and Sustainable Transport,Terberg Matec Uk Ltd,Highway Services,79.39,0,COMMERCIAL SUPPLIER
01-08-2022,Environment and Sustainable Transport,Terberg Matec Uk Ltd,Highway Services,136.77,0,COMMERCIAL SUPPLIER
01-08-2022,Environment and Sustainable Transport,Terberg Matec Uk Ltd,Highway Services,225.58,0,COMMERCIAL SUPPLIER
01-08-2022,Environment and Sustainable Transport,Terberg Matec Uk Ltd,Highway Services,33.82,0,COMMERCIAL SUPPLIER
01-08-2022,Environment and Sustainable Transport,Terberg Matec Uk Ltd,Highway Services,47.43,0,COMMERCIAL SUPPLIER
01-08-2022,Children and Young People,G-MAP Services,Private Contractors Payment - Other,605,0,COMMERCIAL SUPPLIER
01-08-2022,Children and Young People,G-MAP Services,Private Contractors Payment - Other,605,0,COMMERCIAL SUPPLIER
01-08-2022,Children and Young People,G-MAP Services,Private Contractors Payment - Other,605,0,COMMERCIAL SUPPLIER
01-08-2022,Children and Young People,G-MAP Services,Private Contractors Payment - Other,605,0,COMMERCIAL SUPPLIER
01-08-2022,Children and Young People,G-MAP Services,Private Contractors Payment - Other,605,0,COMMERCIAL SUPPLIER
01-08-2022,Children and Young People,Knowledge Train Limited,Ict Licences,1799,0,COMMERCIAL SUPPLIER
01-08-2022,Children and Young People,Bramley Care Ltd t/a Apple Orchard,Residential Placements - Private Contractors Payment,552.32,0,NON COMMERCIAL SUPPLIER
01-08-2022,Children and Young People,Bramley Care Ltd t/a Apple Orchard,Residential Placements - Private Contractors Payment,3866.24,0,NON COMMERCIAL SUPPLIER
01-08-2022,Children and Young People,Bramley Care Ltd t/a Apple Orchard,Residential Placements - Private Contractors Payment,3866.24,0,NON COMMERCIAL SUPPLIER
01-08-2022,Children and Young People,Bramley Care Ltd t/a Apple Orchard,Residential Placements - Private Contractors Payment,3866.24,0,NON COMMERCIAL SUPPLIER
01-08-2022,Children and Young People,Bramley Care Ltd t/a Apple Orchard,Residential Placements - Private Contractors Payment,3866.24,0,NON COMMERCIAL SUPPLIER
01-08-2022,Children and Young People,Bramley Care Ltd t/a Apple Orchard,Residential Placements - Private Contractors Payment,3866.24,0,NON COMMERCIAL SUPPLIER
01-08-2022,Children and Young People,Bramley Care Ltd t/a Apple Orchard,Residential Placements - Private Contractors Payment,3866.24,0,NON COMMERCIAL SUPPLIER
01-08-2022,Children and Young People,Bramley Care Ltd t/a Apple Orchard,Residential Placements - Private Contractors Payment,3866.24,0,NON COMMERCIAL SUPPLIER
01-08-2022,Children and Young People,Bramley Care Ltd t/a Apple Orchard,Residential Placements - Private Contractors Payment,3866.24,0,NON COMMERCIAL SUPPLIER
01-08-2022,Children and Young People,Bramley Care Ltd t/a Apple Orchard,Residential Placements - Private Contractors Payment,3866.24,0,NON COMMERCIAL SUPPLIER
01-08-2022,Children and Young People,Bramley Care Ltd t/a Apple Orchard,Residential Placements - Private Contractors Payment,3866.24,0,NON COMMERCIAL SUPPLIER
01-08-2022,Children and Young People,Bramley Care Ltd t/a Apple Orchard,Residential Placements - Private Contractors Payment,3866.24,0,NON COMMERCIAL SUPPLIER
01-08-2022,Children and Young People,Bramley Care Ltd t/a Apple Orchard,Residential Placements - Private Contractors Payment,3866.24,0,NON COMMERCIAL SUPPLIER
01-08-2022,Children and Young People,Bramley Care Ltd t/a Apple Orchard,Residential Placements - Private Contractors Payment,3866.24,0,NON COMMERCIAL SUPPLIER
01-08-2022,Inclusive Economy & Housing,A DAKRI AND CO LTD T/A GREENLEAF HOTEL,Rents Payable,2855,0,CARERS
01-08-2022,Housing Revenue Account,Bond Turner,Legal Fees,6000,0,INDIVIDUALS
01-08-2022,Housing Revenue Account,SBW Law,Legal Fees,1467.31,0,NON COMMERCIAL SUPPLIER
01-08-2022,Housing Revenue Account,SBW Law,Legal Fees,2193.09,0,NON COMMERCIAL SUPPLIER
01-08-2022,RMS,Duffells,Building Alterations And Materials,315.7,0,VENDOR
01-08-2022,Children and Young People,Get real youth services,Private Contractors Payment - Other,9680,0,INDIVIDUALS
01-08-2022,Children and Young People,Early Start Group Ltd,Private Contractors Payment - Other,53919,0,COMMERCIAL SUPPLIER
01-08-2022,Children and Young People,Transcription City Ltd,Legal Fees,285,0,COMMERCIAL SUPPLIER
01-08-2022,RMS,Beacon Scaffolding Ltd,Private Contractors Payment - Other,619.2,0,CIS
01-08-2022,RMS,Beacon Scaffolding Ltd,Private Contractors Payment - Other,619.2,0,CIS
01-08-2022,RMS,Beacon Scaffolding Ltd,Private Contractors Payment - Other,1114.56,0,CIS
01-08-2022,Inclusive Economy & Housing,Association of Adult Education and Training Organisations- AAETO (Holex),Staff Development And Training,990,0,NON COMMERCIAL SUPPLIER
01-08-2022,RMS,Beacon Scaffolding Ltd,Private Contractors Payment - Other,357.6,0,CIS
01-08-2022,RMS,Beacon Scaffolding Ltd,Private Contractors Payment - Other,1500,0,CIS
01-08-2022,Environment and Sustainable Transport,Integrated Skills Ltd,Ict Software,8100,0,COMMERCIAL SUPPLIER
01-08-2022,oneSource - Non Shared,London Network for Pest Solutions Ltd,Salaries,4886.33,0,COMMERCIAL SUPPLIER
01-08-2022,Resources,Urban Change Group Ltd,Consultancy Fees,7500,0,COMMERCIAL SUPPLIER
01-08-2022,RMS,Door-Stop International Ltd,Private Contractors Payment - Other,1128.61,0,VENDOR
01-08-2022,RMS,Door-Stop International Ltd,Private Contractors Payment - Other,0,0,VENDOR
01-08-2022,RMS,Door-Stop International Ltd,Private Contractors Payment - Other,1077.87,0,VENDOR
01-08-2022,RMS,Door-Stop International Ltd,Private Contractors Payment - Other,0,0,VENDOR
01-08-2022,RMS,Door-Stop International Ltd,Private Contractors Payment - Other,1143.66,0,VENDOR
01-08-2022,RMS,Door-Stop International Ltd,Private Contractors Payment - Other,0,0,VENDOR
01-08-2022,Children and Young People,Personal Information - Redacted,Legal Fees,10900,0,VENDOR
01-08-2022,Children and Young People,Personal Information - Redacted,Legal Fees,1200,0,INDIVIDUALS
01-08-2022,Children and Young People,Personal Information - Redacted,Legal Fees,600,0,LEGAL SERVICES
01-08-2022,Children and Young People,Personal Information - Redacted,Legal Fees,240,0,COMMERCIAL SUPPLIER
01-08-2022,Children and Young People,Personal Information - Redacted,Legal Fees,3695,0,LEGAL SERVICES
01-08-2022,Children and Young People,Personal Information - Redacted,Legal Fees,667.5,0,COMMERCIAL SUPPLIER
01-08-2022,Adults & Health,Personal Information - Redacted,"Purchase - Equipment, Furniture And Materials",86.25,0,Employee
01-08-2022,Adults & Health,Supporting Care,Home Care - Private Contractors Payment,168.48,0,VENDOR
01-08-2022,Adults & Health,Supporting Care,Home Care - Private Contractors Payment,74.88,0,VENDOR
01-08-2022,Adults & Health,Supporting Care,Home Care - Private Contractors Payment,168.48,0,VENDOR
01-08-2022,Adults & Health,Supporting Care,Home Care - Private Contractors Payment,168.48,0,VENDOR
01-08-2022,Adults & Health,Supporting Care,Home Care - Private Contractors Payment,168.48,0,VENDOR
01-08-2022,Adults & Health,Supporting Care,Home Care - Private Contractors Payment,37.44,0,VENDOR
01-08-2022,Adults & Health,Supporting Care,Home Care - Private Contractors Payment,37.44,0,VENDOR
01-08-2022,Adults & Health,Supporting Care,Home Care - Private Contractors Payment,168.48,0,VENDOR
01-08-2022,Adults & Health,Supporting Care,Home Care - Private Contractors Payment,37.44,0,VENDOR
01-08-2022,Adults & Health,Supporting Care,Home Care - Private Contractors Payment,37.44,0,VENDOR
01-08-2022,Adults & Health,Supporting Care,Home Care - Private Contractors Payment,163.64,0,VENDOR
01-08-2022,Adults & Health,Supporting Care,Home Care - Private Contractors Payment,37.44,0,VENDOR
01-08-2022,Adults & Health,Supporting Care,Home Care - Private Contractors Payment,168.48,0,VENDOR
01-08-2022,Adults & Health,Supporting Care,Home Care - Private Contractors Payment,172.44,0,VENDOR
01-08-2022,Adults & Health,Supporting Care,Home Care - Private Contractors Payment,38.32,0,VENDOR
01-08-2022,Adults & Health,Supporting Care,Home Care - Private Contractors Payment,38.32,0,VENDOR
01-08-2022,Adults & Health,Supporting Care,Home Care - Private Contractors Payment,172.44,0,VENDOR
01-08-2022,Adults & Health,Supporting Care,Home Care - Private Contractors Payment,38.32,0,VENDOR
01-08-2022,Adults & Health,Supporting Care,Home Care - Private Contractors Payment,172.44,0,VENDOR
01-08-2022,Adults & Health,Supporting Care,Home Care - Private Contractors Payment,18.96,0,VENDOR
01-08-2022,Adults & Health,Supporting Care,Home Care - Private Contractors Payment,38.32,0,VENDOR
01-08-2022,Adults & Health,Supporting Care,Home Care - Private Contractors Payment,172.44,0,VENDOR
01-08-2022,Adults & Health,Supporting Care,Home Care - Private Contractors Payment,172.44,0,VENDOR
01-08-2022,Adults & Health,Hungerburger Ltd T/a Barking Hotel,Supported Other Accommodation - Private Contractors Payment,49,0,COMMERCIAL SUPPLIER
01-08-2022,Adults & Health,Hungerburger Ltd T/a Barking Hotel,Supported Other Accommodation - Private Contractors Payment,245,0,COMMERCIAL SUPPLIER
01-08-2022,Children and Young People,Majestic Family Services Limited,Legal Fees,21482.85,0,NON COMMERCIAL SUPPLIER
01-08-2022,Housing Revenue Account,Gough & Co Solicitors Ltd,Legal Fees,7825,0,INDIVIDUALS
01-08-2022,Children and Young People,First Care Lodge Ltd,Supported Other Accommodation - Private Contractors Payment,5223,0,COMMERCIAL SUPPLIER
01-08-2022,Children and Young People,First Care Lodge Ltd,Supported Other Accommodation - Private Contractors Payment,5223,0,COMMERCIAL SUPPLIER
01-08-2022,Children and Young People,First Care Lodge Ltd,Supported Other Accommodation - Private Contractors Payment,5223,0,COMMERCIAL SUPPLIER
01-08-2022,Children and Young People,First Care Lodge Ltd,Supported Other Accommodation - Private Contractors Payment,5223,0,COMMERCIAL SUPPLIER
01-08-2022,oneSource - Non Shared,Education Support (Newham) Ltd,"Maintenance - Equipment, Furniture And Materials",327576.58,0,VENDOR
01-08-2022,Adults & Health,Subco Trust,Daycare - Private Contractors Payment,65,0,VENDOR
01-08-2022,Adults & Health,Subco Trust,Daycare - Private Contractors Payment,65,0,VENDOR
01-08-2022,Adults & Health,Subco Trust,Daycare - Private Contractors Payment,65,0,VENDOR
01-08-2022,Adults & Health,Subco Trust,Daycare - Private Contractors Payment,65,0,VENDOR
01-08-2022,Children and Young People,DMR Services Ltd,Residential Placements - Private Contractors Payment,3285.71,0,COMMERCIAL SUPPLIER
01-08-2022,Children and Young People,DMR Services Ltd,Residential Placements - Private Contractors Payment,3500,0,COMMERCIAL SUPPLIER
01-08-2022,Children and Young People,Nubah Social Care Ltd,Client Transport,588,0,COMMERCIAL SUPPLIER
01-08-2022,Children and Young People,SUMEET'S STEP2STEP ENTERTAINMENTS LTD,Arts And Leisure Costs,275,0,VENDOR
01-08-2022,Adults & Health,Supreme Home Care Agency,Daycare - Private Contractors Payment,153.28,0,VENDOR
01-08-2022,Adults & Health,Supreme Home Care Agency,Daycare - Private Contractors Payment,153.28,0,VENDOR
01-08-2022,Adults & Health,Supreme Home Care Agency,Daycare - Private Contractors Payment,153.28,0,VENDOR
01-08-2022,Adults & Health,Supreme Home Care Agency,Daycare - Private Contractors Payment,153.28,0,VENDOR
01-08-2022,Adults & Health,Supreme Home Care Agency,Reablement,191.6,0,VENDOR
01-08-2022,Adults & Health,Supreme Home Care Agency,Reablement,191.6,0,VENDOR
01-08-2022,Adults & Health,Supreme Home Care Agency,Reablement,28.74,0,VENDOR
01-08-2022,Adults & Health,Supreme Home Care Agency,Home Care - Private Contractors Payment,43.11,0,VENDOR
01-08-2022,Adults & Health,Supreme Home Care Agency,Daycare - Private Contractors Payment,38.32,0,VENDOR
01-08-2022,Adults & Health,Supreme Home Care Agency,Daycare - Private Contractors Payment,38.32,0,VENDOR
01-08-2022,Adults & Health,Supreme Home Care Agency,Home Care - Private Contractors Payment,43.11,0,VENDOR
01-08-2022,Adults & Health,Supreme Home Care Agency,Daycare - Private Contractors Payment,38.32,0,VENDOR
01-08-2022,Adults & Health,Supreme Home Care Agency,Home Care - Private Contractors Payment,43.11,0,VENDOR
01-08-2022,Adults & Health,Supreme Home Care Agency,Home Care - Private Contractors Payment,43.11,0,VENDOR
01-08-2022,Adults & Health,Supreme Home Care Agency,Daycare - Private Contractors Payment,38.32,0,VENDOR
01-08-2022,Adults & Health,Supreme Home Care Agency,Reablement,311.35,0,VENDOR
01-08-2022,Adults & Health,Supreme Home Care Agency,Reablement,167.65,0,VENDOR
01-08-2022,Adults & Health,Supreme Home Care Agency,Home Care - Private Contractors Payment,201.18,0,VENDOR
01-08-2022,Adults & Health,Supreme Home Care Agency,Home Care - Private Contractors Payment,167.65,0,VENDOR
01-08-2022,Adults & Health,Supreme Home Care Agency,Home Care - Private Contractors Payment,167.65,0,VENDOR
01-08-2022,Adults & Health,Supreme Home Care Agency,Home Care - Private Contractors Payment,167.65,0,VENDOR
01-08-2022,Adults & Health,Supreme Home Care Agency,Home Care - Private Contractors Payment,23.95,0,VENDOR
01-08-2022,Adults & Health,Supreme Home Care Agency,Home Care - Private Contractors Payment,167.65,0,VENDOR
01-08-2022,Adults & Health,Supreme Home Care Agency,Home Care - Private Contractors Payment,167.65,0,VENDOR
01-08-2022,Adults & Health,Supreme Home Care Agency,Home Care - Private Contractors Payment,167.65,0,VENDOR
01-08-2022,Adults & Health,Supreme Home Care Agency,Home Care - Private Contractors Payment,167.65,0,VENDOR
01-08-2022,Children and Young People,Personal Information - Redacted,"Purchase - Equipment, Furniture And Materials",500,0,FOSTER CARERS
01-08-2022,Housing Revenue Account,Swan Housing Group,Professional Services - General,900788.6,0,VENDOR
01-08-2022,Environment and Sustainable Transport,Flowbird Smart City UK Ltd,"Purchase - Equipment, Furniture And Materials",2074.3,0,COMMERCIAL SUPPLIER
01-08-2022,RMS,Beacon Scaffolding Ltd,Private Contractors Payment - Other,928.8,0,CIS
01-08-2022,RMS,Beacon Scaffolding Ltd,Private Contractors Payment - Other,1114.56,0,CIS
02-08-2022,oneSource,Law Morgan Ltd,Agency Staff,3288.8,0,COMMERCIAL SUPPLIER
02-08-2022,Children and Young People,Law Morgan Ltd,Agency Staff,1746.25,0,COMMERCIAL SUPPLIER
02-08-2022,Marketing,Personal Information - Redacted,Street Sweeping,242,0,INDIVIDUALS
02-08-2022,oneSource - Non Shared,Bellrock Property & Facilities Management Ltd,"Maintenance - Equipment, Furniture And Materials",23715.39,0,
02-08-2022,Adults & Health,Supply Chain Coordination Ltd (SCCL),Miscellaneous Expenses,209,0,NHS BODIES
02-08-2022,Marketing,Greatbatch Ltd t/a Letterbox Distribution,"Advertising, Publicity And Marketing",4409,0,COMMERCIAL SUPPLIER
02-08-2022,Environment and Sustainable Transport,Drain Aid Ltd,Street Sweeping,4950,0,COMMERCIAL SUPPLIER
02-08-2022,Housing Revenue Account,Grove Environmental Services UK Limited,"Maintenance - Equipment, Furniture And Materials",300,0,CIS
02-08-2022,Adults & Health,Phoenix Futures,Professional Services - General,4114.29,0,COMMERCIAL SUPPLIER
02-08-2022,Children and Young People,The Outward Bound Trust,Arts And Leisure Costs,3758.5,0,COMMERCIAL SUPPLIER
02-08-2022,Housing Revenue Account,Mindme,"Purchase - Equipment, Furniture And Materials",5122.5,0,COMMERCIAL SUPPLIER
02-08-2022,Environment and Sustainable Transport,Enterprise Flex-E-Rent,Client Transport,581.4,0,COMMERCIAL SUPPLIER
02-08-2022,Environment and Sustainable Transport,Enterprise Flex-E-Rent,Client Transport,722.07,0,COMMERCIAL SUPPLIER
02-08-2022,Environment and Sustainable Transport,Enterprise Flex-E-Rent,Client Transport,444.57,0,COMMERCIAL SUPPLIER
02-08-2022,Environment and Sustainable Transport,Enterprise Flex-E-Rent,Client Transport,444.57,0,COMMERCIAL SUPPLIER
02-08-2022,Environment and Sustainable Transport,Enterprise Flex-E-Rent,Client Transport,444.57,0,COMMERCIAL SUPPLIER
02-08-2022,Environment and Sustainable Transport,Enterprise Flex-E-Rent,Client Transport,444.57,0,COMMERCIAL SUPPLIER
02-08-2022,Housing Revenue Account,Gas Contract Services LTD,Cyclical/Planned Maintenance - Mechanical And Electrical,2515.5,0,LOCAL AUTHORITY SERVICES
02-08-2022,Children and Young People,Jamma Umoja (Residential Services) Ltd,Residential Placements - Private Contractors Payment,3800,0,COMMERCIAL SUPPLIER
02-08-2022,Children and Young People,Jamma Umoja (Residential Services) Ltd,Residential Placements - Private Contractors Payment,3465,0,COMMERCIAL SUPPLIER
02-08-2022,Inclusive Economy & Housing,Capital Letters,Private Contractors Payment - Other,5650,0,LOCAL AUTHORITY SERVICES
02-08-2022,Inclusive Economy & Housing,Capital Letters,Private Contractors Payment - Other,7193.59,0,LOCAL AUTHORITY SERVICES
02-08-2022,oneSource - Non Shared,Financial Data Management PLC,Printing,28856.42,0,COMMERCIAL SUPPLIER
02-08-2022,Children and Young People,Network Recruitment Solutions Limited,Contact Costs (Placements),465,0,NON COMMERCIAL SUPPLIER
02-08-2022,Children and Young People,Lextox,Legal Fees,294.75,0,COMMERCIAL SUPPLIER
02-08-2022,Children and Young People,National Fostering Agency,Fostering Agency Placements - Private Contractors Payment,707.14,0,COMMERCIAL SUPPLIER
02-08-2022,Children and Young People,National Fostering Agency,Fostering Agency Placements - Private Contractors Payment,767.03,0,COMMERCIAL SUPPLIER
02-08-2022,Children and Young People,National Fostering Agency,Fostering Agency Placements - Private Contractors Payment,825,0,COMMERCIAL SUPPLIER
02-08-2022,Children and Young People,National Fostering Agency,Fostering Agency Placements - Private Contractors Payment,825,0,COMMERCIAL SUPPLIER
02-08-2022,Adults & Health,Turnwright Ltd,"Purchase - Equipment, Furniture And Materials",459.94,0,COMMERCIAL SUPPLIER
02-08-2022,Adults & Health,Turnwright Ltd,"Purchase - Equipment, Furniture And Materials",293.15,0,COMMERCIAL SUPPLIER
02-08-2022,Adults & Health,Turnwright Ltd,"Purchase - Equipment, Furniture And Materials",10595.21,0,COMMERCIAL SUPPLIER
02-08-2022,RMS,Glass System Ltd,Building Alterations And Materials,527.58,0,COMMERCIAL SUPPLIER
02-08-2022,RMS,Glass System Ltd,Building Alterations And Materials,389.15,0,COMMERCIAL SUPPLIER
02-08-2022,RMS,Glass System Ltd,Building Alterations And Materials,564.89,0,COMMERCIAL SUPPLIER
02-08-2022,RMS,Glass System Ltd,Building Alterations And Materials,371.04,0,COMMERCIAL SUPPLIER
02-08-2022,RMS,Glass System Ltd,Building Alterations And Materials,441.36,0,COMMERCIAL SUPPLIER
02-08-2022,RMS,Glass System Ltd,Building Alterations And Materials,371.71,0,COMMERCIAL SUPPLIER
02-08-2022,RMS,Glass System Ltd,Building Alterations And Materials,445.41,0,COMMERCIAL SUPPLIER
02-08-2022,RMS,Glass System Ltd,Building Alterations And Materials,271.71,0,COMMERCIAL SUPPLIER
02-08-2022,RMS,Glass System Ltd,Building Alterations And Materials,818.11,0,COMMERCIAL SUPPLIER
02-08-2022,RMS,Glass System Ltd,Building Alterations And Materials,414.59,0,COMMERCIAL SUPPLIER
02-08-2022,RMS,Glass System Ltd,Building Alterations And Materials,404.54,0,COMMERCIAL SUPPLIER
02-08-2022,RMS,Glass System Ltd,Building Alterations And Materials,527.58,0,COMMERCIAL SUPPLIER
02-08-2022,Environment and Sustainable Transport,Terence Barker Ltd,Highway Services,780,0,COMMERCIAL SUPPLIER
02-08-2022,RMS,Travis Perkins Trading Company Ltd,Private Contractors Payment - Other,3628.87,0,COMMERCIAL SUPPLIER
02-08-2022,RMS,Travis Perkins Trading Company Ltd,Building Alterations And Materials,271,0,COMMERCIAL SUPPLIER
02-08-2022,RMS,Travis Perkins Trading Company Ltd,Building Alterations And Materials,1936.32,0,COMMERCIAL SUPPLIER
02-08-2022,RMS,Travis Perkins Trading Company Ltd,Building Alterations And Materials,322.72,0,COMMERCIAL SUPPLIER
02-08-2022,RMS,Travis Perkins Trading Company Ltd,Building Alterations And Materials,1082,0,COMMERCIAL SUPPLIER
02-08-2022,RMS,Travis Perkins Trading Company Ltd,Building Alterations And Materials,1125,0,COMMERCIAL SUPPLIER
02-08-2022,RMS,Travis Perkins Trading Company Ltd,Building Alterations And Materials,78,0,COMMERCIAL SUPPLIER
02-08-2022,RMS,Travis Perkins Trading Company Ltd,Building Alterations And Materials,96,0,COMMERCIAL SUPPLIER
02-08-2022,RMS,Travis Perkins Trading Company Ltd,Building Alterations And Materials,580,0,COMMERCIAL SUPPLIER
02-08-2022,RMS,Travis Perkins Trading Company Ltd,Building Alterations And Materials,142,0,COMMERCIAL SUPPLIER
02-08-2022,RMS,Travis Perkins Trading Company Ltd,Building Alterations And Materials,219,0,COMMERCIAL SUPPLIER
02-08-2022,RMS,Travis Perkins Trading Company Ltd,Building Alterations And Materials,394,0,COMMERCIAL SUPPLIER
02-08-2022,RMS,Travis Perkins Trading Company Ltd,Building Alterations And Materials,7457.5,0,COMMERCIAL SUPPLIER
02-08-2022,RMS,Travis Perkins Trading Company Ltd,Building Alterations And Materials,281.4,0,COMMERCIAL SUPPLIER
02-08-2022,oneSource - Non Shared,County Shutters & Doors Ltd,Security Services (Excluding Premises),211,0,COMMERCIAL SUPPLIER
02-08-2022,Marketing,County Shutters & Doors Ltd,Security Services (Excluding Premises),211,0,COMMERCIAL SUPPLIER
02-08-2022,Environment and Sustainable Transport,County Shutters & Doors Ltd,Security Services (Excluding Premises),440.1,0,COMMERCIAL SUPPLIER
02-08-2022,RMS,J B Jessop East Ham Ltd,Building Alterations And Materials,210,0,VENDOR
02-08-2022,RMS,J B Jessop East Ham Ltd,Building Alterations And Materials,296,0,VENDOR
02-08-2022,Environment and Sustainable Transport,Harris Commercial Repairs Ltd,Highway Services,23.61,0,VENDOR
02-08-2022,Environment and Sustainable Transport,Harris Commercial Repairs Ltd,Highway Services,88.1,0,VENDOR
02-08-2022,Environment and Sustainable Transport,Harris Commercial Repairs Ltd,Highway Services,217.5,0,VENDOR
02-08-2022,Dedicated Schools Budget,London Teaching Pool,Staff Development And Training,840,0,COMMERCIAL SUPPLIER
02-08-2022,Dedicated Schools Budget,London Teaching Pool,Staff Development And Training,840,0,COMMERCIAL SUPPLIER
02-08-2022,Children and Young People,Ansacare Fostering Agency Ltd,Fostering Agency Placements - Private Contractors Payment,514.28,0,COMMERCIAL SUPPLIER
02-08-2022,Children and Young People,Ansacare Fostering Agency Ltd,Fostering Agency Placements - Private Contractors Payment,1200,0,COMMERCIAL SUPPLIER
02-08-2022,Children and Young People,Ansacare Fostering Agency Ltd,Fostering Agency Placements - Private Contractors Payment,1200,0,COMMERCIAL SUPPLIER
02-08-2022,Children and Young People,Ansacare Fostering Agency Ltd,Fostering Agency Placements - Private Contractors Payment,1200,0,COMMERCIAL SUPPLIER
02-08-2022,Children and Young People,Ansacare Fostering Agency Ltd,Fostering Agency Placements - Private Contractors Payment,1200,0,COMMERCIAL SUPPLIER
02-08-2022,Environment and Sustainable Transport,Kois Miah Photography,Design And Photographic Costs,350,0,INDIVIDUALS
02-08-2022,Children and Young People,Ansacare Fostering Agency Ltd,Fostering Agency Placements - Private Contractors Payment,1542.86,0,COMMERCIAL SUPPLIER
02-08-2022,Children and Young People,Ansacare Fostering Agency Ltd,Fostering Agency Placements - Private Contractors Payment,1200,0,COMMERCIAL SUPPLIER
02-08-2022,Children and Young People,Ansacare Fostering Agency Ltd,Fostering Agency Placements - Private Contractors Payment,1200,0,COMMERCIAL SUPPLIER
02-08-2022,Children and Young People,Ansacare Fostering Agency Ltd,Fostering Agency Placements - Private Contractors Payment,1200,0,COMMERCIAL SUPPLIER
02-08-2022,Inclusive Economy & Housing,Arup (London),Consultancy Fees,49996.66,0,COMMERCIAL SUPPLIER
02-08-2022,Housing Revenue Account,Moore's (Fencing & Building services Ltd,"Maintenance - Equipment, Furniture And Materials",528.58,0,COMMERCIAL SUPPLIER
02-08-2022,RMS,Benchmarx Kitchens and Joinery,Building Alterations And Materials,509.9,0,COMMERCIAL SUPPLIER
02-08-2022,Adults & Health,The Regard Partnership Ltd,Daycare - Private Contractors Payment,448,0,NON COMMERCIAL SUPPLIER
02-08-2022,Adults & Health,The Regard Partnership Ltd,Daycare - Private Contractors Payment,448,0,NON COMMERCIAL SUPPLIER
02-08-2022,Adults & Health,The Regard Partnership Ltd,Daycare - Private Contractors Payment,448,0,NON COMMERCIAL SUPPLIER
02-08-2022,Adults & Health,The Regard Partnership Ltd,Daycare - Private Contractors Payment,448,0,NON COMMERCIAL SUPPLIER
02-08-2022,Adults & Health,The Regard Partnership Ltd,Daycare - Private Contractors Payment,448,0,NON COMMERCIAL SUPPLIER
02-08-2022,Adults & Health,The Regard Partnership Ltd,Daycare - Private Contractors Payment,224,0,NON COMMERCIAL SUPPLIER
02-08-2022,Adults & Health,The Regard Partnership Ltd,Daycare - Private Contractors Payment,448,0,NON COMMERCIAL SUPPLIER
02-08-2022,Adults & Health,The Regard Partnership Ltd,Daycare - Private Contractors Payment,194.88,0,NON COMMERCIAL SUPPLIER
02-08-2022,Adults & Health,The Regard Partnership Ltd,Daycare - Private Contractors Payment,194.88,0,NON COMMERCIAL SUPPLIER
02-08-2022,Adults & Health,The Regard Partnership Ltd,Daycare - Private Contractors Payment,194.88,0,NON COMMERCIAL SUPPLIER
02-08-2022,Adults & Health,The Regard Partnership Ltd,Daycare - Private Contractors Payment,194.88,0,NON COMMERCIAL SUPPLIER
02-08-2022,Adults & Health,The Regard Partnership Ltd,Daycare - Private Contractors Payment,194.88,0,NON COMMERCIAL SUPPLIER
02-08-2022,Adults & Health,The Regard Partnership Ltd,Daycare - Private Contractors Payment,194.88,0,NON COMMERCIAL SUPPLIER
02-08-2022,Adults & Health,The Regard Partnership Ltd,Daycare - Private Contractors Payment,194.88,0,NON COMMERCIAL SUPPLIER
02-08-2022,Adults & Health,The Regard Partnership Ltd,Daycare - Private Contractors Payment,194.88,0,NON COMMERCIAL SUPPLIER
02-08-2022,Adults & Health,The Regard Partnership Ltd,Daycare - Private Contractors Payment,278.4,0,NON COMMERCIAL SUPPLIER
02-08-2022,Adults & Health,The Regard Partnership Ltd,Daycare - Private Contractors Payment,278.4,0,NON COMMERCIAL SUPPLIER
02-08-2022,Adults & Health,The Regard Partnership Ltd,Daycare - Private Contractors Payment,278.4,0,NON COMMERCIAL SUPPLIER
02-08-2022,Adults & Health,The Regard Partnership Ltd,Daycare - Private Contractors Payment,278.4,0,NON COMMERCIAL SUPPLIER
02-08-2022,Adults & Health,The Regard Partnership Ltd,Daycare - Private Contractors Payment,278.4,0,NON COMMERCIAL SUPPLIER
02-08-2022,Adults & Health,The Regard Partnership Ltd,Daycare - Private Contractors Payment,278.4,0,NON COMMERCIAL SUPPLIER
02-08-2022,Adults & Health,The Regard Partnership Ltd,Daycare - Private Contractors Payment,278.4,0,NON COMMERCIAL SUPPLIER
02-08-2022,Adults & Health,The Regard Partnership Ltd,Daycare - Private Contractors Payment,278.4,0,NON COMMERCIAL SUPPLIER
02-08-2022,Environment and Sustainable Transport,Terberg Matec Uk Ltd,Highway Services,94.66,0,COMMERCIAL SUPPLIER
02-08-2022,Environment and Sustainable Transport,Terberg Matec Uk Ltd,Highway Services,4.79,0,COMMERCIAL SUPPLIER
02-08-2022,Environment and Sustainable Transport,Terberg Matec Uk Ltd,Highway Services,17.22,0,COMMERCIAL SUPPLIER
02-08-2022,Environment and Sustainable Transport,Terberg Matec Uk Ltd,Highway Services,355.09,0,COMMERCIAL SUPPLIER
02-08-2022,Environment and Sustainable Transport,Terberg Matec Uk Ltd,Highway Services,55.6,0,COMMERCIAL SUPPLIER
02-08-2022,Environment and Sustainable Transport,Terberg Matec Uk Ltd,Highway Services,52.51,0,COMMERCIAL SUPPLIER
02-08-2022,Environment and Sustainable Transport,Terberg Matec Uk Ltd,Highway Services,1514.53,0,COMMERCIAL SUPPLIER
02-08-2022,Children and Young People,Advanced Child Care Assesssments Ltd,Legal Fees,224.24,0,COMMERCIAL SUPPLIER
02-08-2022,Children and Young People,Advanced Child Care Assesssments Ltd,Legal Fees,660,0,COMMERCIAL SUPPLIER
02-08-2022,Marketing,Wellbeing & Wisdom Works,Events,390,0,COMMERCIAL SUPPLIER
02-08-2022,Children and Young People,Greenline Environmental Limited,Waste Disposal Costs,399.33,0,COMMERCIAL SUPPLIER
02-08-2022,RMS,Beacon Scaffolding Ltd,Private Contractors Payment - Other,617.28,0,CIS
02-08-2022,RMS,Beacon Scaffolding Ltd,Private Contractors Payment - Other,617.28,0,CIS
02-08-2022,RMS,Beacon Scaffolding Ltd,Private Contractors Payment - Other,1393.2,0,CIS
02-08-2022,RMS,Beacon Scaffolding Ltd,Private Contractors Payment - Other,1234.56,0,CIS
02-08-2022,RMS,Beacon Scaffolding Ltd,Private Contractors Payment - Other,1500,0,CIS
02-08-2022,RMS,Beacon Scaffolding Ltd,Private Contractors Payment - Other,1286.4,0,CIS
02-08-2022,Children and Young People,Aspire Youth Services ltd,Supported Other Accommodation - Private Contractors Payment,48,0,COMMERCIAL SUPPLIER
02-08-2022,Children and Young People,Aspire Youth Services ltd,Supported Other Accommodation - Private Contractors Payment,371,0,COMMERCIAL SUPPLIER
02-08-2022,Children and Young People,Aspire Youth Services ltd,Supported Other Accommodation - Private Contractors Payment,48,0,COMMERCIAL SUPPLIER
02-08-2022,Children and Young People,Aspire Youth Services ltd,Supported Other Accommodation - Private Contractors Payment,371,0,COMMERCIAL SUPPLIER
02-08-2022,Children and Young People,Aspire Youth Services ltd,Supported Other Accommodation - Private Contractors Payment,48,0,COMMERCIAL SUPPLIER
02-08-2022,Children and Young People,Aspire Youth Services ltd,Supported Other Accommodation - Private Contractors Payment,371,0,COMMERCIAL SUPPLIER
02-08-2022,Children and Young People,Aspire Youth Services ltd,Supported Other Accommodation - Private Contractors Payment,490.71,0,COMMERCIAL SUPPLIER
02-08-2022,Children and Young People,Aspire Youth Services ltd,Supported Other Accommodation - Private Contractors Payment,48,0,COMMERCIAL SUPPLIER
02-08-2022,Children and Young People,Aspire Youth Services ltd,Supported Other Accommodation - Private Contractors Payment,371,0,COMMERCIAL SUPPLIER
02-08-2022,Children and Young People,Aspire Youth Services ltd,Supported Other Accommodation - Private Contractors Payment,48,0,COMMERCIAL SUPPLIER
02-08-2022,Children and Young People,Aspire Youth Services ltd,Supported Other Accommodation - Private Contractors Payment,48,0,COMMERCIAL SUPPLIER
02-08-2022,Children and Young People,Aspire Youth Services ltd,Supported Other Accommodation - Private Contractors Payment,371,0,COMMERCIAL SUPPLIER
02-08-2022,Children and Young People,Aspire Youth Services ltd,Supported Other Accommodation - Private Contractors Payment,48,0,COMMERCIAL SUPPLIER
02-08-2022,Children and Young People,Aspire Youth Services ltd,Supported Other Accommodation - Private Contractors Payment,371,0,COMMERCIAL SUPPLIER
02-08-2022,Children and Young People,Aspire Youth Services ltd,Supported Other Accommodation - Private Contractors Payment,48,0,COMMERCIAL SUPPLIER
02-08-2022,Children and Young People,Aspire Youth Services ltd,Supported Other Accommodation - Private Contractors Payment,550.57,0,COMMERCIAL SUPPLIER
02-08-2022,Children and Young People,Personal Information - Redacted,Legal Fees,750,0,COMMERCIAL SUPPLIER
02-08-2022,Environment and Sustainable Transport,Andrew Pritchard Ltd,Consultancy Fees,4800,0,INDIVIDUALS
02-08-2022,Environment and Sustainable Transport,Personal Information - Redacted,"Purchase - Equipment, Furniture And Materials",91.68,0,Employee
02-08-2022,Children and Young People,Personal Information - Redacted,Professional Services - General,82.5,0,Employee
02-08-2022,Children and Young People,Personal Information - Redacted,Stationery,11.64,0,Employee
02-08-2022,Children and Young People,Personal Information - Redacted,"Purchase - Equipment, Furniture And Materials",108.33,0,Employee
02-08-2022,Children and Young People,Personal Information - Redacted,Private Contractors Payment - Other,62.94,0,Employee
02-08-2022,Children and Young People,Personal Information - Redacted,Private Contractors Payment - Other,449,0,Employee
02-08-2022,Children and Young People,Personal Information - Redacted,Private Contractors Payment - Other,29.92,0,Employee
02-08-2022,Children and Young People,Personal Information - Redacted,Private Contractors Payment - Other,-62.94,0,Employee
02-08-2022,Children and Young People,Personal Information - Redacted,Private Contractors Payment - Other,105.5,0,Employee
02-08-2022,Adults & Health,Personal Information - Redacted,Catering Services,40.26,0,Employee
02-08-2022,Adults & Health,Personal Information - Redacted,Catering Services,293.2,0,Employee
02-08-2022,Adults & Health,Personal Information - Redacted,"Purchase - Equipment, Furniture And Materials",100,0,Employee
02-08-2022,Marketing,Personal Information - Redacted,"Purchase - Equipment, Furniture And Materials",87.5,0,Employee
02-08-2022,Marketing,Woodgrange Market,Events,575,0,VENDOR
02-08-2022,Children and Young People,New Possibilities Ltd,Ict Software,690,0,COMMERCIAL SUPPLIER
02-08-2022,Adults & Health,Personal Information - Redacted,Respite Care - Private Contractors Payment,5778.84,0,INDIVIDUALS
02-08-2022,Adults & Health,Personal Information - Redacted,Respite Care - Private Contractors Payment,500.91,0,INDIVIDUALS
02-08-2022,Adults & Health,Personal Information - Redacted,Respite Care - Private Contractors Payment,1101.33,0,INDIVIDUALS
02-08-2022,Adults & Health,Personal Information - Redacted,Respite Care - Private Contractors Payment,3649.54,0,INDIVIDUALS
02-08-2022,Children and Young People,PFS Prepaid Financial Services,Payment To Private Sector Landlords (Psl),420,0,INDIVIDUALS
02-08-2022,Adults & Health,Personal Information - Redacted,Payment To Health Authorities,4200,0,VENDOR
02-08-2022,Adults & Health,Rosy Care Limited,Daycare - Private Contractors Payment,300,0,NON COMMERCIAL SUPPLIER
02-08-2022,Adults & Health,Rosy Care Limited,Daycare - Private Contractors Payment,300,0,NON COMMERCIAL SUPPLIER
02-08-2022,Adults & Health,Rosy Care Limited,Daycare - Private Contractors Payment,300,0,NON COMMERCIAL SUPPLIER
02-08-2022,Adults & Health,Rosy Care Limited,Daycare - Private Contractors Payment,300,0,NON COMMERCIAL SUPPLIER
02-08-2022,RMS,Roadmarking Excel Ltd,"Maintenance - Equipment, Furniture And Materials",220,0,CIS
02-08-2022,Adults & Health,Supporting Care,Home Care - Private Contractors Payment,234.71,0,VENDOR
02-08-2022,Adults & Health,Supporting Care,Home Care - Private Contractors Payment,234.71,0,VENDOR
02-08-2022,Adults & Health,Supporting Care,Home Care - Private Contractors Payment,234.71,0,VENDOR
02-08-2022,Adults & Health,Supporting Care,Home Care - Private Contractors Payment,234.71,0,VENDOR
02-08-2022,Adults & Health,Supporting Care,Home Care - Private Contractors Payment,234.71,0,VENDOR
02-08-2022,Adults & Health,Supporting Care,Daycare - Private Contractors Payment,38.32,0,VENDOR
02-08-2022,Adults & Health,Supporting Care,Home Care - Private Contractors Payment,234.71,0,VENDOR
02-08-2022,Adults & Health,Supporting Care,Daycare - Private Contractors Payment,38.32,0,VENDOR
02-08-2022,Adults & Health,Supporting Care,Home Care - Private Contractors Payment,234.71,0,VENDOR
02-08-2022,Adults & Health,Supporting Care,Daycare - Private Contractors Payment,38.32,0,VENDOR
02-08-2022,Adults & Health,Supporting Care,Home Care - Private Contractors Payment,234.71,0,VENDOR
02-08-2022,Adults & Health,Supporting Care,Daycare - Private Contractors Payment,38.32,0,VENDOR
02-08-2022,Children and Young People,IDNA Genetics Limited T/A Anglia DNA Services,Legal Fees,630,0,COMMERCIAL SUPPLIER
02-08-2022,Children and Young People,IDNA Genetics Limited T/A Anglia DNA Services,Legal Fees,420,0,COMMERCIAL SUPPLIER
02-08-2022,oneSource - Non Shared,Bloom Procurement Services Ltd,Agency Staff,6410.53,0,COMMERCIAL SUPPLIER
02-08-2022,Adults & Health,Supporting Care,Home Care - Private Contractors Payment,420.88,0,VENDOR
02-08-2022,Adults & Health,Supporting Care,Home Care - Private Contractors Payment,420.88,0,VENDOR
02-08-2022,Adults & Health,Supporting Care,Home Care - Private Contractors Payment,319.54,0,VENDOR
02-08-2022,Adults & Health,Supporting Care,Home Care - Private Contractors Payment,420.86,0,VENDOR
02-08-2022,Adults & Health,Supporting Care,Home Care - Private Contractors Payment,420.88,0,VENDOR
02-08-2022,Adults & Health,Supporting Care,Home Care - Private Contractors Payment,304.52,0,VENDOR
02-08-2022,Adults & Health,Supporting Care,Home Care - Private Contractors Payment,425.88,0,VENDOR
02-08-2022,Adults & Health,Supporting Care,Home Care - Private Contractors Payment,425.88,0,VENDOR
02-08-2022,Adults & Health,Supporting Care,Home Care - Private Contractors Payment,420.88,0,VENDOR
02-08-2022,Adults & Health,Supporting Care,Home Care - Private Contractors Payment,425.88,0,VENDOR
02-08-2022,Adults & Health,Supporting Care,Home Care - Private Contractors Payment,276.12,0,VENDOR
02-08-2022,Adults & Health,Supporting Care,Home Care - Private Contractors Payment,425.88,0,VENDOR
02-08-2022,Adults & Health,Supporting Care,Home Care - Private Contractors Payment,425.88,0,VENDOR
02-08-2022,Adults & Health,Supporting Care,Home Care - Private Contractors Payment,425.88,0,VENDOR
02-08-2022,Adults & Health,Supporting Care,Home Care - Private Contractors Payment,425.88,0,VENDOR
02-08-2022,Adults & Health,Supporting Care,Home Care - Private Contractors Payment,425.88,0,VENDOR
02-08-2022,Adults & Health,Supporting Care,Home Care - Private Contractors Payment,14.04,0,VENDOR
02-08-2022,Adults & Health,Supporting Care,Home Care - Private Contractors Payment,425.88,0,VENDOR
02-08-2022,Adults & Health,Supporting Care,Home Care - Private Contractors Payment,360.36,0,VENDOR
02-08-2022,Adults & Health,Supporting Care,Home Care - Private Contractors Payment,425.88,0,VENDOR
02-08-2022,Adults & Health,Supporting Care,Home Care - Private Contractors Payment,425.88,0,VENDOR
02-08-2022,Adults & Health,Supporting Care,Home Care - Private Contractors Payment,425.88,0,VENDOR
02-08-2022,Children and Young People,Personal Information - Redacted,Arts And Leisure Costs,500,0,INDIVIDUALS
02-08-2022,RMS,Travis Perkins Trading Company Ltd,"Purchase - Equipment, Furniture And Materials",350292.82,0,COMMERCIAL SUPPLIER
02-08-2022,RMS,Travis Perkins Trading Company Ltd,"Purchase - Equipment, Furniture And Materials",736.12,0,COMMERCIAL SUPPLIER
02-08-2022,RMS,Travis Perkins Trading Company Ltd,"Purchase - Equipment, Furniture And Materials",5055.25,0,COMMERCIAL SUPPLIER
02-08-2022,RMS,Travis Perkins Trading Company Ltd,"Purchase - Equipment, Furniture And Materials",857.02,0,COMMERCIAL SUPPLIER
02-08-2022,RMS,Travis Perkins Trading Company Ltd,"Purchase - Equipment, Furniture And Materials",333.94,0,COMMERCIAL SUPPLIER
02-08-2022,RMS,Travis Perkins Trading Company Ltd,"Purchase - Equipment, Furniture And Materials",8707.09,0,COMMERCIAL SUPPLIER
02-08-2022,RMS,Travis Perkins Trading Company Ltd,"Purchase - Equipment, Furniture And Materials",2448.93,0,COMMERCIAL SUPPLIER
02-08-2022,RMS,Travis Perkins Trading Company Ltd,"Purchase - Equipment, Furniture And Materials",924.47,0,COMMERCIAL SUPPLIER
02-08-2022,RMS,Travis Perkins Trading Company Ltd,"Purchase - Equipment, Furniture And Materials",1865.91,0,COMMERCIAL SUPPLIER
02-08-2022,RMS,Travis Perkins Trading Company Ltd,"Purchase - Equipment, Furniture And Materials",1036.03,0,COMMERCIAL SUPPLIER
02-08-2022,RMS,Travis Perkins Trading Company Ltd,"Purchase - Equipment, Furniture And Materials",8960.63,0,COMMERCIAL SUPPLIER
02-08-2022,Children and Young People,PFS Prepaid Financial Services,Miscellaneous Expenses,5000,0,INDIVIDUALS
02-08-2022,Children and Young People,PFS Prepaid Financial Services,Miscellaneous Expenses,5000,0,INDIVIDUALS
02-08-2022,Children and Young People,PFS Prepaid Financial Services,Miscellaneous Expenses,5000,0,INDIVIDUALS
02-08-2022,Children and Young People,PFS Prepaid Financial Services,Miscellaneous Expenses,5000,0,INDIVIDUALS
02-08-2022,Children and Young People,PFS Prepaid Financial Services,Miscellaneous Expenses,5000,0,INDIVIDUALS
02-08-2022,Children and Young People,PFS Prepaid Financial Services,Miscellaneous Expenses,5000,0,INDIVIDUALS
02-08-2022,Children and Young People,PFS Prepaid Financial Services,Miscellaneous Expenses,5000,0,INDIVIDUALS
02-08-2022,Children and Young People,PFS Prepaid Financial Services,Miscellaneous Expenses,5000,0,INDIVIDUALS
03-08-2022,Children and Young People,Personal Information - Redacted,Professional Services - General,900,0,INDIVIDUALS
03-08-2022,Marketing,Ruff Sqwad Arts Foundation,Events,4000,0,NON COMMERCIAL SUPPLIER
03-08-2022,Dedicated Schools Budget,Personal Information - Redacted,Conference Expenses,850,0,COMMERCIAL SUPPLIER
03-08-2022,oneSource - Non Shared,Sully Form Ltd,"Maintenance - Equipment, Furniture And Materials",1407.08,0,VENDOR
03-08-2022,Adults & Health,Medstar Domiciliary Care Services Ltd,Daycare - Private Contractors Payment,929.2,0,COMMERCIAL SUPPLIER
03-08-2022,oneSource - Non Shared,Personal Information - Redacted,"Maintenance - Equipment, Furniture And Materials",2055.41,0,INDIVIDUALS
03-08-2022,Children and Young People,York Consulting LLP,Consultancy Fees,6960,0,COMMERCIAL SUPPLIER
03-08-2022,Adults & Health,Floron Residential Home,Residential Placements - Private Contractors Payment,639.53,0,COMMERCIAL SUPPLIER
03-08-2022,Adults & Health,Floron Residential Home,Residential Placements - Private Contractors Payment,639.53,0,COMMERCIAL SUPPLIER
03-08-2022,Adults & Health,Floron Residential Home,Residential Placements - Private Contractors Payment,639.53,0,COMMERCIAL SUPPLIER
03-08-2022,Adults & Health,Floron Residential Home,Residential Placements - Private Contractors Payment,602.48,0,COMMERCIAL SUPPLIER
03-08-2022,Adults & Health,Floron Residential Home,Residential Placements - Private Contractors Payment,602.48,0,COMMERCIAL SUPPLIER
03-08-2022,Adults & Health,Floron Residential Home,Residential Placements - Private Contractors Payment,639.53,0,COMMERCIAL SUPPLIER
03-08-2022,Adults & Health,Floron Residential Home,Residential Placements - Private Contractors Payment,639.53,0,COMMERCIAL SUPPLIER
03-08-2022,Adults & Health,Floron Residential Home,Residential Placements - Private Contractors Payment,639.53,0,COMMERCIAL SUPPLIER
03-08-2022,Adults & Health,Floron Residential Home,Residential Placements - Private Contractors Payment,750.68,0,COMMERCIAL SUPPLIER
03-08-2022,Adults & Health,Floron Residential Home,Residential Placements - Private Contractors Payment,639.53,0,COMMERCIAL SUPPLIER
03-08-2022,Adults & Health,Floron Residential Home,Residential Placements - Private Contractors Payment,602.48,0,COMMERCIAL SUPPLIER
03-08-2022,Adults & Health,Floron Residential Home,Residential Placements - Private Contractors Payment,602.48,0,COMMERCIAL SUPPLIER
03-08-2022,Adults & Health,Floron Residential Home,Residential Placements - Private Contractors Payment,639.53,0,COMMERCIAL SUPPLIER
03-08-2022,Adults & Health,Floron Residential Home,Residential Placements - Private Contractors Payment,639.53,0,COMMERCIAL SUPPLIER
03-08-2022,Adults & Health,Floron Residential Home,Residential Placements - Private Contractors Payment,639.53,0,COMMERCIAL SUPPLIER
03-08-2022,Adults & Health,Floron Residential Home,Residential Placements - Private Contractors Payment,639.53,0,COMMERCIAL SUPPLIER
03-08-2022,Adults & Health,Floron Residential Home,Residential Placements - Private Contractors Payment,639.53,0,COMMERCIAL SUPPLIER
03-08-2022,Adults & Health,Floron Residential Home,Residential Placements - Private Contractors Payment,639.53,0,COMMERCIAL SUPPLIER
03-08-2022,Adults & Health,Floron Residential Home,Residential Placements - Private Contractors Payment,602.48,0,COMMERCIAL SUPPLIER
03-08-2022,Adults & Health,Floron Residential Home,Residential Placements - Private Contractors Payment,602.48,0,COMMERCIAL SUPPLIER
03-08-2022,Adults & Health,Floron Residential Home,Residential Placements - Private Contractors Payment,602.48,0,COMMERCIAL SUPPLIER
03-08-2022,Adults & Health,Floron Residential Home,Residential Placements - Private Contractors Payment,639.53,0,COMMERCIAL SUPPLIER
03-08-2022,Adults & Health,Floron Residential Home,Residential Placements - Private Contractors Payment,639.53,0,COMMERCIAL SUPPLIER
03-08-2022,Adults & Health,Floron Residential Home,Residential Placements - Private Contractors Payment,639.53,0,COMMERCIAL SUPPLIER
03-08-2022,Adults & Health,Floron Residential Home,Residential Placements - Private Contractors Payment,639.53,0,COMMERCIAL SUPPLIER
03-08-2022,Adults & Health,Floron Residential Home,Residential Placements - Private Contractors Payment,639.53,0,COMMERCIAL SUPPLIER
03-08-2022,Adults & Health,Floron Residential Home,Residential Placements - Private Contractors Payment,602.48,0,COMMERCIAL SUPPLIER
03-08-2022,Adults & Health,Floron Residential Home,Residential Placements - Private Contractors Payment,639.53,0,COMMERCIAL SUPPLIER
03-08-2022,Adults & Health,Floron Residential Home,Residential Placements - Private Contractors Payment,639.53,0,COMMERCIAL SUPPLIER
03-08-2022,Adults & Health,Floron Residential Home,Residential Placements - Private Contractors Payment,639.53,0,COMMERCIAL SUPPLIER
03-08-2022,Adults & Health,Floron Residential Home,Residential Placements - Private Contractors Payment,602.48,0,COMMERCIAL SUPPLIER
03-08-2022,Adults & Health,Floron Residential Home,Residential Placements - Private Contractors Payment,602.48,0,COMMERCIAL SUPPLIER
03-08-2022,Adults & Health,Floron Residential Home,Residential Placements - Private Contractors Payment,639.53,0,COMMERCIAL SUPPLIER
03-08-2022,Adults & Health,Floron Residential Home,Residential Placements - Private Contractors Payment,602.48,0,COMMERCIAL SUPPLIER
03-08-2022,Adults & Health,Floron Residential Home,Residential Placements - Private Contractors Payment,639.53,0,COMMERCIAL SUPPLIER
03-08-2022,Adults & Health,Floron Residential Home,Residential Placements - Private Contractors Payment,639.53,0,COMMERCIAL SUPPLIER
03-08-2022,Adults & Health,City Care Agency Ltd,Home Care - Private Contractors Payment,570.01,0,
03-08-2022,Adults & Health,City Care Agency Ltd,Home Care - Private Contractors Payment,57.48,0,
03-08-2022,Adults & Health,City Care Agency Ltd,Home Care - Private Contractors Payment,268.24,0,
03-08-2022,Adults & Health,City Care Agency Ltd,Home Care - Private Contractors Payment,637.07,0,
03-08-2022,Adults & Health,City Care Agency Ltd,Home Care - Private Contractors Payment,871.78,0,
03-08-2022,Adults & Health,City Care Agency Ltd,Home Care - Private Contractors Payment,234.71,0,
03-08-2022,Adults & Health,City Care Agency Ltd,Home Care - Private Contractors Payment,268.24,0,
03-08-2022,Adults & Health,City Care Agency Ltd,Home Care - Private Contractors Payment,234.71,0,
03-08-2022,Adults & Health,City Care Agency Ltd,Home Care - Private Contractors Payment,268.24,0,
03-08-2022,Adults & Health,City Care Agency Ltd,Home Care - Private Contractors Payment,282.61,0,
03-08-2022,Adults & Health,City Care Agency Ltd,Home Care - Private Contractors Payment,268.24,0,
03-08-2022,Adults & Health,City Care Agency Ltd,Home Care - Private Contractors Payment,9.58,0,
03-08-2022,Adults & Health,City Care Agency Ltd,Home Care - Private Contractors Payment,33.53,0,
03-08-2022,Adults & Health,City Care Agency Ltd,Home Care - Private Contractors Payment,268.24,0,
03-08-2022,Adults & Health,City Care Agency Ltd,Home Care - Private Contractors Payment,57.48,0,
03-08-2022,Adults & Health,City Care Agency Ltd,Home Care - Private Contractors Payment,268.24,0,
03-08-2022,Adults & Health,City Care Agency Ltd,Home Care - Private Contractors Payment,100.59,0,
03-08-2022,Adults & Health,City Care Agency Ltd,Home Care - Private Contractors Payment,167.65,0,
03-08-2022,Adults & Health,City Care Agency Ltd,Home Care - Private Contractors Payment,871.78,0,
03-08-2022,Adults & Health,City Care Agency Ltd,Home Care - Private Contractors Payment,9.58,0,
03-08-2022,Adults & Health,City Care Agency Ltd,Daycare - Private Contractors Payment,57.48,0,
03-08-2022,Adults & Health,City Care Agency Ltd,Home Care - Private Contractors Payment,167.65,0,
03-08-2022,Adults & Health,City Care Agency Ltd,Home Care - Private Contractors Payment,100.59,0,
03-08-2022,Adults & Health,City Care Agency Ltd,Daycare - Private Contractors Payment,57.48,0,
03-08-2022,Adults & Health,City Care Agency Ltd,Home Care - Private Contractors Payment,56.88,0,
03-08-2022,Adults & Health,City Care Agency Ltd,Home Care - Private Contractors Payment,354.46,0,
03-08-2022,Adults & Health,City Care Agency Ltd,Daycare - Private Contractors Payment,76.64,0,
03-08-2022,Adults & Health,City Care Agency Ltd,Home Care - Private Contractors Payment,570.01,0,
03-08-2022,Adults & Health,City Care Agency Ltd,Home Care - Private Contractors Payment,167.65,0,
03-08-2022,Adults & Health,City Care Agency Ltd,Home Care - Private Contractors Payment,637.07,0,
03-08-2022,Adults & Health,City Care Agency Ltd,Home Care - Private Contractors Payment,871.78,0,
03-08-2022,Adults & Health,City Care Agency Ltd,Home Care - Private Contractors Payment,637.07,0,
03-08-2022,Adults & Health,City Care Agency Ltd,Home Care - Private Contractors Payment,570.01,0,
03-08-2022,Adults & Health,City Care Agency Ltd,Home Care - Private Contractors Payment,354.46,0,
03-08-2022,Adults & Health,City Care Agency Ltd,Daycare - Private Contractors Payment,76.64,0,
03-08-2022,Adults & Health,City Care Agency Ltd,Home Care - Private Contractors Payment,119.75,0,
03-08-2022,Adults & Health,City Care Agency Ltd,Home Care - Private Contractors Payment,301.77,0,
03-08-2022,Adults & Health,City Care Agency Ltd,Home Care - Private Contractors Payment,354.46,0,
03-08-2022,Adults & Health,City Care Agency Ltd,Daycare - Private Contractors Payment,76.64,0,
03-08-2022,Adults & Health,City Care Agency Ltd,Home Care - Private Contractors Payment,570.01,0,
03-08-2022,Adults & Health,City Care Agency Ltd,Home Care - Private Contractors Payment,57.48,0,
03-08-2022,Adults & Health,City Care Agency Ltd,Home Care - Private Contractors Payment,268.24,0,
03-08-2022,Adults & Health,City Care Agency Ltd,Home Care - Private Contractors Payment,871.78,0,
03-08-2022,Adults & Health,City Care Agency Ltd,Home Care - Private Contractors Payment,167.65,0,
03-08-2022,Adults & Health,City Care Agency Ltd,Home Care - Private Contractors Payment,100.59,0,
03-08-2022,Adults & Health,City Care Agency Ltd,Home Care - Private Contractors Payment,4.79,0,
03-08-2022,Adults & Health,City Care Agency Ltd,Home Care - Private Contractors Payment,9.58,0,
03-08-2022,Adults & Health,City Care Agency Ltd,Daycare - Private Contractors Payment,57.48,0,
03-08-2022,Adults & Health,City Care Agency Ltd,Home Care - Private Contractors Payment,637.07,0,
03-08-2022,Adults & Health,City Care Agency Ltd,Home Care - Private Contractors Payment,234.71,0,
03-08-2022,Adults & Health,City Care Agency Ltd,Home Care - Private Contractors Payment,268.24,0,
03-08-2022,Adults & Health,City Care Agency Ltd,Home Care - Private Contractors Payment,9.58,0,
03-08-2022,Adults & Health,City Care Agency Ltd,Home Care - Private Contractors Payment,368.83,0,
03-08-2022,Adults & Health,City Care Agency Ltd,Home Care - Private Contractors Payment,167.65,0,
03-08-2022,Adults & Health,City Care Agency Ltd,Daycare - Private Contractors Payment,57.48,0,
03-08-2022,Adults & Health,City Care Agency Ltd,Home Care - Private Contractors Payment,354.46,0,
03-08-2022,Adults & Health,City Care Agency Ltd,Home Care - Private Contractors Payment,100.59,0,
03-08-2022,Adults & Health,City Care Agency Ltd,Daycare - Private Contractors Payment,76.64,0,
03-08-2022,Housing Revenue Account,Matrix Solicitors,Legal Fees,11985.69,0,NON COMMERCIAL SUPPLIER
03-08-2022,Adults & Health,City Care Agency Ltd,Home Care - Private Contractors Payment,9.58,0,
03-08-2022,Adults & Health,City Care Agency Ltd,Daycare - Private Contractors Payment,57.48,0,
03-08-2022,Adults & Health,City Care Agency Ltd,Home Care - Private Contractors Payment,637.07,0,
03-08-2022,Adults & Health,City Care Agency Ltd,Home Care - Private Contractors Payment,354.46,0,
03-08-2022,Adults & Health,City Care Agency Ltd,Daycare - Private Contractors Payment,76.64,0,
03-08-2022,Adults & Health,City Care Agency Ltd,Home Care - Private Contractors Payment,234.71,0,
03-08-2022,Adults & Health,City Care Agency Ltd,Home Care - Private Contractors Payment,570.37,0,
03-08-2022,Adults & Health,City Care Agency Ltd,Home Care - Private Contractors Payment,167.65,0,
03-08-2022,Adults & Health,City Care Agency Ltd,Home Care - Private Contractors Payment,268.24,0,
03-08-2022,Adults & Health,City Care Agency Ltd,Home Care - Private Contractors Payment,268.24,0,
03-08-2022,Adults & Health,City Care Agency Ltd,Home Care - Private Contractors Payment,57.48,0,
03-08-2022,Adults & Health,City Care Agency Ltd,Home Care - Private Contractors Payment,871.78,0,
03-08-2022,Adults & Health,City Care Agency Ltd,Home Care - Private Contractors Payment,100.59,0,
03-08-2022,Adults & Health,City Care Agency Ltd,Home Care - Private Contractors Payment,167.65,0,
03-08-2022,Adults & Health,City Care Agency Ltd,Home Care - Private Contractors Payment,268.24,0,
03-08-2022,Adults & Health,City Care Agency Ltd,Home Care - Private Contractors Payment,268.24,0,
03-08-2022,Adults & Health,City Care Agency Ltd,Home Care - Private Contractors Payment,268.24,0,
03-08-2022,Adults & Health,City Care Agency Ltd,Home Care - Private Contractors Payment,871.78,0,
03-08-2022,Adults & Health,City Care Agency Ltd,Home Care - Private Contractors Payment,100.59,0,
03-08-2022,Adults & Health,City Care Agency Ltd,Home Care - Private Contractors Payment,119.75,0,
03-08-2022,Adults & Health,City Care Agency Ltd,Home Care - Private Contractors Payment,9.58,0,
03-08-2022,Adults & Health,City Care Agency Ltd,Daycare - Private Contractors Payment,57.48,0,
03-08-2022,Adults & Health,City Care Agency Ltd,Home Care - Private Contractors Payment,637.07,0,
03-08-2022,Adults & Health,City Care Agency Ltd,Home Care - Private Contractors Payment,268.24,0,
03-08-2022,Adults & Health,City Care Agency Ltd,Home Care - Private Contractors Payment,301.77,0,
03-08-2022,Adults & Health,City Care Agency Ltd,Home Care - Private Contractors Payment,354.46,0,
03-08-2022,Adults & Health,City Care Agency Ltd,Daycare - Private Contractors Payment,76.64,0,
03-08-2022,Adults & Health,City Care Agency Ltd,Home Care - Private Contractors Payment,234.71,0,
03-08-2022,Adults & Health,City Care Agency Ltd,Home Care - Private Contractors Payment,570.01,0,
03-08-2022,Adults & Health,City Care Agency Ltd,Home Care - Private Contractors Payment,637.07,0,
03-08-2022,Adults & Health,City Care Agency Ltd,Home Care - Private Contractors Payment,9.58,0,
03-08-2022,Adults & Health,City Care Agency Ltd,Daycare - Private Contractors Payment,57.48,0,
03-08-2022,Adults & Health,City Care Agency Ltd,Home Care - Private Contractors Payment,234.71,0,
03-08-2022,Adults & Health,City Care Agency Ltd,Home Care - Private Contractors Payment,354.46,0,
03-08-2022,Adults & Health,City Care Agency Ltd,Daycare - Private Contractors Payment,76.64,0,
03-08-2022,Adults & Health,City Care Agency Ltd,Home Care - Private Contractors Payment,570.01,0,
03-08-2022,Adults & Health,City Care Agency Ltd,Home Care - Private Contractors Payment,167.65,0,
03-08-2022,Adults & Health,City Care Agency Ltd,Home Care - Private Contractors Payment,268.24,0,
03-08-2022,Adults & Health,City Care Agency Ltd,Home Care - Private Contractors Payment,76.64,0,
03-08-2022,Adults & Health,City Care Agency Ltd,Home Care - Private Contractors Payment,268.24,0,
03-08-2022,Adults & Health,City Care Agency Ltd,Home Care - Private Contractors Payment,871.78,0,
03-08-2022,Adults & Health,City Care Agency Ltd,Home Care - Private Contractors Payment,368.83,0,
03-08-2022,Adults & Health,City Care Agency Ltd,Home Care - Private Contractors Payment,100.59,0,
03-08-2022,Adults & Health,City Care Agency Ltd,Home Care - Private Contractors Payment,57.48,0,
03-08-2022,Adults & Health,City Care Agency Ltd,Home Care - Private Contractors Payment,871.78,0,
03-08-2022,Adults & Health,City Care Agency Ltd,Home Care - Private Contractors Payment,100.59,0,
03-08-2022,Adults & Health,City Care Agency Ltd,Home Care - Private Contractors Payment,359.25,0,
03-08-2022,Adults & Health,City Care Agency Ltd,Daycare - Private Contractors Payment,57.48,0,
03-08-2022,Adults & Health,City Care Agency Ltd,Home Care - Private Contractors Payment,637.07,0,
03-08-2022,Adults & Health,City Care Agency Ltd,Home Care - Private Contractors Payment,9.58,0,
03-08-2022,Adults & Health,City Care Agency Ltd,Daycare - Private Contractors Payment,76.64,0,
03-08-2022,Adults & Health,City Care Agency Ltd,Home Care - Private Contractors Payment,234.71,0,
03-08-2022,Adults & Health,City Care Agency Ltd,Home Care - Private Contractors Payment,354.46,0,
03-08-2022,Adults & Health,City Care Agency Ltd,Home Care - Private Contractors Payment,570.01,0,
03-08-2022,Adults & Health,City Care Agency Ltd,Home Care - Private Contractors Payment,167.65,0,
03-08-2022,Adults & Health,City Care Agency Ltd,Home Care - Private Contractors Payment,57.48,0,
03-08-2022,Children and Young People,Redspot Healthcare Services Ltd,Agency Staff,1571.75,0,COMMERCIAL SUPPLIER
03-08-2022,Environment and Sustainable Transport,Greener Solutions,Highway Services,1810.1,0,VENDOR
03-08-2022,Adults & Health,Unique Personnel Uk Ltd,Home Care - Private Contractors Payment,360.36,0,COMMERCIAL SUPPLIER
03-08-2022,Adults & Health,Unique Personnel Uk Ltd,Daycare - Private Contractors Payment,374.4,0,COMMERCIAL SUPPLIER
03-08-2022,Adults & Health,Unique Personnel Uk Ltd,Home Care - Private Contractors Payment,143.36,0,COMMERCIAL SUPPLIER
03-08-2022,Adults & Health,Unique Personnel Uk Ltd,Home Care - Private Contractors Payment,222.74,0,COMMERCIAL SUPPLIER
03-08-2022,Adults & Health,Unique Personnel Uk Ltd,Daycare - Private Contractors Payment,374.4,0,COMMERCIAL SUPPLIER
03-08-2022,Adults & Health,Unique Personnel Uk Ltd,Home Care - Private Contractors Payment,51.58,0,COMMERCIAL SUPPLIER
03-08-2022,Adults & Health,Unique Personnel Uk Ltd,Home Care - Private Contractors Payment,458.64,0,COMMERCIAL SUPPLIER
03-08-2022,Adults & Health,Unique Personnel Uk Ltd,Home Care - Private Contractors Payment,458.64,0,COMMERCIAL SUPPLIER
03-08-2022,Adults & Health,Unique Personnel Uk Ltd,Home Care - Private Contractors Payment,131.04,0,COMMERCIAL SUPPLIER
03-08-2022,Adults & Health,Unique Personnel Uk Ltd,Home Care - Private Contractors Payment,131.04,0,COMMERCIAL SUPPLIER
03-08-2022,Adults & Health,Unique Personnel Uk Ltd,Daycare - Private Contractors Payment,362.48,0,COMMERCIAL SUPPLIER
03-08-2022,Adults & Health,Unique Personnel Uk Ltd,Home Care - Private Contractors Payment,131.04,0,COMMERCIAL SUPPLIER
03-08-2022,oneSource,David Richards (Printers & Distributors) Ltd,Printing,5350,0,VENDOR
03-08-2022,oneSource,David Richards (Printers & Distributors) Ltd,Printing,1650,0,VENDOR
03-08-2022,RMS,GB Macks Skips,Refuse Collection,265,0,COMMERCIAL SUPPLIER
03-08-2022,Housing Revenue Account,Resolution Property Surveyors Ltd,Consultancy Fees,450,0,COMMERCIAL SUPPLIER
03-08-2022,Environment and Sustainable Transport,Ernest Doe & Sons Ltd,Highway Services,329.5,0,COMMERCIAL SUPPLIER
03-08-2022,Environment and Sustainable Transport,Ernest Doe & Sons Ltd,Highway Services,41.5,0,COMMERCIAL SUPPLIER
03-08-2022,Environment and Sustainable Transport,Ernest Doe & Sons Ltd,Highway Services,102.2,0,COMMERCIAL SUPPLIER
03-08-2022,Environment and Sustainable Transport,Ernest Doe & Sons Ltd,Highway Services,42.2,0,COMMERCIAL SUPPLIER
03-08-2022,oneSource - Non Shared,Oracle Corporation (Uk) Ltd,Ict Licences,596.41,0,NON COMMERCIAL SUPPLIER
03-08-2022,Environment and Sustainable Transport,Enterprise Flex-E-Rent,Client Transport,615.7,0,COMMERCIAL SUPPLIER
03-08-2022,Environment and Sustainable Transport,Enterprise Flex-E-Rent,Client Transport,615.7,0,COMMERCIAL SUPPLIER
03-08-2022,Environment and Sustainable Transport,Enterprise Flex-E-Rent,Client Transport,279.39,0,COMMERCIAL SUPPLIER
03-08-2022,Environment and Sustainable Transport,Enterprise Flex-E-Rent,Client Transport,444.57,0,COMMERCIAL SUPPLIER
03-08-2022,Environment and Sustainable Transport,Enterprise Flex-E-Rent,Client Transport,444.57,0,COMMERCIAL SUPPLIER
03-08-2022,Environment and Sustainable Transport,Enterprise Flex-E-Rent,Client Transport,444.57,0,COMMERCIAL SUPPLIER
03-08-2022,Environment and Sustainable Transport,Enterprise Flex-E-Rent,Client Transport,444.57,0,COMMERCIAL SUPPLIER
03-08-2022,Environment and Sustainable Transport,Enterprise Flex-E-Rent,Client Transport,279.39,0,COMMERCIAL SUPPLIER
03-08-2022,Environment and Sustainable Transport,Enterprise Flex-E-Rent,Client Transport,444.57,0,COMMERCIAL SUPPLIER
03-08-2022,Environment and Sustainable Transport,Fountaineers Ltd,Open Spaces Works,1325.73,0,COMMERCIAL SUPPLIER
03-08-2022,Adults & Health,Br3Ak Free,Payments To Voluntary Sector,40,0,VENDOR
03-08-2022,Adults & Health,Br3Ak Free,Payments To Voluntary Sector,-2.6,0,VENDOR
03-08-2022,Adults & Health,Br3Ak Free,Daycare - Private Contractors Payment,310.12,0,VENDOR
03-08-2022,Adults & Health,Br3Ak Free,Daycare - Private Contractors Payment,310.12,0,VENDOR
03-08-2022,Adults & Health,Br3Ak Free,Daycare - Private Contractors Payment,310.12,0,VENDOR
03-08-2022,Adults & Health,Br3Ak Free,Payments To Voluntary Sector,40,0,VENDOR
03-08-2022,Adults & Health,Br3Ak Free,Daycare - Private Contractors Payment,310.12,0,VENDOR
03-08-2022,Adults & Health,Br3Ak Free,Payments To Voluntary Sector,40,0,VENDOR
03-08-2022,Adults & Health,Br3Ak Free,Daycare - Private Contractors Payment,310.12,0,VENDOR
03-08-2022,Adults & Health,Br3Ak Free,Payments To Voluntary Sector,40,0,VENDOR
03-08-2022,Adults & Health,Br3Ak Free,Daycare - Private Contractors Payment,350.12,0,VENDOR
03-08-2022,Adults & Health,Br3Ak Free,Daycare - Private Contractors Payment,350.12,0,VENDOR
03-08-2022,Adults & Health,Br3Ak Free,Daycare - Private Contractors Payment,350.12,0,VENDOR
03-08-2022,Adults & Health,Br3Ak Free,Daycare - Private Contractors Payment,307.52,0,VENDOR
03-08-2022,Adults & Health,Br3Ak Free,Daycare - Private Contractors Payment,350.12,0,VENDOR
03-08-2022,Adults & Health,Br3Ak Free,Daycare - Private Contractors Payment,350,0,VENDOR
03-08-2022,Adults & Health,Br3Ak Free,Daycare - Private Contractors Payment,350,0,VENDOR
03-08-2022,Adults & Health,Br3Ak Free,Daycare - Private Contractors Payment,350,0,VENDOR
03-08-2022,Adults & Health,Br3Ak Free,Daycare - Private Contractors Payment,350,0,VENDOR
03-08-2022,Adults & Health,Br3Ak Free,Daycare - Private Contractors Payment,308,0,VENDOR
03-08-2022,Housing Revenue Account,Ridge & Partners LLP,"Maintenance - Equipment, Furniture And Materials",900,0,
03-08-2022,Children and Young People,Educationappeals Dotcom Ltd,Professional Services - General,3487.9,0,PUBLIC CORPORATION
03-08-2022,Environment and Sustainable Transport,Blackwater Tree Specialists,Tree Works,4720,0,COMMERCIAL SUPPLIER
03-08-2022,Children and Young People,Educationappeals Dotcom Ltd,Professional Services - General,1179.59,0,PUBLIC CORPORATION
03-08-2022,Children and Young People,Educationappeals Dotcom Ltd,Professional Services - General,1271.25,0,PUBLIC CORPORATION
03-08-2022,Children and Young People,Educationappeals Dotcom Ltd,Professional Services - General,1796.24,0,PUBLIC CORPORATION
03-08-2022,Children and Young People,Educationappeals Dotcom Ltd,Professional Services - General,1246.13,0,PUBLIC CORPORATION
03-08-2022,RMS,Blackburn & CO. Ltd,Building Alterations And Materials,825,0,CIS
03-08-2022,Adults & Health,Wortley Lodge,Daycare - Private Contractors Payment,204.08,0,VENDOR
03-08-2022,Adults & Health,Wortley Lodge,Daycare - Private Contractors Payment,204,0,VENDOR
03-08-2022,Adults & Health,Wortley Lodge,Daycare - Private Contractors Payment,204,0,VENDOR
03-08-2022,Adults & Health,Wortley Lodge,Daycare - Private Contractors Payment,204,0,VENDOR
03-08-2022,Adults & Health,Wortley Lodge,Daycare - Private Contractors Payment,204.04,0,VENDOR
03-08-2022,Adults & Health,Wortley Lodge,Daycare - Private Contractors Payment,204,0,VENDOR
03-08-2022,Children and Young People,Aawristbands Ltd,"Advertising, Publicity And Marketing",303.33,0,COMMERCIAL SUPPLIER
03-08-2022,Adults & Health,Hope Superjobs Ltd,Home Care - Private Contractors Payment,196.56,0,COMMERCIAL SUPPLIER
03-08-2022,Adults & Health,Hope Superjobs Ltd,Home Care - Private Contractors Payment,196.56,0,COMMERCIAL SUPPLIER
03-08-2022,Adults & Health,Hope Superjobs Ltd,Home Care - Private Contractors Payment,191.88,0,COMMERCIAL SUPPLIER
03-08-2022,Adults & Health,Hope Superjobs Ltd,Home Care - Private Contractors Payment,196.56,0,COMMERCIAL SUPPLIER
03-08-2022,Adults & Health,Hope Superjobs Ltd,Home Care - Private Contractors Payment,196.56,0,COMMERCIAL SUPPLIER
03-08-2022,Adults & Health,Hope Superjobs Ltd,Home Care - Private Contractors Payment,163.8,0,COMMERCIAL SUPPLIER
03-08-2022,Adults & Health,Hope Superjobs Ltd,Home Care - Private Contractors Payment,196.56,0,COMMERCIAL SUPPLIER
03-08-2022,Adults & Health,Hope Superjobs Ltd,Home Care - Private Contractors Payment,196.56,0,COMMERCIAL SUPPLIER
03-08-2022,Adults & Health,Hope Superjobs Ltd,Home Care - Private Contractors Payment,196.56,0,COMMERCIAL SUPPLIER
03-08-2022,Adults & Health,Hope Superjobs Ltd,Home Care - Private Contractors Payment,23.4,0,COMMERCIAL SUPPLIER
03-08-2022,oneSource,Human Engine Limited,Consultancy Fees,49715,0,COMMERCIAL SUPPLIER
03-08-2022,RMS,Travis Perkins Trading Company Ltd,Building Alterations And Materials,305.25,0,COMMERCIAL SUPPLIER
03-08-2022,RMS,Travis Perkins Trading Company Ltd,Building Alterations And Materials,252,0,COMMERCIAL SUPPLIER
03-08-2022,RMS,Travis Perkins Trading Company Ltd,Building Alterations And Materials,58.2,0,COMMERCIAL SUPPLIER
03-08-2022,RMS,Travis Perkins Trading Company Ltd,Building Alterations And Materials,34,0,COMMERCIAL SUPPLIER
03-08-2022,RMS,Travis Perkins Trading Company Ltd,Building Alterations And Materials,121.8,0,COMMERCIAL SUPPLIER
03-08-2022,RMS,Travis Perkins Trading Company Ltd,Building Alterations And Materials,181.8,0,COMMERCIAL SUPPLIER
03-08-2022,RMS,Travis Perkins Trading Company Ltd,Building Alterations And Materials,55,0,COMMERCIAL SUPPLIER
03-08-2022,RMS,Travis Perkins Trading Company Ltd,Building Alterations And Materials,212.4,0,COMMERCIAL SUPPLIER
03-08-2022,RMS,Travis Perkins Trading Company Ltd,Building Alterations And Materials,1629,0,COMMERCIAL SUPPLIER
03-08-2022,RMS,Travis Perkins Trading Company Ltd,Building Alterations And Materials,23.6,0,COMMERCIAL SUPPLIER
03-08-2022,RMS,Travis Perkins Trading Company Ltd,Building Alterations And Materials,564.76,0,COMMERCIAL SUPPLIER
03-08-2022,RMS,Travis Perkins Trading Company Ltd,Building Alterations And Materials,4837.5,0,COMMERCIAL SUPPLIER
03-08-2022,RMS,Travis Perkins Trading Company Ltd,Building Alterations And Materials,389,0,COMMERCIAL SUPPLIER
03-08-2022,RMS,Travis Perkins Trading Company Ltd,Building Alterations And Materials,312,0,COMMERCIAL SUPPLIER
03-08-2022,RMS,Travis Perkins Trading Company Ltd,Building Alterations And Materials,449,0,COMMERCIAL SUPPLIER
03-08-2022,RMS,Travis Perkins Trading Company Ltd,Building Alterations And Materials,2452.5,0,COMMERCIAL SUPPLIER
03-08-2022,RMS,Travis Perkins Trading Company Ltd,Building Alterations And Materials,226,0,COMMERCIAL SUPPLIER
03-08-2022,RMS,Travis Perkins Trading Company Ltd,Building Alterations And Materials,287.7,0,COMMERCIAL SUPPLIER
03-08-2022,RMS,Travis Perkins Trading Company Ltd,Building Alterations And Materials,190.6,0,COMMERCIAL SUPPLIER
03-08-2022,RMS,Travis Perkins Trading Company Ltd,Building Alterations And Materials,124.8,0,COMMERCIAL SUPPLIER
03-08-2022,RMS,Travis Perkins Trading Company Ltd,Building Alterations And Materials,196.5,0,COMMERCIAL SUPPLIER
03-08-2022,RMS,Travis Perkins Trading Company Ltd,Building Alterations And Materials,104.5,0,COMMERCIAL SUPPLIER
03-08-2022,RMS,Travis Perkins Trading Company Ltd,Building Alterations And Materials,1807.6,0,COMMERCIAL SUPPLIER
03-08-2022,RMS,Travis Perkins Trading Company Ltd,Building Alterations And Materials,482.4,0,COMMERCIAL SUPPLIER
03-08-2022,RMS,Travis Perkins Trading Company Ltd,Building Alterations And Materials,771,0,COMMERCIAL SUPPLIER
03-08-2022,oneSource - Non Shared,Claremore Mechanical Services Limited,Building Alterations And Materials,924.63,0,CIS
03-08-2022,RMS,J B Jessop East Ham Ltd,Building Alterations And Materials,232.8,0,VENDOR
03-08-2022,Inclusive Economy & Housing,British Gas Business,Electricity,6508.46,0,COMMERCIAL SUPPLIER
03-08-2022,Children and Young People,Sayers (Car Hire),Contact Costs (Placements),353,0,VENDOR
03-08-2022,Environment and Sustainable Transport,Bucher Municipal Limited,Highway Services,36.42,0,COMMERCIAL SUPPLIER
03-08-2022,Environment and Sustainable Transport,Bucher Municipal Limited,Highway Services,203.11,0,COMMERCIAL SUPPLIER
03-08-2022,Children and Young People,Sayers (Car Hire),Contact Costs (Placements),500,0,VENDOR
03-08-2022,oneSource - Non Shared,Oakleaf Surveying Ltd,Surveys,500,0,COMMERCIAL SUPPLIER
03-08-2022,oneSource - Non Shared,Oakleaf Surveying Ltd,Surveys,500,0,COMMERCIAL SUPPLIER
03-08-2022,oneSource - Non Shared,Oakleaf Surveying Ltd,Surveys,500,0,COMMERCIAL SUPPLIER
03-08-2022,Adults & Health,City Care Agency Ltd,Home Care - Private Contractors Payment,262.08,0,
03-08-2022,Adults & Health,City Care Agency Ltd,Home Care - Private Contractors Payment,294.84,0,
03-08-2022,Adults & Health,City Care Agency Ltd,Home Care - Private Contractors Payment,505.44,0,
03-08-2022,Adults & Health,City Care Agency Ltd,Home Care - Private Contractors Payment,556.92,0,
03-08-2022,Adults & Health,City Care Agency Ltd,Home Care - Private Contractors Payment,163.8,0,
03-08-2022,Adults & Health,City Care Agency Ltd,Home Care - Private Contractors Payment,98.28,0,
03-08-2022,Adults & Health,City Care Agency Ltd,Home Care - Private Contractors Payment,851.76,0,
03-08-2022,Adults & Health,City Care Agency Ltd,Home Care - Private Contractors Payment,168.48,0,
03-08-2022,Adults & Health,City Care Agency Ltd,Home Care - Private Contractors Payment,163.8,0,
03-08-2022,Adults & Health,City Care Agency Ltd,Home Care - Private Contractors Payment,46.8,0,
03-08-2022,Adults & Health,City Care Agency Ltd,Daycare - Private Contractors Payment,74.88,0,
03-08-2022,Adults & Health,City Care Agency Ltd,Home Care - Private Contractors Payment,262.08,0,
03-08-2022,Adults & Health,City Care Agency Ltd,Home Care - Private Contractors Payment,84.24,0,
03-08-2022,Adults & Health,City Care Agency Ltd,Home Care - Private Contractors Payment,46.8,0,
03-08-2022,Adults & Health,City Care Agency Ltd,Home Care - Private Contractors Payment,411.84,0,
03-08-2022,Adults & Health,City Care Agency Ltd,Daycare - Private Contractors Payment,74.88,0,
03-08-2022,Adults & Health,City Care Agency Ltd,Home Care - Private Contractors Payment,163.8,0,
03-08-2022,Adults & Health,City Care Agency Ltd,Home Care - Private Contractors Payment,98.28,0,
03-08-2022,Adults & Health,City Care Agency Ltd,Home Care - Private Contractors Payment,168.48,0,
03-08-2022,Adults & Health,City Care Agency Ltd,Home Care - Private Contractors Payment,851.76,0,
03-08-2022,Adults & Health,City Care Agency Ltd,Home Care - Private Contractors Payment,346.32,0,
03-08-2022,Adults & Health,City Care Agency Ltd,Home Care - Private Contractors Payment,589.68,0,
03-08-2022,Adults & Health,City Care Agency Ltd,Home Care - Private Contractors Payment,622.44,0,
03-08-2022,Adults & Health,City Care Agency Ltd,Home Care - Private Contractors Payment,46.8,0,
03-08-2022,Adults & Health,City Care Agency Ltd,Daycare - Private Contractors Payment,74.88,0,
03-08-2022,Adults & Health,City Care Agency Ltd,Home Care - Private Contractors Payment,524.16,0,
03-08-2022,Adults & Health,City Care Agency Ltd,Home Care - Private Contractors Payment,262.08,0,
03-08-2022,Adults & Health,City Care Agency Ltd,Home Care - Private Contractors Payment,56.16,0,
03-08-2022,Adults & Health,City Care Agency Ltd,Home Care - Private Contractors Payment,224.64,0,
03-08-2022,Adults & Health,City Care Agency Ltd,Home Care - Private Contractors Payment,556.92,0,
03-08-2022,Adults & Health,City Care Agency Ltd,Home Care - Private Contractors Payment,163.8,0,
03-08-2022,Adults & Health,City Care Agency Ltd,Home Care - Private Contractors Payment,18.72,0,
03-08-2022,Adults & Health,City Care Agency Ltd,Home Care - Private Contractors Payment,294.84,0,
03-08-2022,Adults & Health,City Care Agency Ltd,Home Care - Private Contractors Payment,163.8,0,
03-08-2022,Adults & Health,City Care Agency Ltd,Daycare - Private Contractors Payment,74.88,0,
03-08-2022,Adults & Health,City Care Agency Ltd,Home Care - Private Contractors Payment,56.16,0,
03-08-2022,Adults & Health,City Care Agency Ltd,Home Care - Private Contractors Payment,56.16,0,
03-08-2022,Adults & Health,City Care Agency Ltd,Home Care - Private Contractors Payment,163.8,0,
03-08-2022,Adults & Health,City Care Agency Ltd,Home Care - Private Contractors Payment,18.72,0,
03-08-2022,Adults & Health,City Care Agency Ltd,Home Care - Private Contractors Payment,294.84,0,
03-08-2022,Adults & Health,City Care Agency Ltd,Home Care - Private Contractors Payment,524.16,0,
03-08-2022,Adults & Health,City Care Agency Ltd,Home Care - Private Contractors Payment,556.92,0,
03-08-2022,Adults & Health,City Care Agency Ltd,Home Care - Private Contractors Payment,98.28,0,
03-08-2022,Adults & Health,City Care Agency Ltd,Home Care - Private Contractors Payment,168.48,0,
03-08-2022,Adults & Health,City Care Agency Ltd,Home Care - Private Contractors Payment,851.76,0,
03-08-2022,Adults & Health,City Care Agency Ltd,Home Care - Private Contractors Payment,74.88,0,
03-08-2022,Adults & Health,City Care Agency Ltd,Home Care - Private Contractors Payment,102.96,0,
03-08-2022,Adults & Health,City Care Agency Ltd,Home Care - Private Contractors Payment,262.08,0,
03-08-2022,Adults & Health,City Care Agency Ltd,Home Care - Private Contractors Payment,84.24,0,
03-08-2022,Adults & Health,City Care Agency Ltd,Home Care - Private Contractors Payment,56.16,0,
03-08-2022,Adults & Health,City Care Agency Ltd,Home Care - Private Contractors Payment,163.8,0,
03-08-2022,Adults & Health,City Care Agency Ltd,Home Care - Private Contractors Payment,524.16,0,
03-08-2022,Adults & Health,City Care Agency Ltd,Home Care - Private Contractors Payment,18.72,0,
03-08-2022,Adults & Health,City Care Agency Ltd,Home Care - Private Contractors Payment,294.84,0,
03-08-2022,Adults & Health,City Care Agency Ltd,Home Care - Private Contractors Payment,556.92,0,
03-08-2022,Adults & Health,City Care Agency Ltd,Home Care - Private Contractors Payment,163.8,0,
03-08-2022,Adults & Health,City Care Agency Ltd,Home Care - Private Contractors Payment,98.28,0,
03-08-2022,Adults & Health,City Care Agency Ltd,Home Care - Private Contractors Payment,168.48,0,
03-08-2022,Adults & Health,City Care Agency Ltd,Home Care - Private Contractors Payment,851.76,0,
03-08-2022,Adults & Health,City Care Agency Ltd,Home Care - Private Contractors Payment,622.44,0,
03-08-2022,Adults & Health,City Care Agency Ltd,Home Care - Private Contractors Payment,346.32,0,
03-08-2022,Adults & Health,City Care Agency Ltd,Home Care - Private Contractors Payment,1095.12,0,
03-08-2022,RMS,S & S Plastics Ltd,Building Alterations And Materials,3042.94,0,VENDOR
03-08-2022,RMS,AMA Security Ltd,Private Contractors Payment - Other,210,0,COMMERCIAL SUPPLIER
03-08-2022,RMS,AMA Security Ltd,Private Contractors Payment - Other,380,0,COMMERCIAL SUPPLIER
03-08-2022,RMS,AMA Security Ltd,Private Contractors Payment - Other,1501,0,COMMERCIAL SUPPLIER
03-08-2022,RMS,Rehau Ltd,Building Alterations And Materials,21215.6,0,VENDOR
03-08-2022,oneSource - Non Shared,Castle Water Ltd,Water And Sewerage,14587.73,0,COMMERCIAL SUPPLIER
03-08-2022,Adults & Health,City Care Agency Ltd,Home Care - Private Contractors Payment,56.16,0,
03-08-2022,Adults & Health,City Care Agency Ltd,Home Care - Private Contractors Payment,851.76,0,
03-08-2022,Adults & Health,City Care Agency Ltd,Home Care - Private Contractors Payment,294.84,0,
03-08-2022,Adults & Health,City Care Agency Ltd,Home Care - Private Contractors Payment,224.64,0,
03-08-2022,Adults & Health,City Care Agency Ltd,Home Care - Private Contractors Payment,163.8,0,
03-08-2022,Adults & Health,City Care Agency Ltd,Home Care - Private Contractors Payment,98.28,0,
03-08-2022,Adults & Health,City Care Agency Ltd,Home Care - Private Contractors Payment,93.6,0,
03-08-2022,Adults & Health,City Care Agency Ltd,Daycare - Private Contractors Payment,74.88,0,
03-08-2022,Adults & Health,City Care Agency Ltd,Home Care - Private Contractors Payment,346.32,0,
03-08-2022,Adults & Health,City Care Agency Ltd,Home Care - Private Contractors Payment,163.8,0,
03-08-2022,Adults & Health,City Care Agency Ltd,Home Care - Private Contractors Payment,556.92,0,
03-08-2022,Adults & Health,City Care Agency Ltd,Home Care - Private Contractors Payment,262.08,0,
03-08-2022,Adults & Health,City Care Agency Ltd,Home Care - Private Contractors Payment,622.44,0,
03-08-2022,Adults & Health,City Care Agency Ltd,Home Care - Private Contractors Payment,98.28,0,
03-08-2022,Adults & Health,City Care Agency Ltd,Daycare - Private Contractors Payment,74.88,0,
03-08-2022,Adults & Health,City Care Agency Ltd,Home Care - Private Contractors Payment,346.32,0,
03-08-2022,Adults & Health,City Care Agency Ltd,Home Care - Private Contractors Payment,163.8,0,
03-08-2022,Adults & Health,City Care Agency Ltd,Home Care - Private Contractors Payment,622.44,0,
03-08-2022,Adults & Health,City Care Agency Ltd,Home Care - Private Contractors Payment,556.92,0,
03-08-2022,Adults & Health,City Care Agency Ltd,Home Care - Private Contractors Payment,262.08,0,
03-08-2022,Adults & Health,City Care Agency Ltd,Respite Care - Private Contractors Payment,168.48,0,
03-08-2022,Adults & Health,City Care Agency Ltd,Home Care - Private Contractors Payment,70.2,0,
03-08-2022,Adults & Health,City Care Agency Ltd,Home Care - Private Contractors Payment,622.44,0,
03-08-2022,Adults & Health,City Care Agency Ltd,Home Care - Private Contractors Payment,556.92,0,
03-08-2022,Adults & Health,City Care Agency Ltd,Home Care - Private Contractors Payment,336.96,0,
03-08-2022,Adults & Health,City Care Agency Ltd,Home Care - Private Contractors Payment,262.08,0,
03-08-2022,Adults & Health,City Care Agency Ltd,Home Care - Private Contractors Payment,262.08,0,
03-08-2022,Adults & Health,City Care Agency Ltd,Home Care - Private Contractors Payment,98.28,0,
03-08-2022,Adults & Health,City Care Agency Ltd,Home Care - Private Contractors Payment,346.32,0,
03-08-2022,Adults & Health,City Care Agency Ltd,Home Care - Private Contractors Payment,851.76,0,
03-08-2022,Adults & Health,City Care Agency Ltd,Home Care - Private Contractors Payment,163.8,0,
03-08-2022,Adults & Health,City Care Agency Ltd,Home Care - Private Contractors Payment,56.16,0,
03-08-2022,Adults & Health,City Care Agency Ltd,Home Care - Private Contractors Payment,154.44,0,
03-08-2022,Adults & Health,City Care Agency Ltd,Daycare - Private Contractors Payment,74.88,0,
03-08-2022,Adults & Health,City Care Agency Ltd,Home Care - Private Contractors Payment,163.8,0,
03-08-2022,Adults & Health,City Care Agency Ltd,Home Care - Private Contractors Payment,163.8,0,
03-08-2022,Adults & Health,City Care Agency Ltd,Daycare - Private Contractors Payment,74.88,0,
03-08-2022,Adults & Health,City Care Agency Ltd,Home Care - Private Contractors Payment,556.92,0,
03-08-2022,Adults & Health,City Care Agency Ltd,Home Care - Private Contractors Payment,56.16,0,
03-08-2022,Adults & Health,City Care Agency Ltd,Home Care - Private Contractors Payment,294.84,0,
03-08-2022,Adults & Health,City Care Agency Ltd,Home Care - Private Contractors Payment,622.44,0,
03-08-2022,Adults & Health,City Care Agency Ltd,Home Care - Private Contractors Payment,262.08,0,
03-08-2022,Adults & Health,City Care Agency Ltd,Home Care - Private Contractors Payment,262.08,0,
03-08-2022,Adults & Health,City Care Agency Ltd,Home Care - Private Contractors Payment,98.28,0,
03-08-2022,Adults & Health,City Care Agency Ltd,Home Care - Private Contractors Payment,851.76,0,
03-08-2022,Adults & Health,City Care Agency Ltd,Home Care - Private Contractors Payment,346.32,0,
03-08-2022,Adults & Health,City Care Agency Ltd,Home Care - Private Contractors Payment,262.08,0,
03-08-2022,Adults & Health,City Care Agency Ltd,Home Care - Private Contractors Payment,262.08,0,
03-08-2022,Adults & Health,City Care Agency Ltd,Home Care - Private Contractors Payment,851.76,0,
03-08-2022,Adults & Health,City Care Agency Ltd,Home Care - Private Contractors Payment,56.16,0,
03-08-2022,Adults & Health,City Care Agency Ltd,Home Care - Private Contractors Payment,360.36,0,
03-08-2022,Adults & Health,City Care Agency Ltd,Home Care - Private Contractors Payment,294.84,0,
03-08-2022,Adults & Health,City Care Agency Ltd,Home Care - Private Contractors Payment,163.8,0,
03-08-2022,Marketing,Nzinga Dance Troupe,Events,1080,0,NON COMMERCIAL SUPPLIER
03-08-2022,Housing Revenue Account,Moore's (Fencing & Building services Ltd,"Maintenance - Equipment, Furniture And Materials",3664.57,0,COMMERCIAL SUPPLIER
03-08-2022,RMS,Benchmarx Kitchens and Joinery,Building Alterations And Materials,342.71,0,COMMERCIAL SUPPLIER
03-08-2022,RMS,Benchmarx Kitchens and Joinery,Building Alterations And Materials,990.08,0,COMMERCIAL SUPPLIER
03-08-2022,Adults & Health,The Regard Partnership Ltd,Daycare - Private Contractors Payment,198.04,0,NON COMMERCIAL SUPPLIER
03-08-2022,Adults & Health,The Regard Partnership Ltd,Daycare - Private Contractors Payment,198.04,0,NON COMMERCIAL SUPPLIER
03-08-2022,Adults & Health,The Regard Partnership Ltd,Daycare - Private Contractors Payment,197.88,0,NON COMMERCIAL SUPPLIER
03-08-2022,Adults & Health,The Regard Partnership Ltd,Daycare - Private Contractors Payment,198.04,0,NON COMMERCIAL SUPPLIER
03-08-2022,Dedicated Schools Budget,Personal Information - Redacted,Premises Hire - Facilities,5542,0,VENDOR
03-08-2022,Dedicated Schools Budget,Personal Information - Redacted,Independent Units Within The Council,94450,0,VENDOR
03-08-2022,Dedicated Schools Budget,Personal Information - Redacted,Independent Units Within The Council,269975,0,NON COMMERCIAL SUPPLIER
03-08-2022,Dedicated Schools Budget,Personal Information - Redacted,Independent Units Within The Council,190699,0,VENDOR
03-08-2022,Dedicated Schools Budget,Personal Information - Redacted,Independent Units Within The Council,139943,0,VENDOR
03-08-2022,Dedicated Schools Budget,Personal Information - Redacted,Independent Units Within The Council,133541,0,VENDOR
03-08-2022,Dedicated Schools Budget,Personal Information - Redacted,Independent Units Within The Council,435228,0,NON COMMERCIAL SUPPLIER
03-08-2022,Dedicated Schools Budget,Personal Information - Redacted,Independent Units Within The Council,276089,0,VENDOR
03-08-2022,Dedicated Schools Budget,Personal Information - Redacted,Independent Units Within The Council,160035,0,VENDOR
03-08-2022,Dedicated Schools Budget,Personal Information - Redacted,Independent Units Within The Council,270014,0,VENDOR
03-08-2022,Dedicated Schools Budget,Personal Information - Redacted,Independent Units Within The Council,233991,0,VENDOR
03-08-2022,Dedicated Schools Budget,Personal Information - Redacted,Independent Units Within The Council,319248,0,VENDOR
03-08-2022,Dedicated Schools Budget,Personal Information - Redacted,Independent Units Within The Council,464097,0,LOCAL AUTHORITY SERVICES
03-08-2022,Dedicated Schools Budget,Personal Information - Redacted,Independent Units Within The Council,265760,0,VENDOR
03-08-2022,Dedicated Schools Budget,Personal Information - Redacted,Independent Units Within The Council,335916,0,VENDOR
03-08-2022,Dedicated Schools Budget,Personal Information - Redacted,Independent Units Within The Council,356106,0,VENDOR
03-08-2022,Dedicated Schools Budget,Personal Information - Redacted,Independent Units Within The Council,906295,0,VENDOR
03-08-2022,Dedicated Schools Budget,Personal Information - Redacted,Independent Units Within The Council,461493,0,VENDOR
03-08-2022,Dedicated Schools Budget,Personal Information - Redacted,Independent Units Within The Council,321034,0,LOCAL AUTHORITY SERVICES
03-08-2022,Dedicated Schools Budget,Personal Information - Redacted,Independent Units Within The Council,54123,0,VENDOR
03-08-2022,Dedicated Schools Budget,Personal Information - Redacted,Independent Units Within The Council,106287,0,VENDOR
03-08-2022,Dedicated Schools Budget,Personal Information - Redacted,Independent Units Within The Council,196852,0,VENDOR
03-08-2022,Dedicated Schools Budget,Personal Information - Redacted,Independent Units Within The Council,253011,0,COMMERCIAL SUPPLIER
03-08-2022,Dedicated Schools Budget,Personal Information - Redacted,Independent Units Within The Council,397409,0,VENDOR
03-08-2022,Dedicated Schools Budget,Personal Information - Redacted,Independent Units Within The Council,82077,0,VENDOR
03-08-2022,Dedicated Schools Budget,Personal Information - Redacted,Independent Units Within The Council,82072,0,VENDOR
03-08-2022,Dedicated Schools Budget,Personal Information - Redacted,Independent Units Within The Council,104300,0,COMMERCIAL SUPPLIER
03-08-2022,Dedicated Schools Budget,Personal Information - Redacted,Independent Units Within The Council,377651,0,VENDOR
03-08-2022,Dedicated Schools Budget,Personal Information - Redacted,Independent Units Within The Council,1027413,0,VENDOR
03-08-2022,Dedicated Schools Budget,Personal Information - Redacted,Independent Units Within The Council,767218,0,VENDOR
03-08-2022,Dedicated Schools Budget,Personal Information - Redacted,Independent Units Within The Council,130843,0,VENDOR
03-08-2022,Dedicated Schools Budget,Personal Information - Redacted,Independent Units Within The Council,104164,0,VENDOR
03-08-2022,Dedicated Schools Budget,Personal Information - Redacted,Independent Units Within The Council,207710,0,VENDOR
03-08-2022,Dedicated Schools Budget,Personal Information - Redacted,Independent Units Within The Council,260424,0,VENDOR
03-08-2022,Dedicated Schools Budget,Personal Information - Redacted,Independent Units Within The Council,282786,0,VENDOR
03-08-2022,Dedicated Schools Budget,Personal Information - Redacted,Independent Units Within The Council,203323,0,NON COMMERCIAL SUPPLIER
03-08-2022,Dedicated Schools Budget,Personal Information - Redacted,Independent Units Within The Council,85940,0,VENDOR
03-08-2022,Dedicated Schools Budget,Personal Information - Redacted,Independent Units Within The Council,103646,0,VENDOR
03-08-2022,Dedicated Schools Budget,Personal Information - Redacted,Independent Units Within The Council,353147,0,VENDOR
03-08-2022,Dedicated Schools Budget,Personal Information - Redacted,Independent Units Within The Council,972667,0,NON COMMERCIAL SUPPLIER
03-08-2022,Dedicated Schools Budget,Personal Information - Redacted,Independent Units Within The Council,714507,0,NON COMMERCIAL SUPPLIER
03-08-2022,Dedicated Schools Budget,Personal Information - Redacted,Independent Units Within The Council,123789,0,VENDOR
03-08-2022,Dedicated Schools Budget,Personal Information - Redacted,Independent Units Within The Council,110693,0,NON COMMERCIAL SUPPLIER
03-08-2022,Dedicated Schools Budget,Personal Information - Redacted,Independent Units Within The Council,303172,0,VENDOR
03-08-2022,Dedicated Schools Budget,Personal Information - Redacted,Independent Units Within The Council,121234,0,VENDOR
03-08-2022,Dedicated Schools Budget,Personal Information - Redacted,Independent Units Within The Council,321432,0,VENDOR
03-08-2022,Dedicated Schools Budget,Personal Information - Redacted,Independent Units Within The Council,175510,0,VENDOR
03-08-2022,Dedicated Schools Budget,Personal Information - Redacted,Independent Units Within The Council,256636,0,NON COMMERCIAL SUPPLIER
03-08-2022,Dedicated Schools Budget,Personal Information - Redacted,Professional Services - General,8371.45,0,VENDOR
03-08-2022,Dedicated Schools Budget,Personal Information - Redacted,Professional Services - General,11000,0,VENDOR
03-08-2022,Dedicated Schools Budget,Personal Information - Redacted,Professional Services - General,18321,0,VENDOR
03-08-2022,Dedicated Schools Budget,Personal Information - Redacted,Professional Services - General,7860.87,0,VENDOR
03-08-2022,Children and Young People,Cambian Childcare Ltd,Residential Placements - Private Contractors Payment,5450,0,COMMERCIAL SUPPLIER
03-08-2022,Children and Young People,Cambian Childcare Ltd,Residential Placements - Private Contractors Payment,5450,0,COMMERCIAL SUPPLIER
03-08-2022,Children and Young People,Cambian Childcare Ltd,Residential Placements - Private Contractors Payment,2335.67,0,COMMERCIAL SUPPLIER
03-08-2022,Children and Young People,Cambian Childcare Ltd,Residential Placements - Private Contractors Payment,5450,0,COMMERCIAL SUPPLIER
03-08-2022,Children and Young People,Cambian Childcare Ltd,Residential Placements - Private Contractors Payment,5450,0,COMMERCIAL SUPPLIER
03-08-2022,RMS,Personal Information - Redacted,Compensation - Ombudsman,850,0,INDIVIDUALS
03-08-2022,Adults & Health,Ask Care Ltd,Home Care - Private Contractors Payment,109.38,0,VENDOR
03-08-2022,Adults & Health,Ask Care Ltd,Home Care - Private Contractors Payment,109.38,0,VENDOR
03-08-2022,Adults & Health,Ask Care Ltd,Home Care - Private Contractors Payment,109.38,0,VENDOR
03-08-2022,Adults & Health,Ask Care Ltd,Home Care - Private Contractors Payment,109.38,0,VENDOR
03-08-2022,Adults & Health,Ask Care Ltd,Home Care - Private Contractors Payment,109.36,0,VENDOR
03-08-2022,Adults & Health,Ask Care Ltd,Home Care - Private Contractors Payment,65.61,0,VENDOR
03-08-2022,Adults & Health,Ask Care Ltd,Home Care - Private Contractors Payment,62.5,0,VENDOR
03-08-2022,Adults & Health,Ask Care Ltd,Home Care - Private Contractors Payment,18.75,0,VENDOR
03-08-2022,Adults & Health,Ask Care Ltd,Home Care - Private Contractors Payment,65.63,0,VENDOR
03-08-2022,Adults & Health,Ask Care Ltd,Home Care - Private Contractors Payment,65.63,0,VENDOR
03-08-2022,Adults & Health,Ask Care Ltd,Home Care - Private Contractors Payment,65.63,0,VENDOR
03-08-2022,Adults & Health,Ask Care Ltd,Daycare - Private Contractors Payment,31.25,0,VENDOR
03-08-2022,Adults & Health,Ask Care Ltd,Home Care - Private Contractors Payment,175,0,VENDOR
03-08-2022,Adults & Health,Ask Care Ltd,Daycare - Private Contractors Payment,31.25,0,VENDOR
03-08-2022,Adults & Health,Ask Care Ltd,Home Care - Private Contractors Payment,175,0,VENDOR
03-08-2022,Adults & Health,Ask Care Ltd,Home Care - Private Contractors Payment,175,0,VENDOR
03-08-2022,Adults & Health,Ask Care Ltd,Home Care - Private Contractors Payment,175,0,VENDOR
03-08-2022,Adults & Health,Ask Care Ltd,Daycare - Private Contractors Payment,31.25,0,VENDOR
03-08-2022,Adults & Health,Ask Care Ltd,Daycare - Private Contractors Payment,31.25,0,VENDOR
03-08-2022,Adults & Health,Ask Care Ltd,Home Care - Private Contractors Payment,175,0,VENDOR
03-08-2022,Adults & Health,Ask Care Ltd,Daycare - Private Contractors Payment,31.25,0,VENDOR
03-08-2022,Adults & Health,Ask Care Ltd,Home Care - Private Contractors Payment,481.25,0,VENDOR
03-08-2022,Adults & Health,Ask Care Ltd,Home Care - Private Contractors Payment,481.25,0,VENDOR
03-08-2022,Adults & Health,Ask Care Ltd,Home Care - Private Contractors Payment,481.25,0,VENDOR
03-08-2022,Adults & Health,Ask Care Ltd,Home Care - Private Contractors Payment,481.25,0,VENDOR
03-08-2022,Adults & Health,Ask Care Ltd,Home Care - Private Contractors Payment,481.25,0,VENDOR
03-08-2022,Adults & Health,Ask Care Ltd,Home Care - Private Contractors Payment,656.25,0,VENDOR
03-08-2022,Adults & Health,Ask Care Ltd,Home Care - Private Contractors Payment,656.25,0,VENDOR
03-08-2022,Adults & Health,Ask Care Ltd,Home Care - Private Contractors Payment,656.25,0,VENDOR
03-08-2022,Adults & Health,Ask Care Ltd,Home Care - Private Contractors Payment,656.25,0,VENDOR
03-08-2022,Adults & Health,Ask Care Ltd,Home Care - Private Contractors Payment,656.25,0,VENDOR
03-08-2022,Adults & Health,Ask Care Ltd,Home Care - Private Contractors Payment,618.45,0,VENDOR
03-08-2022,Adults & Health,Ask Care Ltd,Home Care - Private Contractors Payment,1060.2,0,VENDOR
03-08-2022,Adults & Health,Ask Care Ltd,Home Care - Private Contractors Payment,618.45,0,VENDOR
03-08-2022,Adults & Health,Ask Care Ltd,Home Care - Private Contractors Payment,130.95,0,VENDOR
03-08-2022,Adults & Health,Ask Care Ltd,Home Care - Private Contractors Payment,195.3,0,VENDOR
03-08-2022,Adults & Health,Ask Care Ltd,Home Care - Private Contractors Payment,334.8,0,VENDOR
03-08-2022,Adults & Health,Ask Care Ltd,Home Care - Private Contractors Payment,37.5,0,VENDOR
03-08-2022,Adults & Health,Ask Care Ltd,Home Care - Private Contractors Payment,195.3,0,VENDOR
03-08-2022,Adults & Health,Ask Care Ltd,Home Care - Private Contractors Payment,162.75,0,VENDOR
03-08-2022,Adults & Health,Ask Care Ltd,Home Care - Private Contractors Payment,162.75,0,VENDOR
03-08-2022,Adults & Health,Ask Care Ltd,Home Care - Private Contractors Payment,162.75,0,VENDOR
03-08-2022,Adults & Health,Ask Care Ltd,Home Care - Private Contractors Payment,162.75,0,VENDOR
03-08-2022,Adults & Health,Ask Care Ltd,Home Care - Private Contractors Payment,162.75,0,VENDOR
03-08-2022,Adults & Health,Ask Care Ltd,Home Care - Private Contractors Payment,292.95,0,VENDOR
03-08-2022,Adults & Health,Ask Care Ltd,Home Care - Private Contractors Payment,292.95,0,VENDOR
03-08-2022,Adults & Health,Ask Care Ltd,Home Care - Private Contractors Payment,292.95,0,VENDOR
03-08-2022,Adults & Health,Ask Care Ltd,Home Care - Private Contractors Payment,292.95,0,VENDOR
03-08-2022,Adults & Health,Ask Care Ltd,Home Care - Private Contractors Payment,292.95,0,VENDOR
03-08-2022,Adults & Health,Ask Care Ltd,Home Care - Private Contractors Payment,227.85,0,VENDOR
03-08-2022,Adults & Health,Ask Care Ltd,Daycare - Private Contractors Payment,93,0,VENDOR
03-08-2022,Adults & Health,Ask Care Ltd,Home Care - Private Contractors Payment,18.6,0,VENDOR
03-08-2022,Adults & Health,Ask Care Ltd,Home Care - Private Contractors Payment,227.85,0,VENDOR
03-08-2022,Adults & Health,Ask Care Ltd,Daycare - Private Contractors Payment,93,0,VENDOR
03-08-2022,Adults & Health,Ask Care Ltd,Home Care - Private Contractors Payment,18.6,0,VENDOR
03-08-2022,Adults & Health,Ask Care Ltd,Home Care - Private Contractors Payment,227.85,0,VENDOR
03-08-2022,Adults & Health,Ask Care Ltd,Daycare - Private Contractors Payment,93,0,VENDOR
03-08-2022,Adults & Health,Ask Care Ltd,Home Care - Private Contractors Payment,18.6,0,VENDOR
03-08-2022,Adults & Health,Ask Care Ltd,Home Care - Private Contractors Payment,227.85,0,VENDOR
03-08-2022,Adults & Health,Ask Care Ltd,Home Care - Private Contractors Payment,18.6,0,VENDOR
03-08-2022,Adults & Health,Ask Care Ltd,Home Care - Private Contractors Payment,227.85,0,VENDOR
03-08-2022,Adults & Health,Ask Care Ltd,Daycare - Private Contractors Payment,93,0,VENDOR
03-08-2022,Adults & Health,Ask Care Ltd,Daycare - Private Contractors Payment,93,0,VENDOR
03-08-2022,Adults & Health,Ask Care Ltd,Home Care - Private Contractors Payment,18.6,0,VENDOR
03-08-2022,Adults & Health,Ask Care Ltd,Home Care - Private Contractors Payment,209.25,0,VENDOR
03-08-2022,Adults & Health,Ask Care Ltd,Home Care - Private Contractors Payment,209.25,0,VENDOR
03-08-2022,Adults & Health,Ask Care Ltd,Home Care - Private Contractors Payment,209.25,0,VENDOR
03-08-2022,Adults & Health,Ask Care Ltd,Home Care - Private Contractors Payment,209.25,0,VENDOR
03-08-2022,Adults & Health,Ask Care Ltd,Home Care - Private Contractors Payment,209.25,0,VENDOR
03-08-2022,Adults & Health,Ask Care Ltd,Home Care - Private Contractors Payment,130.2,0,VENDOR
03-08-2022,Adults & Health,Ask Care Ltd,Home Care - Private Contractors Payment,130.2,0,VENDOR
03-08-2022,Adults & Health,Ask Care Ltd,Home Care - Private Contractors Payment,18.6,0,VENDOR
03-08-2022,Adults & Health,Ask Care Ltd,Home Care - Private Contractors Payment,130.2,0,VENDOR
03-08-2022,Adults & Health,Ask Care Ltd,Home Care - Private Contractors Payment,18.6,0,VENDOR
03-08-2022,Adults & Health,Ask Care Ltd,Home Care - Private Contractors Payment,130.2,0,VENDOR
03-08-2022,Adults & Health,Ask Care Ltd,Home Care - Private Contractors Payment,18.6,0,VENDOR
03-08-2022,Adults & Health,Ask Care Ltd,Home Care - Private Contractors Payment,18.6,0,VENDOR
03-08-2022,Adults & Health,Ask Care Ltd,Home Care - Private Contractors Payment,130.2,0,VENDOR
03-08-2022,Adults & Health,Ask Care Ltd,Home Care - Private Contractors Payment,18.6,0,VENDOR
03-08-2022,Adults & Health,Ask Care Ltd,Daycare - Private Contractors Payment,74.4,0,VENDOR
03-08-2022,Adults & Health,Ask Care Ltd,Home Care - Private Contractors Payment,162.75,0,VENDOR
03-08-2022,Adults & Health,Ask Care Ltd,Home Care - Private Contractors Payment,162.75,0,VENDOR
03-08-2022,Adults & Health,Ask Care Ltd,Daycare - Private Contractors Payment,74.4,0,VENDOR
03-08-2022,Adults & Health,Ask Care Ltd,Daycare - Private Contractors Payment,74.4,0,VENDOR
03-08-2022,Adults & Health,Ask Care Ltd,Home Care - Private Contractors Payment,162.75,0,VENDOR
03-08-2022,Adults & Health,Ask Care Ltd,Daycare - Private Contractors Payment,74.4,0,VENDOR
03-08-2022,Adults & Health,Ask Care Ltd,Home Care - Private Contractors Payment,162.75,0,VENDOR
03-08-2022,Adults & Health,Ask Care Ltd,Daycare - Private Contractors Payment,74.4,0,VENDOR
03-08-2022,Adults & Health,Ask Care Ltd,Home Care - Private Contractors Payment,162.75,0,VENDOR
03-08-2022,Adults & Health,Ask Care Ltd,Home Care - Private Contractors Payment,520.8,0,VENDOR
03-08-2022,Adults & Health,Ask Care Ltd,Home Care - Private Contractors Payment,520.8,0,VENDOR
03-08-2022,Adults & Health,Ask Care Ltd,Home Care - Private Contractors Payment,520.8,0,VENDOR
03-08-2022,Adults & Health,Ask Care Ltd,Home Care - Private Contractors Payment,520.8,0,VENDOR
03-08-2022,Adults & Health,Ask Care Ltd,Home Care - Private Contractors Payment,520.8,0,VENDOR
03-08-2022,Adults & Health,Ask Care Ltd,Daycare - Private Contractors Payment,111.6,0,VENDOR
03-08-2022,Adults & Health,Ask Care Ltd,Home Care - Private Contractors Payment,358.05,0,VENDOR
03-08-2022,Adults & Health,Ask Care Ltd,Daycare - Private Contractors Payment,111.6,0,VENDOR
03-08-2022,Adults & Health,Ask Care Ltd,Daycare - Private Contractors Payment,111.6,0,VENDOR
03-08-2022,Adults & Health,Ask Care Ltd,Home Care - Private Contractors Payment,358.05,0,VENDOR
03-08-2022,Adults & Health,Ask Care Ltd,Home Care - Private Contractors Payment,358.05,0,VENDOR
03-08-2022,Adults & Health,Ask Care Ltd,Daycare - Private Contractors Payment,111.6,0,VENDOR
03-08-2022,Adults & Health,Ask Care Ltd,Home Care - Private Contractors Payment,358.05,0,VENDOR
03-08-2022,Adults & Health,Ask Care Ltd,Daycare - Private Contractors Payment,111.6,0,VENDOR
03-08-2022,Adults & Health,Ask Care Ltd,Home Care - Private Contractors Payment,358.05,0,VENDOR
03-08-2022,Inclusive Economy & Housing,Abundant Life Housing Assoc,Payment To Other Local Authorities,2200,0,COMMERCIAL SUPPLIER
03-08-2022,Children and Young People,Matrix Scm,Agency Staff,1097.79,0,
03-08-2022,Children and Young People,Matrix Scm,Agency Staff,2139.95,0,
03-08-2022,Children and Young People,Matrix Scm,Agency Staff,220.85,0,
03-08-2022,Children and Young People,Matrix Scm,Agency Staff,1766.8,0,
03-08-2022,Children and Young People,Matrix Scm,Agency Staff,1829.65,0,
03-08-2022,Children and Young People,Matrix Scm,Agency Staff,2341.05,0,
03-08-2022,Children and Young People,Matrix Scm,Agency Staff,742.66,0,
03-08-2022,Children and Young People,Matrix Scm,Agency Staff,1352.88,0,
03-08-2022,Children and Young People,Matrix Scm,Agency Staff,1789.05,0,
03-08-2022,Children and Young People,Matrix Scm,Agency Staff,1840.85,0,
03-08-2022,Children and Young People,Matrix Scm,Agency Staff,1101.25,0,
03-08-2022,Children and Young People,Matrix Scm,Agency Staff,1903.55,0,
03-08-2022,Children and Young People,Matrix Scm,Agency Staff,1840.85,0,
03-08-2022,Children and Young People,Matrix Scm,Agency Staff,1866.8,0,
03-08-2022,Children and Young People,Matrix Scm,Agency Staff,1882.74,0,
03-08-2022,Children and Young People,Matrix Scm,Agency Staff,1073.58,0,
03-08-2022,Children and Young People,Matrix Scm,Agency Staff,1121.06,0,
03-08-2022,Children and Young People,Matrix Scm,Agency Staff,787.56,0,
03-08-2022,Children and Young People,Matrix Scm,Agency Staff,715.72,0,
03-08-2022,Children and Young People,Matrix Scm,Agency Staff,1743.85,0,
03-08-2022,Adults & Health,Matrix Scm,Agency Staff,3789.7,0,
03-08-2022,Adults & Health,Matrix Scm,Agency Staff,2284.35,0,
03-08-2022,Adults & Health,Matrix Scm,Agency Staff,943.6,0,
03-08-2022,Adults & Health,Matrix Scm,Agency Staff,860.77,0,
03-08-2022,Adults & Health,Matrix Scm,Agency Staff,1066.34,0,
03-08-2022,Adults & Health,Matrix Scm,Agency Staff,1066.34,0,
03-08-2022,Children and Young People,Matrix Scm,Agency Staff,1673.28,0,
03-08-2022,Children and Young People,Matrix Scm,Agency Staff,1511.73,0,
03-08-2022,Children and Young People,Matrix Scm,Agency Staff,1141.34,0,
03-08-2022,Children and Young People,Matrix Scm,Agency Staff,1712.01,0,
03-08-2022,Children and Young People,Matrix Scm,Agency Staff,1511.73,0,
03-08-2022,Children and Young People,Matrix Scm,Agency Staff,990.82,0,
03-08-2022,Children and Young People,Matrix Scm,Agency Staff,1320.92,0,
03-08-2022,Children and Young People,Matrix Scm,Agency Staff,1689.3,0,
03-08-2022,Children and Young People,Matrix Scm,Agency Staff,697.54,0,
03-08-2022,Children and Young People,Matrix Scm,Agency Staff,1743.85,0,
03-08-2022,Children and Young People,Matrix Scm,Agency Staff,1743.85,0,
03-08-2022,Children and Young People,Matrix Scm,Agency Staff,41.95,0,
03-08-2022,Children and Young People,Matrix Scm,Agency Staff,1729.79,0,
03-08-2022,Children and Young People,Matrix Scm,Agency Staff,1457.28,0,
03-08-2022,Children and Young People,Matrix Scm,Agency Staff,1285.92,0,
03-08-2022,Children and Young People,Matrix Scm,Agency Staff,1394.66,0,
03-08-2022,Children and Young People,Matrix Scm,Agency Staff,1473.47,0,
03-08-2022,Children and Young People,Matrix Scm,Agency Staff,1728.74,0,
03-08-2022,Children and Young People,Matrix Scm,Agency Staff,674.7,0,
03-08-2022,Children and Young People,Matrix Scm,Agency Staff,1473.48,0,
03-08-2022,Children and Young People,Matrix Scm,Agency Staff,1364.05,0,
03-08-2022,Children and Young People,Matrix Scm,Agency Staff,1565.28,0,
03-08-2022,Children and Young People,Matrix Scm,Agency Staff,1457.28,0,
03-08-2022,Children and Young People,Matrix Scm,Agency Staff,1457.28,0,
03-08-2022,Children and Young People,Matrix Scm,Agency Staff,1457.63,0,
03-08-2022,Children and Young People,Matrix Scm,Agency Staff,1473.48,0,
03-08-2022,Children and Young People,Matrix Scm,Agency Staff,1496.16,0,
03-08-2022,Children and Young People,Matrix Scm,Agency Staff,1529.63,0,
03-08-2022,Children and Young People,Matrix Scm,Agency Staff,1506.24,0,
03-08-2022,Children and Young People,Matrix Scm,Agency Staff,1912.1,0,
03-08-2022,Children and Young People,Matrix Scm,Agency Staff,1506.24,0,
03-08-2022,Children and Young People,Matrix Scm,Agency Staff,135,0,
03-08-2022,Children and Young People,Matrix Scm,Agency Staff,1385.28,0,
03-08-2022,Children and Young People,Matrix Scm,Agency Staff,1457.28,0,
03-08-2022,Children and Young People,Matrix Scm,Agency Staff,45,0,
03-08-2022,Children and Young People,Matrix Scm,Agency Staff,1529.28,0,
03-08-2022,Children and Young People,Matrix Scm,Agency Staff,1457.28,0,
03-08-2022,Children and Young People,Matrix Scm,Agency Staff,1394.66,0,
03-08-2022,Children and Young People,Matrix Scm,Agency Staff,1529.28,0,
03-08-2022,Children and Young People,Matrix Scm,Agency Staff,1394.66,0,
03-08-2022,Children and Young People,Matrix Scm,Agency Staff,1457.28,0,
03-08-2022,Children and Young People,Matrix Scm,Agency Staff,1506.24,0,
03-08-2022,Children and Young People,Matrix Scm,Agency Staff,1506.24,0,
03-08-2022,Children and Young People,Matrix Scm,Agency Staff,1506.24,0,
03-08-2022,Children and Young People,Matrix Scm,Agency Staff,1529.28,0,
03-08-2022,Children and Young People,Matrix Scm,Agency Staff,988.4,0,
03-08-2022,Children and Young People,Matrix Scm,Agency Staff,1364.05,0,
03-08-2022,Children and Young People,Matrix Scm,Agency Staff,1529.28,0,
03-08-2022,Children and Young People,Matrix Scm,Agency Staff,1506.24,0,
03-08-2022,Children and Young People,Matrix Scm,Agency Staff,1529.28,0,
03-08-2022,Children and Young People,Matrix Scm,Agency Staff,1506.24,0,
03-08-2022,Children and Young People,Matrix Scm,Agency Staff,1768.69,0,
03-08-2022,Children and Young People,Matrix Scm,Agency Staff,1506.24,0,
03-08-2022,Children and Young People,Matrix Scm,Agency Staff,229.42,0,
03-08-2022,Children and Young People,Matrix Scm,Agency Staff,1394.66,0,
03-08-2022,Children and Young People,Matrix Scm,Agency Staff,1493.28,0,
03-08-2022,Children and Young People,Matrix Scm,Agency Staff,1364.42,0,
03-08-2022,Children and Young People,Matrix Scm,Agency Staff,1473.47,0,
03-08-2022,Children and Young People,Matrix Scm,Agency Staff,2231.5,0,
03-08-2022,Children and Young People,Matrix Scm,Agency Staff,1364.03,0,
03-08-2022,Children and Young People,Matrix Scm,Agency Staff,1394.66,0,
03-08-2022,Children and Young People,Matrix Scm,Agency Staff,1364.03,0,
03-08-2022,Children and Young People,Matrix Scm,Agency Staff,37.08,0,
03-08-2022,Children and Young People,Matrix Scm,Agency Staff,88.2,0,
03-08-2022,Children and Young People,Matrix Scm,Agency Staff,1506.24,0,
03-08-2022,Children and Young People,Matrix Scm,Agency Staff,1364.42,0,
03-08-2022,Children and Young People,Matrix Scm,Agency Staff,1618.92,0,
03-08-2022,Children and Young People,Matrix Scm,Agency Staff,1364.03,0,
03-08-2022,Children and Young People,Matrix Scm,Agency Staff,795.69,0,
03-08-2022,Children and Young People,Matrix Scm,Agency Staff,954.36,0,
03-08-2022,Children and Young People,Matrix Scm,Agency Staff,824.1,0,
03-08-2022,Children and Young People,Matrix Scm,Agency Staff,1364.03,0,
03-08-2022,Children and Young People,Matrix Scm,Agency Staff,954.37,0,
03-08-2022,Children and Young People,Matrix Scm,Agency Staff,954.37,0,
03-08-2022,Children and Young People,Matrix Scm,Agency Staff,1618.92,0,
03-08-2022,Children and Young People,Matrix Scm,Agency Staff,1099.1,0,
03-08-2022,Children and Young People,Matrix Scm,Agency Staff,1618.92,0,
03-08-2022,Children and Young People,Matrix Scm,Agency Staff,1728.72,0,
03-08-2022,Children and Young People,Matrix Scm,Agency Staff,1728.72,0,
03-08-2022,Children and Young People,Matrix Scm,Agency Staff,1728.72,0,
03-08-2022,Children and Young People,Matrix Scm,Agency Staff,1473.48,0,
03-08-2022,Children and Young People,Matrix Scm,Agency Staff,1473.48,0,
03-08-2022,Children and Young People,Matrix Scm,Agency Staff,954.36,0,
03-08-2022,Children and Young People,Matrix Scm,Agency Staff,379.68,0,
03-08-2022,Children and Young People,Matrix Scm,Agency Staff,610.28,0,
03-08-2022,Children and Young People,Matrix Scm,Agency Staff,1473.84,0,
03-08-2022,Children and Young People,Matrix Scm,Agency Staff,1473.48,0,
03-08-2022,Children and Young People,Matrix Scm,Agency Staff,1473.47,0,
03-08-2022,Children and Young People,Matrix Scm,Agency Staff,1473.48,0,
03-08-2022,Children and Young People,Matrix Scm,Agency Staff,1729.79,0,
03-08-2022,Children and Young People,Matrix Scm,Agency Staff,1493.28,0,
03-08-2022,Children and Young People,Matrix Scm,Agency Staff,1619.3,0,
03-08-2022,Children and Young People,Matrix Scm,Agency Staff,1499.78,0,
03-08-2022,Children and Young People,Matrix Scm,Agency Staff,1473.47,0,
03-08-2022,Children and Young People,Matrix Scm,Agency Staff,1473.47,0,
03-08-2022,Children and Young People,Matrix Scm,Agency Staff,7.15,0,
03-08-2022,Children and Young People,Matrix Scm,Agency Staff,1473.47,0,
03-08-2022,Children and Young People,Matrix Scm,Agency Staff,1506.24,0,
03-08-2022,Children and Young People,Matrix Scm,Agency Staff,1473.5,0,
03-08-2022,Children and Young People,Matrix Scm,Agency Staff,708.32,0,
03-08-2022,Children and Young People,Matrix Scm,Agency Staff,694.34,0,
03-08-2022,Children and Young People,Matrix Scm,Agency Staff,976.32,0,
03-08-2022,Children and Young People,Matrix Scm,Agency Staff,1394.66,0,
03-08-2022,Children and Young People,Matrix Scm,Agency Staff,1124.29,0,
03-08-2022,Children and Young People,Matrix Scm,Agency Staff,1153.68,0,
03-08-2022,Children and Young People,Matrix Scm,Agency Staff,725.46,0,
03-08-2022,Children and Young People,Matrix Scm,Agency Staff,1817.28,0,
03-08-2022,Children and Young People,Matrix Scm,Agency Staff,1619.3,0,
03-08-2022,Children and Young People,Matrix Scm,Agency Staff,1373.5,0,
03-08-2022,Children and Young People,Matrix Scm,Agency Staff,1385.28,0,
03-08-2022,Digital,Matrix Scm,Agency Staff,2236.4,0,
03-08-2022,Digital,Matrix Scm,Agency Staff,2236.4,0,
03-08-2022,Children and Young People,Matrix Scm,Agency Staff,2758.5,0,
03-08-2022,Children and Young People,Matrix Scm,Agency Staff,1106.29,0,
03-08-2022,Adults & Health,Matrix Scm,Agency Staff,1141.8,0,
03-08-2022,Adults & Health,Matrix Scm,Agency Staff,879.74,0,
03-08-2022,Adults & Health,Matrix Scm,Agency Staff,674.7,0,
03-08-2022,Adults & Health,Matrix Scm,Agency Staff,269.88,0,
03-08-2022,Adults & Health,Matrix Scm,Agency Staff,674.7,0,
03-08-2022,Adults & Health,Matrix Scm,Agency Staff,2514.8,0,
03-08-2022,Adults & Health,Matrix Scm,Agency Staff,296.24,0,
03-08-2022,Adults & Health,Matrix Scm,Agency Staff,1364.03,0,
03-08-2022,Adults & Health,Matrix Scm,Agency Staff,819.01,0,
03-08-2022,Adults & Health,Matrix Scm,Agency Staff,819.01,0,
03-08-2022,Adults & Health,Matrix Scm,Agency Staff,914.77,0,
03-08-2022,Adults & Health,Matrix Scm,Agency Staff,1002.59,0,
03-08-2022,Adults & Health,Matrix Scm,Agency Staff,1391.62,0,
03-08-2022,Adults & Health,Matrix Scm,Agency Staff,1181.17,0,
03-08-2022,Adults & Health,Matrix Scm,Agency Staff,737.88,0,
03-08-2022,Adults & Health,Matrix Scm,Agency Staff,1375.94,0,
03-08-2022,Adults & Health,Matrix Scm,Agency Staff,4.05,0,
03-08-2022,Adults & Health,Matrix Scm,Agency Staff,15.75,0,
03-08-2022,Adults & Health,Matrix Scm,Agency Staff,975.26,0,
03-08-2022,Adults & Health,Matrix Scm,Agency Staff,998.46,0,
03-08-2022,Adults & Health,Matrix Scm,Agency Staff,1146.38,0,
03-08-2022,Adults & Health,Matrix Scm,Agency Staff,813.54,0,
03-08-2022,Adults & Health,Matrix Scm,Agency Staff,1394.66,0,
03-08-2022,Adults & Health,Matrix Scm,Agency Staff,1457.28,0,
03-08-2022,Adults & Health,Matrix Scm,Agency Staff,1394.64,0,
03-08-2022,Adults & Health,Matrix Scm,Agency Staff,845.28,0,
03-08-2022,Adults & Health,Matrix Scm,Agency Staff,1181.15,0,
03-08-2022,Adults & Health,Matrix Scm,Agency Staff,1181.54,0,
03-08-2022,Adults & Health,Matrix Scm,Agency Staff,1181.54,0,
03-08-2022,Adults & Health,Matrix Scm,Agency Staff,1241.28,0,
03-08-2022,Adults & Health,Matrix Scm,Agency Staff,1207.46,0,
03-08-2022,Adults & Health,Matrix Scm,Agency Staff,972.66,0,
03-08-2022,Adults & Health,Matrix Scm,Agency Staff,1207.46,0,
03-08-2022,Adults & Health,Matrix Scm,Agency Staff,729.5,0,
03-08-2022,Children and Young People,Matrix Scm,Agency Staff,1529.28,0,
03-08-2022,Children and Young People,Matrix Scm,Agency Staff,1457.28,0,
03-08-2022,Children and Young People,Matrix Scm,Agency Staff,1529.28,0,
03-08-2022,Children and Young People,Matrix Scm,Agency Staff,26.55,0,
03-08-2022,Children and Young People,Matrix Scm,Agency Staff,1565.28,0,
03-08-2022,Children and Young People,Matrix Scm,Agency Staff,1421.28,0,
03-08-2022,Children and Young People,Matrix Scm,Agency Staff,1457.28,0,
03-08-2022,Children and Young People,Matrix Scm,Agency Staff,1497.76,0,
03-08-2022,Children and Young People,Matrix Scm,Agency Staff,1529.28,0,
03-08-2022,Children and Young People,Matrix Scm,Agency Staff,4,0,
03-08-2022,Children and Young People,Matrix Scm,Agency Staff,74.7,0,
03-08-2022,Children and Young People,Matrix Scm,Agency Staff,1529.28,0,
03-08-2022,Children and Young People,Matrix Scm,Agency Staff,1768.67,0,
03-08-2022,Children and Young People,Matrix Scm,Agency Staff,954.36,0,
03-08-2022,Children and Young People,Matrix Scm,Agency Staff,1529.65,0,
03-08-2022,Children and Young People,Matrix Scm,Agency Staff,1473.47,0,
03-08-2022,Children and Young People,Matrix Scm,Agency Staff,1506.24,0,
03-08-2022,Children and Young People,Matrix Scm,Agency Staff,1394.66,0,
03-08-2022,Environment and Sustainable Transport,Matrix Scm,Agency Staff,714.24,0,
03-08-2022,Environment and Sustainable Transport,Matrix Scm,Agency Staff,1210.24,0,
03-08-2022,Environment and Sustainable Transport,Matrix Scm,Agency Staff,345.45,0,
03-08-2022,Environment and Sustainable Transport,Matrix Scm,Agency Staff,201.3,0,
03-08-2022,Environment and Sustainable Transport,Matrix Scm,Agency Staff,590.4,0,
03-08-2022,Environment and Sustainable Transport,Matrix Scm,Agency Staff,241.36,0,
03-08-2022,Environment and Sustainable Transport,Matrix Scm,Agency Staff,592.19,0,
03-08-2022,Environment and Sustainable Transport,Matrix Scm,Agency Staff,590.4,0,
03-08-2022,Environment and Sustainable Transport,Matrix Scm,Agency Staff,357.78,0,
03-08-2022,Environment and Sustainable Transport,Matrix Scm,Agency Staff,423.48,0,
03-08-2022,Environment and Sustainable Transport,Matrix Scm,Agency Staff,247.24,0,
03-08-2022,Environment and Sustainable Transport,Matrix Scm,Agency Staff,592.19,0,
03-08-2022,Environment and Sustainable Transport,Matrix Scm,Agency Staff,356.7,0,
03-08-2022,Environment and Sustainable Transport,Matrix Scm,Agency Staff,182.62,0,
03-08-2022,Environment and Sustainable Transport,Matrix Scm,Agency Staff,123.68,0,
03-08-2022,Environment and Sustainable Transport,Matrix Scm,Agency Staff,427.16,0,
03-08-2022,Environment and Sustainable Transport,Matrix Scm,Agency Staff,592.19,0,
03-08-2022,Environment and Sustainable Transport,Matrix Scm,Agency Staff,88.38,0,
03-08-2022,Environment and Sustainable Transport,Matrix Scm,Agency Staff,357.78,0,
03-08-2022,Environment and Sustainable Transport,Matrix Scm,Agency Staff,581.41,0,
03-08-2022,Environment and Sustainable Transport,Matrix Scm,Agency Staff,528.48,0,
03-08-2022,Environment and Sustainable Transport,Matrix Scm,Agency Staff,50.73,0,
03-08-2022,Environment and Sustainable Transport,Matrix Scm,Agency Staff,118.9,0,
03-08-2022,Environment and Sustainable Transport,Matrix Scm,Agency Staff,592.19,0,
03-08-2022,Environment and Sustainable Transport,Matrix Scm,Agency Staff,475.6,0,
03-08-2022,Environment and Sustainable Transport,Matrix Scm,Agency Staff,440.4,0,
03-08-2022,Environment and Sustainable Transport,Matrix Scm,Agency Staff,592.19,0,
03-08-2022,Environment and Sustainable Transport,Matrix Scm,Agency Staff,592.19,0,
03-08-2022,Environment and Sustainable Transport,Matrix Scm,Agency Staff,590.4,0,
03-08-2022,Environment and Sustainable Transport,Matrix Scm,Agency Staff,246.14,0,
03-08-2022,Environment and Sustainable Transport,Matrix Scm,Agency Staff,123.68,0,
03-08-2022,Environment and Sustainable Transport,Matrix Scm,Agency Staff,528.48,0,
03-08-2022,Environment and Sustainable Transport,Matrix Scm,Agency Staff,642.98,0,
03-08-2022,Adults & Health,Matrix Scm,Agency Staff,1506.24,0,
03-08-2022,Adults & Health,Matrix Scm,Agency Staff,1139.51,0,
03-08-2022,Adults & Health,Matrix Scm,Agency Staff,2793.3,0,
03-08-2022,Adults & Health,Matrix Scm,Agency Staff,911.52,0,
03-08-2022,Adults & Health,Matrix Scm,Agency Staff,406.56,0,
03-08-2022,Adults & Health,Matrix Scm,Agency Staff,41.95,0,
03-08-2022,Adults & Health,Matrix Scm,Agency Staff,1018.62,0,
03-08-2022,Adults & Health,Matrix Scm,Agency Staff,983.9,0,
03-08-2022,Adults & Health,Matrix Scm,Agency Staff,1076.49,0,
03-08-2022,Adults & Health,Matrix Scm,Agency Staff,1111.22,0,
03-08-2022,Adults & Health,Matrix Scm,Agency Staff,1058.4,0,
03-08-2022,Adults & Health,Matrix Scm,Agency Staff,979.15,0,
03-08-2022,Adults & Health,Matrix Scm,Agency Staff,979.03,0,
03-08-2022,Environment and Sustainable Transport,Matrix Scm,Agency Staff,2208.5,0,
03-08-2022,Environment and Sustainable Transport,Matrix Scm,Agency Staff,1182.03,0,
03-08-2022,Environment and Sustainable Transport,Matrix Scm,Agency Staff,1210.86,0,
03-08-2022,Environment and Sustainable Transport,Matrix Scm,Agency Staff,914.76,0,
03-08-2022,Environment and Sustainable Transport,Matrix Scm,Agency Staff,24.75,0,
03-08-2022,Environment and Sustainable Transport,Matrix Scm,Agency Staff,1505.1,0,
03-08-2022,Digital,Matrix Scm,Agency Staff,693.12,0,
03-08-2022,Digital,Matrix Scm,Agency Staff,784.32,0,
03-08-2022,Digital,Matrix Scm,Agency Staff,853.92,0,
03-08-2022,Digital,Matrix Scm,Agency Staff,887.76,0,
03-08-2022,Digital,Matrix Scm,Agency Staff,853.92,0,
03-08-2022,Digital,Matrix Scm,Agency Staff,166.46,0,
03-08-2022,Digital,Matrix Scm,Agency Staff,705.28,0,
03-08-2022,Digital,Matrix Scm,Agency Staff,881.96,0,
03-08-2022,Digital,Matrix Scm,Agency Staff,856.08,0,
03-08-2022,Digital,Matrix Scm,Agency Staff,392.38,0,
03-08-2022,Digital,Matrix Scm,Agency Staff,541.44,0,
03-08-2022,Children and Young People,Matrix Scm,Agency Staff,936,0,
03-08-2022,oneSource,Matrix Scm,Agency Staff,2853.35,0,
03-08-2022,oneSource,Matrix Scm,Agency Staff,2892.4,0,
03-08-2022,Digital,Matrix Scm,Agency Staff,407.33,0,
03-08-2022,Digital,Matrix Scm,Agency Staff,819.36,0,
03-08-2022,Digital,Matrix Scm,Agency Staff,788.07,0,
03-08-2022,Digital,Matrix Scm,Agency Staff,807.98,0,
03-08-2022,Digital,Matrix Scm,Agency Staff,437.43,0,
03-08-2022,Digital,Matrix Scm,Agency Staff,721.01,0,
03-08-2022,Digital,Matrix Scm,Agency Staff,807.98,0,
03-08-2022,Digital,Matrix Scm,Agency Staff,726.08,0,
03-08-2022,Digital,Matrix Scm,Agency Staff,796.6,0,
03-08-2022,Digital,Matrix Scm,Agency Staff,710.85,0,
03-08-2022,Digital,Matrix Scm,Agency Staff,690.55,0,
03-08-2022,oneSource,Matrix Scm,Agency Staff,718.56,0,
03-08-2022,oneSource,Matrix Scm,Agency Staff,4408.5,0,
03-08-2022,Children and Young People,Matrix Scm,Agency Staff,2297.2,0,
03-08-2022,oneSource,Matrix Scm,Agency Staff,1044.53,0,
03-08-2022,oneSource,Matrix Scm,Agency Staff,818.68,0,
03-08-2022,oneSource,Matrix Scm,Agency Staff,1016.28,0,
03-08-2022,Environment and Sustainable Transport,Matrix Scm,Agency Staff,957.96,0,
03-08-2022,Environment and Sustainable Transport,Matrix Scm,Agency Staff,261.91,0,
03-08-2022,oneSource,Matrix Scm,Agency Staff,1149.76,0,
03-08-2022,oneSource,Matrix Scm,Agency Staff,2874.4,0,
03-08-2022,Resources,Matrix Scm,Agency Staff,1646.82,0,
03-08-2022,Resources,Matrix Scm,Agency Staff,1646.82,0,
03-08-2022,Resources,Matrix Scm,Agency Staff,1391.4,0,
03-08-2022,Resources,Matrix Scm,Agency Staff,3483.1,0,
03-08-2022,Resources,Matrix Scm,Agency Staff,2584.5,0,
03-08-2022,oneSource,Matrix Scm,Agency Staff,441.7,0,
03-08-2022,oneSource,Matrix Scm,Agency Staff,902.38,0,
03-08-2022,oneSource,Matrix Scm,Agency Staff,599.39,0,
03-08-2022,oneSource,Matrix Scm,Agency Staff,599.39,0,
03-08-2022,oneSource,Matrix Scm,Agency Staff,665.34,0,
03-08-2022,oneSource,Matrix Scm,Agency Staff,532.79,0,
03-08-2022,oneSource,Matrix Scm,Agency Staff,601.38,0,
03-08-2022,oneSource,Matrix Scm,Agency Staff,1602.24,0,
03-08-2022,oneSource,Matrix Scm,Agency Staff,5357.8,0,
03-08-2022,oneSource,Matrix Scm,Agency Staff,1833.8,0,
03-08-2022,Environment and Sustainable Transport,Matrix Scm,Agency Staff,1118.48,0,
03-08-2022,Environment and Sustainable Transport,Matrix Scm,Agency Staff,915.14,0,
03-08-2022,Environment and Sustainable Transport,Matrix Scm,Agency Staff,878.25,0,
03-08-2022,Environment and Sustainable Transport,Matrix Scm,Agency Staff,1067.64,0,
03-08-2022,Housing Revenue Account,Matrix Scm,Agency Staff,909.75,0,
03-08-2022,Environment and Sustainable Transport,Matrix Scm,Agency Staff,659.4,0,
03-08-2022,Environment and Sustainable Transport,Matrix Scm,Agency Staff,760.78,0,
03-08-2022,Environment and Sustainable Transport,Matrix Scm,Agency Staff,654.5,0,
03-08-2022,Environment and Sustainable Transport,Matrix Scm,Agency Staff,560.48,0,
03-08-2022,Environment and Sustainable Transport,Matrix Scm,Agency Staff,633.24,0,
03-08-2022,Environment and Sustainable Transport,Matrix Scm,Agency Staff,177.52,0,
03-08-2022,Environment and Sustainable Transport,Matrix Scm,Agency Staff,734.08,0,
03-08-2022,Environment and Sustainable Transport,Matrix Scm,Agency Staff,938.18,0,
03-08-2022,Environment and Sustainable Transport,Matrix Scm,Agency Staff,106.9,0,
03-08-2022,Environment and Sustainable Transport,Matrix Scm,Agency Staff,232.58,0,
03-08-2022,Environment and Sustainable Transport,Matrix Scm,Agency Staff,714.24,0,
03-08-2022,Environment and Sustainable Transport,Matrix Scm,Agency Staff,714.24,0,
03-08-2022,Environment and Sustainable Transport,Matrix Scm,Agency Staff,180.56,0,
03-08-2022,Environment and Sustainable Transport,Matrix Scm,Agency Staff,659.4,0,
03-08-2022,Environment and Sustainable Transport,Matrix Scm,Agency Staff,861.12,0,
03-08-2022,Environment and Sustainable Transport,Matrix Scm,Agency Staff,714.24,0,
03-08-2022,Environment and Sustainable Transport,Matrix Scm,Agency Staff,158.96,0,
03-08-2022,Environment and Sustainable Transport,Matrix Scm,Agency Staff,879.52,0,
03-08-2022,Environment and Sustainable Transport,Matrix Scm,Agency Staff,892.8,0,
03-08-2022,Environment and Sustainable Transport,Matrix Scm,Agency Staff,600.84,0,
03-08-2022,Housing Revenue Account,Matrix Scm,Agency Staff,587.16,0,
03-08-2022,Housing Revenue Account,Matrix Scm,Agency Staff,816.48,0,
03-08-2022,Housing Revenue Account,Matrix Scm,Agency Staff,815.5,0,
03-08-2022,Housing Revenue Account,Matrix Scm,Agency Staff,2077.8,0,
03-08-2022,Housing Revenue Account,Matrix Scm,Agency Staff,1174.32,0,
03-08-2022,Housing Revenue Account,Matrix Scm,Agency Staff,978.6,0,
03-08-2022,Housing Revenue Account,Matrix Scm,Agency Staff,587.16,0,
03-08-2022,Housing Revenue Account,Matrix Scm,Agency Staff,815.5,0,
03-08-2022,Housing Revenue Account,Matrix Scm,Agency Staff,204.12,0,
03-08-2022,Housing Revenue Account,Matrix Scm,Agency Staff,2208.5,0,
03-08-2022,Housing Revenue Account,Matrix Scm,Agency Staff,612.36,0,
03-08-2022,Housing Revenue Account,Matrix Scm,Agency Staff,816.48,0,
03-08-2022,Housing Revenue Account,Matrix Scm,Agency Staff,816.48,0,
03-08-2022,Housing Revenue Account,Matrix Scm,Agency Staff,612.36,0,
03-08-2022,Housing Revenue Account,Matrix Scm,Agency Staff,587.16,0,
03-08-2022,Housing Revenue Account,Matrix Scm,Agency Staff,831.41,0,
03-08-2022,Housing Revenue Account,Matrix Scm,Agency Staff,2483.5,0,
03-08-2022,Housing Revenue Account,Matrix Scm,Agency Staff,414.58,0,
03-08-2022,Housing Revenue Account,Matrix Scm,Agency Staff,98.15,0,
03-08-2022,Housing Revenue Account,Matrix Scm,Agency Staff,654.55,0,
03-08-2022,Housing Revenue Account,Matrix Scm,Agency Staff,937.48,0,
03-08-2022,Housing Revenue Account,Matrix Scm,Agency Staff,256.14,0,
03-08-2022,Housing Revenue Account,Matrix Scm,Agency Staff,676.19,0,
03-08-2022,Housing Revenue Account,Matrix Scm,Agency Staff,392.73,0,
03-08-2022,Housing Revenue Account,Matrix Scm,Agency Staff,764.78,0,
03-08-2022,Housing Revenue Account,Matrix Scm,Agency Staff,184.42,0,
03-08-2022,Housing Revenue Account,Matrix Scm,Agency Staff,185.03,0,
03-08-2022,Housing Revenue Account,Matrix Scm,Agency Staff,615.25,0,
03-08-2022,Housing Revenue Account,Matrix Scm,Agency Staff,0,0,
03-08-2022,Housing Revenue Account,Matrix Scm,Agency Staff,0,0,
03-08-2022,Housing Revenue Account,Matrix Scm,Agency Staff,307.36,0,
03-08-2022,Housing Revenue Account,Matrix Scm,Agency Staff,-451.44,0,
03-08-2022,Housing Revenue Account,Matrix Scm,Agency Staff,457.62,0,
03-08-2022,Housing Revenue Account,Matrix Scm,Agency Staff,0,0,
03-08-2022,oneSource,Matrix Scm,Agency Staff,2208.5,0,
03-08-2022,oneSource,Matrix Scm,Agency Staff,1089.04,0,
03-08-2022,Housing Revenue Account,Matrix Scm,Agency Staff,362.83,0,
03-08-2022,Housing Revenue Account,Matrix Scm,Agency Staff,1104.25,0,
03-08-2022,Housing Revenue Account,Matrix Scm,Agency Staff,2853.35,0,
03-08-2022,Housing Revenue Account,Matrix Scm,Agency Staff,2568.85,0,
03-08-2022,Housing Revenue Account,Matrix Scm,Agency Staff,3138.15,0,
03-08-2022,Housing Revenue Account,Matrix Scm,Agency Staff,1999.9,0,
03-08-2022,Housing Revenue Account,Matrix Scm,Agency Staff,2850.4,0,
03-08-2022,Housing Revenue Account,Matrix Scm,Agency Staff,1957.85,0,
03-08-2022,Housing Revenue Account,Matrix Scm,Agency Staff,2279.85,0,
03-08-2022,Housing Revenue Account,Matrix Scm,Agency Staff,2568.85,0,
03-08-2022,Housing Revenue Account,Matrix Scm,Agency Staff,1491.12,0,
03-08-2022,Housing Revenue Account,Matrix Scm,Agency Staff,2483.5,0,
03-08-2022,Housing Revenue Account,Matrix Scm,Agency Staff,2641.24,0,
03-08-2022,Housing Revenue Account,Matrix Scm,Agency Staff,2514.85,0,
03-08-2022,Housing Revenue Account,Matrix Scm,Agency Staff,779.01,0,
03-08-2022,Housing Revenue Account,Matrix Scm,Agency Staff,763.29,0,
03-08-2022,Housing Revenue Account,Matrix Scm,Agency Staff,636.7,0,
03-08-2022,Housing Revenue Account,Matrix Scm,Agency Staff,619.99,0,
03-08-2022,Housing Revenue Account,Matrix Scm,Agency Staff,701.75,0,
03-08-2022,Housing Revenue Account,Matrix Scm,Agency Staff,561.4,0,
03-08-2022,Housing Revenue Account,Matrix Scm,Agency Staff,747.89,0,
03-08-2022,Housing Revenue Account,Matrix Scm,Agency Staff,739.11,0,
03-08-2022,Children and Young People,Matrix Scm,Agency Staff,1403.3,0,
03-08-2022,Children and Young People,Matrix Scm,Agency Staff,757.56,0,
03-08-2022,Children and Young People,Matrix Scm,Agency Staff,1010.36,0,
03-08-2022,Children and Young People,Matrix Scm,Agency Staff,1010.36,0,
03-08-2022,Children and Young People,Matrix Scm,Agency Staff,1253.89,0,
03-08-2022,Children and Young People,Matrix Scm,Agency Staff,967.17,0,
03-08-2022,Children and Young People,Matrix Scm,Agency Staff,995.34,0,
03-08-2022,Children and Young People,Matrix Scm,Agency Staff,537.66,0,
03-08-2022,Children and Young People,Matrix Scm,Agency Staff,1403.3,0,
03-08-2022,Housing Revenue Account,Matrix Scm,Agency Staff,391.44,0,
03-08-2022,Housing Revenue Account,Matrix Scm,Agency Staff,1957.85,0,
03-08-2022,Housing Revenue Account,Matrix Scm,Agency Staff,1999.9,0,
03-08-2022,Housing Revenue Account,Matrix Scm,Agency Staff,782.88,0,
03-08-2022,Housing Revenue Account,Matrix Scm,Agency Staff,612.36,0,
03-08-2022,Housing Revenue Account,Matrix Scm,Agency Staff,1999.9,0,
03-08-2022,Housing Revenue Account,Matrix Scm,Agency Staff,1999.9,0,
03-08-2022,Housing Revenue Account,Matrix Scm,Agency Staff,1999.9,0,
03-08-2022,Housing Revenue Account,Matrix Scm,Agency Staff,459.27,0,
03-08-2022,Housing Revenue Account,Matrix Scm,Agency Staff,599.78,0,
03-08-2022,Housing Revenue Account,Matrix Scm,Agency Staff,25.95,0,
03-08-2022,Housing Revenue Account,Matrix Scm,Agency Staff,25.95,0,
03-08-2022,Housing Revenue Account,Matrix Scm,Agency Staff,25.95,0,
03-08-2022,Housing Revenue Account,Matrix Scm,Agency Staff,25.95,0,
03-08-2022,Housing Revenue Account,Matrix Scm,Agency Staff,782.88,0,
03-08-2022,Housing Revenue Account,Matrix Scm,Agency Staff,587.16,0,
03-08-2022,Housing Revenue Account,Matrix Scm,Agency Staff,829.24,0,
03-08-2022,Housing Revenue Account,Matrix Scm,Agency Staff,1049.76,0,
03-08-2022,Housing Revenue Account,Matrix Scm,Agency Staff,816.48,0,
03-08-2022,Housing Revenue Account,Matrix Scm,Agency Staff,2255.95,0,
03-08-2022,oneSource - Non Shared,Matrix Scm,Agency Staff,680.03,0,
03-08-2022,Resources,Matrix Scm,Agency Staff,2793.3,0,
03-08-2022,oneSource,Matrix Scm,Agency Staff,626.96,0,
03-08-2022,oneSource,Matrix Scm,Agency Staff,618.12,0,
03-08-2022,oneSource,Matrix Scm,Agency Staff,1510.55,0,
03-08-2022,oneSource,Matrix Scm,Agency Staff,686.59,0,
03-08-2022,oneSource,Matrix Scm,Agency Staff,1419.49,0,
03-08-2022,Housing Revenue Account,Matrix Scm,Agency Staff,2568.85,0,
03-08-2022,Housing Revenue Account,Matrix Scm,Agency Staff,427.14,0,
03-08-2022,Housing Revenue Account,Matrix Scm,Agency Staff,486.08,0,
03-08-2022,Housing Revenue Account,Matrix Scm,Agency Staff,592.19,0,
03-08-2022,Housing Revenue Account,Matrix Scm,Agency Staff,316.69,0,
03-08-2022,Housing Revenue Account,Matrix Scm,Agency Staff,130.69,0,
03-08-2022,Housing Revenue Account,Matrix Scm,Agency Staff,592.19,0,
03-08-2022,Housing Revenue Account,Matrix Scm,Agency Staff,592.19,0,
03-08-2022,Housing Revenue Account,Matrix Scm,Agency Staff,602.08,0,
03-08-2022,Housing Revenue Account,Matrix Scm,Agency Staff,472.93,0,
03-08-2022,Housing Revenue Account,Matrix Scm,Agency Staff,530.27,0,
03-08-2022,Housing Revenue Account,Matrix Scm,Agency Staff,530.27,0,
03-08-2022,Housing Revenue Account,Matrix Scm,Agency Staff,1376.02,0,
03-08-2022,Housing Revenue Account,Matrix Scm,Agency Staff,581.41,0,
03-08-2022,Housing Revenue Account,Matrix Scm,Agency Staff,316.69,0,
03-08-2022,Housing Revenue Account,Matrix Scm,Agency Staff,1231.86,0,
03-08-2022,Housing Revenue Account,Matrix Scm,Agency Staff,587.16,0,
03-08-2022,Transformation,Matrix Scm,Agency Staff,3437.65,0,
03-08-2022,Housing Revenue Account,Matrix Scm,Agency Staff,691.73,0,
03-08-2022,Housing Revenue Account,Matrix Scm,Agency Staff,685.41,0,
03-08-2022,Housing Revenue Account,Matrix Scm,Agency Staff,3808.55,0,
03-08-2022,Housing Revenue Account,Matrix Scm,Agency Staff,32.62,0,
03-08-2022,Housing Revenue Account,Matrix Scm,Agency Staff,456.68,0,
03-08-2022,Children and Young People,Matrix Scm,Agency Staff,1364.04,0,
03-08-2022,Children and Young People,Matrix Scm,Agency Staff,1618.91,0,
03-08-2022,Children and Young People,Matrix Scm,Agency Staff,2590.2,0,
03-08-2022,Children and Young People,Matrix Scm,Agency Staff,1745.28,0,
03-08-2022,Children and Young People,Matrix Scm,Agency Staff,965.79,0,
03-08-2022,Children and Young People,Matrix Scm,Agency Staff,1448.69,0,
03-08-2022,Children and Young People,Matrix Scm,Agency Staff,1425.45,0,
03-08-2022,Children and Young People,Matrix Scm,Agency Staff,976,0,
03-08-2022,Children and Young People,Matrix Scm,Agency Staff,610,0,
03-08-2022,Children and Young People,Matrix Scm,Agency Staff,866.53,0,
03-08-2022,Children and Young People,Matrix Scm,Agency Staff,1403.3,0,
03-08-2022,Children and Young People,Matrix Scm,Agency Staff,1403.3,0,
03-08-2022,Children and Young People,Matrix Scm,Agency Staff,1403.3,0,
03-08-2022,Children and Young People,Matrix Scm,Agency Staff,1403.3,0,
03-08-2022,Children and Young People,Matrix Scm,Agency Staff,1010.36,0,
03-08-2022,Children and Young People,Matrix Scm,Agency Staff,1324.1,0,
03-08-2022,Children and Young People,Matrix Scm,Agency Staff,1352.16,0,
03-08-2022,Children and Young People,Matrix Scm,Agency Staff,1324.1,0,
03-08-2022,Children and Young People,Matrix Scm,Agency Staff,1089.24,0,
03-08-2022,Children and Young People,Matrix Scm,Agency Staff,757.56,0,
03-08-2022,Children and Young People,Matrix Scm,Agency Staff,1385.28,0,
03-08-2022,Children and Young People,Matrix Scm,Agency Staff,1385.28,0,
03-08-2022,Children and Young People,Matrix Scm,Agency Staff,1655.3,0,
03-08-2022,Children and Young People,Matrix Scm,Agency Staff,1364.03,0,
03-08-2022,Children and Young People,Matrix Scm,Agency Staff,1394.64,0,
03-08-2022,Children and Young People,Matrix Scm,Agency Staff,1506.24,0,
03-08-2022,Children and Young People,Matrix Scm,Agency Staff,1527.84,0,
03-08-2022,Children and Young People,Matrix Scm,Agency Staff,1394.66,0,
03-08-2022,Children and Young People,Matrix Scm,Agency Staff,40.95,0,
03-08-2022,Children and Young People,Matrix Scm,Agency Staff,169.65,0,
03-08-2022,Children and Young People,Matrix Scm,Agency Staff,9.45,0,
03-08-2022,Children and Young People,Matrix Scm,Agency Staff,1400.76,0,
03-08-2022,Children and Young People,Matrix Scm,Agency Staff,1364.05,0,
03-08-2022,Children and Young People,Matrix Scm,Agency Staff,1655.3,0,
03-08-2022,Children and Young People,Matrix Scm,Agency Staff,1473.47,0,
03-08-2022,Children and Young People,Matrix Scm,Agency Staff,34.2,0,
03-08-2022,Children and Young People,Matrix Scm,Agency Staff,1155.65,0,
03-08-2022,Transformation,Matrix Scm,Agency Staff,2758.5,0,
03-08-2022,Transformation,Matrix Scm,Agency Staff,2853.35,0,
03-08-2022,Transformation,Matrix Scm,Agency Staff,2568.85,0,
03-08-2022,Transformation,Matrix Scm,Agency Staff,4143.5,0,
03-08-2022,Adults & Health,Matrix Scm,Agency Staff,510.51,0,
03-08-2022,Adults & Health,Matrix Scm,Agency Staff,433.16,0,
03-08-2022,Children and Young People,Matrix Scm,Agency Staff,367,0,
03-08-2022,Children and Young People,Matrix Scm,Agency Staff,425.72,0,
03-08-2022,Marketing,Matrix Scm,Agency Staff,957.33,0,
03-08-2022,Children and Young People,Matrix Scm,Agency Staff,61.09,0,
03-08-2022,Children and Young People,Matrix Scm,Agency Staff,1768.68,0,
03-08-2022,Children and Young People,Matrix Scm,Agency Staff,435.66,0,
03-08-2022,Children and Young People,Matrix Scm,Agency Staff,3991.3,0,
03-08-2022,Children and Young People,Matrix Scm,Agency Staff,2568.85,0,
03-08-2022,Children and Young People,Matrix Scm,Agency Staff,42.64,0,
03-08-2022,Children and Young People,Matrix Scm,Agency Staff,959.4,0,
03-08-2022,Children and Young People,Matrix Scm,Agency Staff,1089.24,0,
03-08-2022,Children and Young People,Matrix Scm,Agency Staff,1130.44,0,
03-08-2022,RMS,Matrix Scm,Agency Staff,956.08,0,
03-08-2022,RMS,Matrix Scm,Agency Staff,1434.12,0,
03-08-2022,RMS,Matrix Scm,Agency Staff,1195.1,0,
03-08-2022,RMS,Matrix Scm,Agency Staff,1195.1,0,
03-08-2022,RMS,Matrix Scm,Agency Staff,-65,0,
03-08-2022,RMS,Matrix Scm,Agency Staff,838.52,0,
03-08-2022,RMS,Matrix Scm,Agency Staff,23.05,0,
03-08-2022,RMS,Matrix Scm,Agency Staff,169.04,0,
03-08-2022,RMS,Matrix Scm,Agency Staff,1152,0,
03-08-2022,RMS,Matrix Scm,Agency Staff,843.14,0,
03-08-2022,RMS,Matrix Scm,Agency Staff,843.14,0,
03-08-2022,RMS,Matrix Scm,Agency Staff,491.82,0,
03-08-2022,RMS,Matrix Scm,Agency Staff,1563.95,0,
03-08-2022,RMS,Matrix Scm,Agency Staff,703.44,0,
03-08-2022,RMS,Matrix Scm,Agency Staff,689.01,0,
03-08-2022,RMS,Matrix Scm,Agency Staff,870.92,0,
03-08-2022,Inclusive Economy & Housing,Matrix Scm,Agency Staff,1286.88,0,
03-08-2022,Resources,Matrix Scm,Agency Staff,652.4,0,
03-08-2022,Resources,Matrix Scm,Agency Staff,693.45,0,
03-08-2022,Transformation,Matrix Scm,Agency Staff,2314.15,0,
03-08-2022,Marketing,Matrix Scm,Agency Staff,961.92,0,
03-08-2022,Inclusive Economy & Housing,Matrix Scm,Agency Staff,1096.9,0,
03-08-2022,Inclusive Economy & Housing,Matrix Scm,Agency Staff,1161.68,0,
03-08-2022,RMS,Matrix Scm,Agency Staff,1028.16,0,
03-08-2022,RMS,Matrix Scm,Agency Staff,1028.16,0,
03-08-2022,RMS,Matrix Scm,Agency Staff,886.4,0,
03-08-2022,RMS,Matrix Scm,Agency Staff,886.4,0,
03-08-2022,RMS,Matrix Scm,Agency Staff,1028.16,0,
03-08-2022,RMS,Matrix Scm,Agency Staff,828.4,0,
03-08-2022,RMS,Matrix Scm,Agency Staff,1012.8,0,
03-08-2022,RMS,Matrix Scm,Agency Staff,810.24,0,
03-08-2022,RMS,Matrix Scm,Agency Staff,1120,0,
03-08-2022,RMS,Matrix Scm,Agency Staff,957.6,0,
03-08-2022,RMS,Matrix Scm,Agency Staff,607.92,0,
03-08-2022,RMS,Matrix Scm,Agency Staff,1120,0,
03-08-2022,RMS,Matrix Scm,Agency Staff,813.05,0,
03-08-2022,RMS,Matrix Scm,Agency Staff,892,0,
03-08-2022,RMS,Matrix Scm,Agency Staff,988,0,
03-08-2022,RMS,Matrix Scm,Agency Staff,1013.6,0,
03-08-2022,RMS,Matrix Scm,Agency Staff,1025.55,0,
03-08-2022,RMS,Matrix Scm,Agency Staff,607.92,0,
03-08-2022,RMS,Matrix Scm,Agency Staff,1128.8,0,
03-08-2022,RMS,Matrix Scm,Agency Staff,1025.55,0,
03-08-2022,RMS,Matrix Scm,Agency Staff,1037.4,0,
03-08-2022,RMS,Matrix Scm,Agency Staff,698.88,0,
03-08-2022,RMS,Matrix Scm,Agency Staff,698.88,0,
03-08-2022,RMS,Matrix Scm,Agency Staff,1120,0,
03-08-2022,Environment and Sustainable Transport,Matrix Scm,Agency Staff,194.26,0,
03-08-2022,Environment and Sustainable Transport,Matrix Scm,Agency Staff,592.19,0,
03-08-2022,Environment and Sustainable Transport,Matrix Scm,Agency Staff,530.27,0,
03-08-2022,Environment and Sustainable Transport,Matrix Scm,Agency Staff,590.4,0,
03-08-2022,Environment and Sustainable Transport,Matrix Scm,Agency Staff,202.29,0,
03-08-2022,Environment and Sustainable Transport,Matrix Scm,Agency Staff,579.97,0,
03-08-2022,Environment and Sustainable Transport,Matrix Scm,Agency Staff,209.9,0,
03-08-2022,Environment and Sustainable Transport,Matrix Scm,Agency Staff,423.48,0,
03-08-2022,Environment and Sustainable Transport,Matrix Scm,Agency Staff,592.19,0,
03-08-2022,Environment and Sustainable Transport,Matrix Scm,Agency Staff,530.27,0,
03-08-2022,Environment and Sustainable Transport,Matrix Scm,Agency Staff,530.28,0,
03-08-2022,Environment and Sustainable Transport,Matrix Scm,Agency Staff,161.48,0,
03-08-2022,Environment and Sustainable Transport,Matrix Scm,Agency Staff,129.85,0,
03-08-2022,Environment and Sustainable Transport,Matrix Scm,Agency Staff,610.56,0,
03-08-2022,Environment and Sustainable Transport,Matrix Scm,Agency Staff,118.37,0,
03-08-2022,Environment and Sustainable Transport,Matrix Scm,Agency Staff,487.6,0,
03-08-2022,Environment and Sustainable Transport,Matrix Scm,Agency Staff,500.2,0,
03-08-2022,Environment and Sustainable Transport,Matrix Scm,Agency Staff,528.48,0,
03-08-2022,Environment and Sustainable Transport,Matrix Scm,Agency Staff,249.04,0,
03-08-2022,Environment and Sustainable Transport,Matrix Scm,Agency Staff,712.8,0,
03-08-2022,Environment and Sustainable Transport,Matrix Scm,Agency Staff,610.56,0,
03-08-2022,Environment and Sustainable Transport,Matrix Scm,Agency Staff,846.98,0,
03-08-2022,Environment and Sustainable Transport,Matrix Scm,Agency Staff,839.61,0,
03-08-2022,Environment and Sustainable Transport,Matrix Scm,Agency Staff,522.91,0,
03-08-2022,Environment and Sustainable Transport,Matrix Scm,Agency Staff,592.19,0,
03-08-2022,Environment and Sustainable Transport,Matrix Scm,Agency Staff,592.19,0,
03-08-2022,Environment and Sustainable Transport,Matrix Scm,Agency Staff,1231.86,0,
03-08-2022,Environment and Sustainable Transport,Matrix Scm,Agency Staff,721.7,0,
03-08-2022,Environment and Sustainable Transport,Matrix Scm,Agency Staff,1827.48,0,
03-08-2022,RMS,Matrix Scm,Agency Staff,1100.75,0,
03-08-2022,RMS,Matrix Scm,Agency Staff,845.25,0,
03-08-2022,RMS,Matrix Scm,Agency Staff,1228.95,0,
03-08-2022,RMS,Matrix Scm,Agency Staff,27.31,0,
03-08-2022,RMS,Matrix Scm,Agency Staff,1024.15,0,
03-08-2022,RMS,Matrix Scm,Agency Staff,1406.88,0,
03-08-2022,RMS,Matrix Scm,Agency Staff,1129.2,0,
03-08-2022,RMS,Matrix Scm,Agency Staff,1605.6,0,
03-08-2022,RMS,Matrix Scm,Agency Staff,1377.6,0,
03-08-2022,RMS,Matrix Scm,Agency Staff,1172.4,0,
03-08-2022,RMS,Matrix Scm,Agency Staff,1043.52,0,
03-08-2022,RMS,Matrix Scm,Agency Staff,1129.2,0,
03-08-2022,RMS,Matrix Scm,Agency Staff,928.56,0,
03-08-2022,RMS,Matrix Scm,Agency Staff,-65,0,
03-08-2022,RMS,Matrix Scm,Agency Staff,-65,0,
03-08-2022,RMS,Matrix Scm,Agency Staff,1172.4,0,
03-08-2022,RMS,Matrix Scm,Agency Staff,1338,0,
03-08-2022,RMS,Matrix Scm,Agency Staff,1304.4,0,
03-08-2022,RMS,Matrix Scm,Agency Staff,602.01,0,
03-08-2022,RMS,Matrix Scm,Agency Staff,1023.42,0,
03-08-2022,RMS,Matrix Scm,Agency Staff,220.96,0,
03-08-2022,RMS,Matrix Scm,Agency Staff,823.6,0,
03-08-2022,RMS,Matrix Scm,Agency Staff,1185.6,0,
03-08-2022,RMS,Matrix Scm,Agency Staff,1124,0,
03-08-2022,RMS,Matrix Scm,Agency Staff,320.4,0,
03-08-2022,RMS,Matrix Scm,Agency Staff,879.2,0,
03-08-2022,RMS,Matrix Scm,Agency Staff,1215.36,0,
03-08-2022,RMS,Matrix Scm,Agency Staff,856.14,0,
03-08-2022,RMS,Matrix Scm,Agency Staff,1171.05,0,
03-08-2022,Environment and Sustainable Transport,Matrix Scm,Agency Staff,213.58,0,
03-08-2022,Environment and Sustainable Transport,Matrix Scm,Agency Staff,706.69,0,
03-08-2022,Environment and Sustainable Transport,Matrix Scm,Agency Staff,472.93,0,
03-08-2022,Environment and Sustainable Transport,Matrix Scm,Agency Staff,712.8,0,
03-08-2022,Environment and Sustainable Transport,Matrix Scm,Agency Staff,106.79,0,
03-08-2022,Environment and Sustainable Transport,Matrix Scm,Agency Staff,347.23,0,
03-08-2022,Environment and Sustainable Transport,Matrix Scm,Agency Staff,575.75,0,
03-08-2022,Environment and Sustainable Transport,Matrix Scm,Agency Staff,575.75,0,
03-08-2022,Environment and Sustainable Transport,Matrix Scm,Agency Staff,592.19,0,
03-08-2022,Environment and Sustainable Transport,Matrix Scm,Agency Staff,592.19,0,
03-08-2022,Environment and Sustainable Transport,Matrix Scm,Agency Staff,430.65,0,
03-08-2022,Environment and Sustainable Transport,Matrix Scm,Agency Staff,530.27,0,
03-08-2022,Inclusive Economy & Housing,Matrix Scm,Agency Staff,530.27,0,
03-08-2022,Environment and Sustainable Transport,Matrix Scm,Agency Staff,1110.96,0,
03-08-2022,Marketing,Matrix Scm,Agency Staff,2236.4,0,
03-08-2022,oneSource - Non Shared,Matrix Scm,Agency Staff,1706.82,0,
03-08-2022,Inclusive Economy & Housing,Matrix Scm,Agency Staff,849.97,0,
03-08-2022,Inclusive Economy & Housing,Matrix Scm,Agency Staff,873.36,0,
03-08-2022,Inclusive Economy & Housing,Matrix Scm,Agency Staff,1193.04,0,
03-08-2022,Inclusive Economy & Housing,Matrix Scm,Agency Staff,1221.84,0,
03-08-2022,Inclusive Economy & Housing,Matrix Scm,Agency Staff,995.76,0,
03-08-2022,Inclusive Economy & Housing,Matrix Scm,Agency Staff,843.14,0,
03-08-2022,RMS,Matrix Scm,Agency Staff,-668.27,0,
03-08-2022,RMS,Matrix Scm,Agency Staff,679.49,0,
03-08-2022,RMS,Matrix Scm,Agency Staff,475.8,0,
03-08-2022,RMS,Matrix Scm,Agency Staff,837.6,0,
03-08-2022,RMS,Matrix Scm,Agency Staff,-151.88,0,
03-08-2022,RMS,Matrix Scm,Agency Staff,154.43,0,
03-08-2022,RMS,Matrix Scm,Agency Staff,1110,0,
03-08-2022,RMS,Matrix Scm,Agency Staff,1012.8,0,
03-08-2022,RMS,Matrix Scm,Agency Staff,958.5,0,
03-08-2022,RMS,Matrix Scm,Agency Staff,1013.2,0,
03-08-2022,RMS,Matrix Scm,Agency Staff,1215.84,0,
03-08-2022,RMS,Matrix Scm,Agency Staff,875.2,0,
03-08-2022,RMS,Matrix Scm,Agency Staff,776.65,0,
03-08-2022,RMS,Matrix Scm,Agency Staff,-65,0,
03-08-2022,RMS,Matrix Scm,Agency Staff,886.2,0,
03-08-2022,RMS,Matrix Scm,Agency Staff,811.68,0,
03-08-2022,RMS,Matrix Scm,Agency Staff,788.8,0,
03-08-2022,RMS,Matrix Scm,Agency Staff,1012.8,0,
03-08-2022,RMS,Matrix Scm,Agency Staff,1219.26,0,
03-08-2022,RMS,Matrix Scm,Agency Staff,463.29,0,
03-08-2022,RMS,Matrix Scm,Agency Staff,1013.6,0,
03-08-2022,RMS,Matrix Scm,Agency Staff,607.68,0,
03-08-2022,RMS,Matrix Scm,Agency Staff,1258.4,0,
03-08-2022,RMS,Matrix Scm,Agency Staff,98.84,0,
03-08-2022,RMS,Matrix Scm,Agency Staff,895.34,0,
03-08-2022,RMS,Matrix Scm,Agency Staff,1037.65,0,
03-08-2022,RMS,Matrix Scm,Agency Staff,195.12,0,
03-08-2022,RMS,Matrix Scm,Agency Staff,1039.2,0,
03-08-2022,RMS,Matrix Scm,Agency Staff,1012.8,0,
03-08-2022,RMS,Matrix Scm,Agency Staff,1012.8,0,
03-08-2022,RMS,Matrix Scm,Agency Staff,732,0,
03-08-2022,RMS,Matrix Scm,Agency Staff,310.94,0,
03-08-2022,RMS,Matrix Scm,Agency Staff,954,0,
03-08-2022,Resources,Matrix Scm,Agency Staff,619.48,0,
03-08-2022,Environment and Sustainable Transport,Matrix Scm,Agency Staff,1495.89,0,
03-08-2022,Environment and Sustainable Transport,Matrix Scm,Agency Staff,176.34,0,
03-08-2022,Environment and Sustainable Transport,Matrix Scm,Agency Staff,727.95,0,
03-08-2022,Environment and Sustainable Transport,Matrix Scm,Agency Staff,79.65,0,
03-08-2022,Environment and Sustainable Transport,Matrix Scm,Agency Staff,0,0,
03-08-2022,Environment and Sustainable Transport,Matrix Scm,Agency Staff,15.93,0,
03-08-2022,Environment and Sustainable Transport,Matrix Scm,Agency Staff,0,0,
03-08-2022,Environment and Sustainable Transport,Matrix Scm,Agency Staff,79.65,0,
03-08-2022,Environment and Sustainable Transport,Matrix Scm,Agency Staff,0,0,
03-08-2022,Environment and Sustainable Transport,Matrix Scm,Agency Staff,227,0,
03-08-2022,Environment and Sustainable Transport,Matrix Scm,Agency Staff,530.27,0,
03-08-2022,Environment and Sustainable Transport,Matrix Scm,Agency Staff,423.48,0,
03-08-2022,Environment and Sustainable Transport,Matrix Scm,Agency Staff,106.79,0,
03-08-2022,Environment and Sustainable Transport,Matrix Scm,Agency Staff,230.14,0,
03-08-2022,Environment and Sustainable Transport,Matrix Scm,Agency Staff,15.93,0,
03-08-2022,Environment and Sustainable Transport,Matrix Scm,Agency Staff,0,0,
03-08-2022,Environment and Sustainable Transport,Matrix Scm,Agency Staff,95.58,0,
03-08-2022,Environment and Sustainable Transport,Matrix Scm,Agency Staff,0,0,
03-08-2022,Environment and Sustainable Transport,Matrix Scm,Agency Staff,79.65,0,
03-08-2022,Environment and Sustainable Transport,Matrix Scm,Agency Staff,530.27,0,
03-08-2022,Inclusive Economy & Housing,Matrix Scm,Agency Staff,1510.21,0,
03-08-2022,Inclusive Economy & Housing,Matrix Scm,Agency Staff,1521.36,0,
03-08-2022,Inclusive Economy & Housing,Matrix Scm,Agency Staff,1456.69,0,
03-08-2022,Inclusive Economy & Housing,Matrix Scm,Agency Staff,-272.15,0,
03-08-2022,Inclusive Economy & Housing,Matrix Scm,Agency Staff,1660.23,0,
03-08-2022,Inclusive Economy & Housing,Matrix Scm,Agency Staff,1521.36,0,
03-08-2022,Inclusive Economy & Housing,Matrix Scm,Agency Staff,1521.36,0,
03-08-2022,Children and Young People,Matrix Scm,Agency Staff,333.2,0,
03-08-2022,Children and Young People,Matrix Scm,Agency Staff,424,0,
03-08-2022,Children and Young People,Matrix Scm,Agency Staff,325.2,0,
03-08-2022,Children and Young People,Matrix Scm,Agency Staff,329,0,
03-08-2022,Inclusive Economy & Housing,Matrix Scm,Agency Staff,373.24,0,
03-08-2022,Inclusive Economy & Housing,Matrix Scm,Agency Staff,186.62,0,
03-08-2022,Inclusive Economy & Housing,Matrix Scm,Agency Staff,887.4,0,
03-08-2022,Inclusive Economy & Housing,Matrix Scm,Agency Staff,690.3,0,
03-08-2022,Inclusive Economy & Housing,Matrix Scm,Agency Staff,885.6,0,
03-08-2022,Inclusive Economy & Housing,Matrix Scm,Agency Staff,768.96,0,
03-08-2022,Environment and Sustainable Transport,Matrix Scm,Agency Staff,730.82,0,
03-08-2022,Environment and Sustainable Transport,Matrix Scm,Agency Staff,106.79,0,
03-08-2022,Environment and Sustainable Transport,Matrix Scm,Agency Staff,581.41,0,
03-08-2022,Environment and Sustainable Transport,Matrix Scm,Agency Staff,712.8,0,
03-08-2022,Environment and Sustainable Transport,Matrix Scm,Agency Staff,530.27,0,
03-08-2022,Environment and Sustainable Transport,Matrix Scm,Agency Staff,530.27,0,
03-08-2022,Environment and Sustainable Transport,Matrix Scm,Agency Staff,712.8,0,
03-08-2022,Adults & Health,Matrix Scm,Agency Staff,2903,0,
03-08-2022,Adults & Health,Matrix Scm,Agency Staff,1207.46,0,
03-08-2022,Adults & Health,Matrix Scm,Agency Staff,1241.28,0,
03-08-2022,Adults & Health,Matrix Scm,Agency Staff,1181.15,0,
03-08-2022,Children and Young People,Matrix Scm,Agency Staff,1681.22,0,
03-08-2022,Children and Young People,Matrix Scm,Agency Staff,1881.36,0,
03-08-2022,RMS,Matrix Scm,Agency Staff,668.16,0,
03-08-2022,RMS,Matrix Scm,Agency Staff,649.6,0,
03-08-2022,RMS,Matrix Scm,Agency Staff,259.84,0,
03-08-2022,RMS,Matrix Scm,Agency Staff,649.6,0,
03-08-2022,RMS,Matrix Scm,Agency Staff,649.6,0,
03-08-2022,RMS,Matrix Scm,Agency Staff,668.16,0,
03-08-2022,Inclusive Economy & Housing,Matrix Scm,Agency Staff,3.6,0,
03-08-2022,Inclusive Economy & Housing,Matrix Scm,Agency Staff,582.08,0,
03-08-2022,Resources,Matrix Scm,Agency Staff,1382.75,0,
03-08-2022,Adults & Health,Matrix Scm,Agency Staff,735.5,0,
03-08-2022,Adults & Health,Matrix Scm,Agency Staff,609.6,0,
03-08-2022,Adults & Health,Matrix Scm,Agency Staff,762,0,
03-08-2022,Adults & Health,Matrix Scm,Agency Staff,730.43,0,
03-08-2022,Environment and Sustainable Transport,Matrix Scm,Agency Staff,2711.05,0,
03-08-2022,Adults & Health,Matrix Scm,Agency Staff,2011.44,0,
03-08-2022,Adults & Health,Matrix Scm,Agency Staff,612.32,0,
03-08-2022,Adults & Health,Matrix Scm,Agency Staff,1079.68,0,
03-08-2022,Adults & Health,Matrix Scm,Agency Staff,852.98,0,
03-08-2022,Adults & Health,Matrix Scm,Agency Staff,855.36,0,
03-08-2022,Adults & Health,Matrix Scm,Agency Staff,2068.7,0,
03-08-2022,Adults & Health,Matrix Scm,Agency Staff,577.88,0,
03-08-2022,Adults & Health,Matrix Scm,Agency Staff,848.53,0,
03-08-2022,Adults & Health,Matrix Scm,Agency Staff,2284.45,0,
03-08-2022,Adults & Health,Highway Vineyard Church,Premises Hire - Facilities,750,0,COMMERCIAL SUPPLIER
03-08-2022,RMS,Beacon Scaffolding Ltd,Private Contractors Payment - Other,1114.56,0,CIS
03-08-2022,RMS,Beacon Scaffolding Ltd,Private Contractors Payment - Other,1500,0,CIS
03-08-2022,RMS,Beacon Scaffolding Ltd,Private Contractors Payment - Other,357.6,0,CIS
03-08-2022,RMS,Beacon Scaffolding Ltd,Private Contractors Payment - Other,619.2,0,CIS
03-08-2022,RMS,Beacon Scaffolding Ltd,Private Contractors Payment - Other,617.28,0,CIS
03-08-2022,RMS,Tgl,"Purchase - Equipment, Furniture And Materials",2700,0,VENDOR
03-08-2022,Children and Young People,St Marks Church & Community Centre,Events,1170,0,VENDOR
03-08-2022,Children and Young People,Personal Information - Redacted,Legal Fees,650,0,LEGAL SERVICES
03-08-2022,Children and Young People,Personal Information - Redacted,"Books, Publications And Resources",400,0,Employee
03-08-2022,Dedicated Schools Budget,Personal Information - Redacted,Professional Services - General,235,0,Employee
03-08-2022,oneSource - Non Shared,Personal Information - Redacted,Photocopying,34.99,0,Employee
03-08-2022,oneSource - Non Shared,Personal Information - Redacted,Photocopying,34.99,0,Employee
03-08-2022,Children and Young People,Personal Information - Redacted,Ict Software,6.66,0,Employee
03-08-2022,Children and Young People,Personal Information - Redacted,Ict Software,76.66,0,Employee
03-08-2022,Environment and Sustainable Transport,Personal Information - Redacted,Transport Fuel,29.17,0,Employee
03-08-2022,Environment and Sustainable Transport,Personal Information - Redacted,Transport Fuel,29.17,0,Employee
03-08-2022,Environment and Sustainable Transport,Personal Information - Redacted,Transport Fuel,29.17,0,Employee
03-08-2022,Environment and Sustainable Transport,Personal Information - Redacted,Transport Fuel,29.18,0,Employee
03-08-2022,Environment and Sustainable Transport,Personal Information - Redacted,Purchase Of Vehicles Related Costs,43.54,0,Employee
03-08-2022,Housing Revenue Account,Civica UK Ltd,Ict Licences,51540.62,0,COMMERCIAL SUPPLIER
03-08-2022,Children and Young People,Atlantic Lodge (Housing) Ltd,Supported Other Accommodation - Private Contractors Payment,442.63,0,COMMERCIAL SUPPLIER
03-08-2022,Children and Young People,Atlantic Lodge (Housing) Ltd,Supported Other Accommodation - Private Contractors Payment,325,0,COMMERCIAL SUPPLIER
03-08-2022,Children and Young People,Atlantic Lodge (Housing) Ltd,Supported Other Accommodation - Private Contractors Payment,325,0,COMMERCIAL SUPPLIER
03-08-2022,Children and Young People,Atlantic Lodge (Housing) Ltd,Supported Other Accommodation - Private Contractors Payment,325,0,COMMERCIAL SUPPLIER
03-08-2022,Children and Young People,A DAKRI AND CO LTD T/A GREENLEAF HOTEL,Section 17 - Private Contractors Payment,665,0,CARERS
03-08-2022,Adults & Health,Personal Information - Redacted,Day Care Income,-13.5,0,INDIVIDUALS
03-08-2022,Adults & Health,Personal Information - Redacted,Day Care Income,-4.97,0,INDIVIDUALS
03-08-2022,Adults & Health,Personal Information - Redacted,Day Care Income,-4.97,0,INDIVIDUALS
03-08-2022,Adults & Health,Personal Information - Redacted,Day Care Income,-4.97,0,INDIVIDUALS
03-08-2022,Adults & Health,Personal Information - Redacted,Day Care Income,-4.97,0,INDIVIDUALS
03-08-2022,Adults & Health,Personal Information - Redacted,Day Care Income,-13.5,0,INDIVIDUALS
03-08-2022,Adults & Health,Personal Information - Redacted,Day Care Income,-4.97,0,INDIVIDUALS
03-08-2022,Adults & Health,Personal Information - Redacted,Day Care Income,-4.97,0,INDIVIDUALS
03-08-2022,Adults & Health,Personal Information - Redacted,Day Care Income,-13.5,0,INDIVIDUALS
03-08-2022,Adults & Health,Personal Information - Redacted,Day Care Income,-4.97,0,INDIVIDUALS
03-08-2022,Adults & Health,Personal Information - Redacted,Day Care Income,-4.97,0,INDIVIDUALS
03-08-2022,Adults & Health,Personal Information - Redacted,Day Care Income,-13.5,0,INDIVIDUALS
03-08-2022,Adults & Health,Personal Information - Redacted,Day Care Income,-13.5,0,INDIVIDUALS
03-08-2022,Adults & Health,Personal Information - Redacted,Day Care Income,-4.97,0,INDIVIDUALS
03-08-2022,Adults & Health,Personal Information - Redacted,Day Care Income,-4.97,0,INDIVIDUALS
03-08-2022,Adults & Health,Personal Information - Redacted,Day Care Income,-13.5,0,INDIVIDUALS
03-08-2022,Adults & Health,Personal Information - Redacted,Day Care Income,-13.5,0,INDIVIDUALS
03-08-2022,Adults & Health,Personal Information - Redacted,Day Care Income,-4.97,0,INDIVIDUALS
03-08-2022,Adults & Health,Personal Information - Redacted,Day Care Income,-4.97,0,INDIVIDUALS
03-08-2022,Adults & Health,Personal Information - Redacted,Day Care Income,-13.5,0,INDIVIDUALS
03-08-2022,Adults & Health,Personal Information - Redacted,Day Care Income,-13.5,0,INDIVIDUALS
03-08-2022,Adults & Health,Personal Information - Redacted,Day Care Income,-4.97,0,INDIVIDUALS
03-08-2022,Adults & Health,Personal Information - Redacted,Day Care Income,-13.5,0,INDIVIDUALS
03-08-2022,Adults & Health,Personal Information - Redacted,Day Care Income,-13.5,0,INDIVIDUALS
03-08-2022,Adults & Health,Personal Information - Redacted,Day Care Income,-4.97,0,INDIVIDUALS
03-08-2022,Adults & Health,Personal Information - Redacted,Day Care Income,-13.5,0,INDIVIDUALS
03-08-2022,Adults & Health,Personal Information - Redacted,Day Care Income,-13.5,0,INDIVIDUALS
03-08-2022,Adults & Health,Personal Information - Redacted,Day Care Income,-4.97,0,INDIVIDUALS
03-08-2022,Adults & Health,Personal Information - Redacted,Day Care Income,-13.5,0,INDIVIDUALS
03-08-2022,Adults & Health,Personal Information - Redacted,Day Care Income,-4.97,0,INDIVIDUALS
03-08-2022,Adults & Health,Personal Information - Redacted,Day Care Income,-4.97,0,INDIVIDUALS
03-08-2022,Adults & Health,Your Ideal Ltd,Day Care Income,-4.62,0,NON COMMERCIAL SUPPLIER
03-08-2022,Corporate Budgets,Personal Information - Redacted,Levies Paid,27483.9,0,NON COMMERCIAL SUPPLIER
03-08-2022,Collection Fund,Personal Information - Redacted,Council Tax,3077245.13,0,LOCAL AUTHORITY SERVICES
03-08-2022,Housing Revenue Account,CEL Solicitors,Legal Fees,922.85,0,COMMERCIAL SUPPLIER
03-08-2022,oneSource - Non Shared,Horizon Specialist Contracting,Health And Safety Works,2609,0,COMMERCIAL SUPPLIER
03-08-2022,oneSource - Non Shared,Horizon Specialist Contracting,Health And Safety Works,1086,0,COMMERCIAL SUPPLIER
03-08-2022,Environment and Sustainable Transport,Chipside Ltd,Private Contractors Payment - Other,6412.5,0,COMMERCIAL SUPPLIER
03-08-2022,oneSource,Panther Print & Design Ltd,Printing,1815,0,VENDOR
03-08-2022,Children and Young People,adam HTT LTd T/A Adam,Additional Placements - Third Party,285,0,VENDOR
03-08-2022,Children and Young People,adam HTT LTd T/A Adam,Additional Placements - Third Party,80.94,0,VENDOR
03-08-2022,Children and Young People,adam HTT LTd T/A Adam,Additional Placements - Third Party,260.1,0,VENDOR
03-08-2022,Children and Young People,adam HTT LTd T/A Adam,Additional Placements - Third Party,124,0,VENDOR
03-08-2022,Children and Young People,adam HTT LTd T/A Adam,Additional Placements - Third Party,65,0,VENDOR
03-08-2022,Children and Young People,adam HTT LTd T/A Adam,Additional Placements - Third Party,93,0,VENDOR
03-08-2022,Children and Young People,adam HTT LTd T/A Adam,Additional Placements - Third Party,62,0,VENDOR
03-08-2022,Children and Young People,adam HTT LTd T/A Adam,Additional Placements - Third Party,1260,0,VENDOR
03-08-2022,Children and Young People,adam HTT LTd T/A Adam,Additional Placements - Third Party,1260,0,VENDOR
03-08-2022,Children and Young People,adam HTT LTd T/A Adam,Additional Placements - Third Party,1260,0,VENDOR
03-08-2022,Children and Young People,adam HTT LTd T/A Adam,Additional Placements - Third Party,1260,0,VENDOR
03-08-2022,Children and Young People,adam HTT LTd T/A Adam,Additional Placements - Third Party,108,0,VENDOR
03-08-2022,Children and Young People,adam HTT LTd T/A Adam,Additional Placements - Third Party,108,0,VENDOR
03-08-2022,Children and Young People,adam HTT LTd T/A Adam,Additional Placements - Third Party,108,0,VENDOR
03-08-2022,Children and Young People,adam HTT LTd T/A Adam,Additional Placements - Third Party,49.5,0,VENDOR
03-08-2022,Children and Young People,adam HTT LTd T/A Adam,Additional Placements - Third Party,99,0,VENDOR
03-08-2022,Children and Young People,adam HTT LTd T/A Adam,Additional Placements - Third Party,99,0,VENDOR
03-08-2022,Children and Young People,adam HTT LTd T/A Adam,Additional Placements - Third Party,99,0,VENDOR
03-08-2022,Children and Young People,adam HTT LTd T/A Adam,Additional Placements - Third Party,99,0,VENDOR
03-08-2022,Children and Young People,adam HTT LTd T/A Adam,Additional Placements - Third Party,129.5,0,VENDOR
03-08-2022,Children and Young People,adam HTT LTd T/A Adam,Additional Placements - Third Party,129.5,0,VENDOR
03-08-2022,Children and Young People,adam HTT LTd T/A Adam,Additional Placements - Third Party,129.5,0,VENDOR
03-08-2022,Children and Young People,adam HTT LTd T/A Adam,Additional Placements - Third Party,71.7,0,VENDOR
03-08-2022,Children and Young People,adam HTT LTd T/A Adam,Additional Placements - Third Party,71.7,0,VENDOR
03-08-2022,Children and Young People,adam HTT LTd T/A Adam,Additional Placements - Third Party,71.7,0,VENDOR
03-08-2022,Children and Young People,adam HTT LTd T/A Adam,Additional Placements - Third Party,71.7,0,VENDOR
03-08-2022,Children and Young People,adam HTT LTd T/A Adam,Additional Placements - Third Party,108,0,VENDOR
03-08-2022,Children and Young People,adam HTT LTd T/A Adam,Additional Placements - Third Party,108,0,VENDOR
03-08-2022,Children and Young People,adam HTT LTd T/A Adam,Additional Placements - Third Party,108,0,VENDOR
03-08-2022,Children and Young People,adam HTT LTd T/A Adam,Additional Placements - Third Party,432,0,VENDOR
03-08-2022,Children and Young People,adam HTT LTd T/A Adam,Additional Placements - Third Party,432,0,VENDOR
03-08-2022,Children and Young People,adam HTT LTd T/A Adam,Additional Placements - Third Party,432,0,VENDOR
03-08-2022,Children and Young People,adam HTT LTd T/A Adam,Additional Placements - Third Party,432,0,VENDOR
03-08-2022,Children and Young People,adam HTT LTd T/A Adam,Additional Placements - Third Party,252,0,VENDOR
03-08-2022,Children and Young People,adam HTT LTd T/A Adam,Additional Placements - Third Party,64,0,VENDOR
03-08-2022,Children and Young People,adam HTT LTd T/A Adam,Additional Placements - Third Party,64,0,VENDOR
03-08-2022,Children and Young People,adam HTT LTd T/A Adam,Additional Placements - Third Party,64,0,VENDOR
03-08-2022,Children and Young People,adam HTT LTd T/A Adam,Additional Placements - Third Party,64,0,VENDOR
03-08-2022,Children and Young People,adam HTT LTd T/A Adam,Additional Placements - Third Party,71.7,0,VENDOR
03-08-2022,Children and Young People,adam HTT LTd T/A Adam,Additional Placements - Third Party,71.7,0,VENDOR
03-08-2022,Children and Young People,adam HTT LTd T/A Adam,Additional Placements - Third Party,135,0,VENDOR
03-08-2022,Children and Young People,adam HTT LTd T/A Adam,Additional Placements - Third Party,135,0,VENDOR
03-08-2022,Children and Young People,adam HTT LTd T/A Adam,Additional Placements - Third Party,96,0,VENDOR
03-08-2022,Children and Young People,adam HTT LTd T/A Adam,Additional Placements - Third Party,96,0,VENDOR
03-08-2022,Children and Young People,adam HTT LTd T/A Adam,Additional Placements - Third Party,96,0,VENDOR
03-08-2022,Children and Young People,adam HTT LTd T/A Adam,Additional Placements - Third Party,210,0,VENDOR
03-08-2022,Children and Young People,adam HTT LTd T/A Adam,Additional Placements - Third Party,722.16,0,VENDOR
03-08-2022,Children and Young People,adam HTT LTd T/A Adam,Additional Placements - Third Party,95.2,0,VENDOR
03-08-2022,Children and Young People,adam HTT LTd T/A Adam,Additional Placements - Third Party,95.2,0,VENDOR
03-08-2022,Children and Young People,adam HTT LTd T/A Adam,Additional Placements - Third Party,95.2,0,VENDOR
03-08-2022,Children and Young People,adam HTT LTd T/A Adam,Additional Placements - Third Party,95.2,0,VENDOR
03-08-2022,Children and Young People,adam HTT LTd T/A Adam,Additional Placements - Third Party,68,0,VENDOR
03-08-2022,Children and Young People,adam HTT LTd T/A Adam,Additional Placements - Third Party,176.8,0,VENDOR
03-08-2022,Children and Young People,adam HTT LTd T/A Adam,Additional Placements - Third Party,75,0,VENDOR
03-08-2022,Children and Young People,adam HTT LTd T/A Adam,Additional Placements - Third Party,51.8,0,VENDOR
03-08-2022,Children and Young People,adam HTT LTd T/A Adam,Additional Placements - Third Party,64.75,0,VENDOR
03-08-2022,Children and Young People,adam HTT LTd T/A Adam,Additional Placements - Third Party,64.75,0,VENDOR
03-08-2022,Children and Young People,adam HTT LTd T/A Adam,Additional Placements - Third Party,64.75,0,VENDOR
03-08-2022,Children and Young People,adam HTT LTd T/A Adam,Additional Placements - Third Party,60,0,VENDOR
03-08-2022,Children and Young People,adam HTT LTd T/A Adam,Additional Placements - Third Party,140,0,VENDOR
03-08-2022,Children and Young People,adam HTT LTd T/A Adam,Additional Placements - Third Party,40,0,VENDOR
03-08-2022,Children and Young People,adam HTT LTd T/A Adam,Additional Placements - Third Party,93,0,VENDOR
03-08-2022,Children and Young People,adam HTT LTd T/A Adam,Additional Placements - Third Party,93,0,VENDOR
03-08-2022,Children and Young People,adam HTT LTd T/A Adam,Additional Placements - Third Party,93,0,VENDOR
03-08-2022,Children and Young People,adam HTT LTd T/A Adam,Additional Placements - Third Party,99,0,VENDOR
03-08-2022,Children and Young People,adam HTT LTd T/A Adam,Additional Placements - Third Party,99,0,VENDOR
03-08-2022,Children and Young People,adam HTT LTd T/A Adam,Additional Placements - Third Party,55.6,0,VENDOR
03-08-2022,Children and Young People,adam HTT LTd T/A Adam,Additional Placements - Third Party,224,0,VENDOR
03-08-2022,Children and Young People,adam HTT LTd T/A Adam,Additional Placements - Third Party,202.5,0,VENDOR
03-08-2022,Children and Young People,adam HTT LTd T/A Adam,Additional Placements - Third Party,72,0,VENDOR
03-08-2022,Children and Young People,adam HTT LTd T/A Adam,Additional Placements - Third Party,126,0,VENDOR
03-08-2022,Children and Young People,adam HTT LTd T/A Adam,Additional Placements - Third Party,30,0,VENDOR
03-08-2022,Children and Young People,adam HTT LTd T/A Adam,Additional Placements - Third Party,288,0,VENDOR
03-08-2022,Children and Young People,adam HTT LTd T/A Adam,Additional Placements - Third Party,288,0,VENDOR
03-08-2022,Children and Young People,adam HTT LTd T/A Adam,Additional Placements - Third Party,288,0,VENDOR
03-08-2022,Children and Young People,adam HTT LTd T/A Adam,Additional Placements - Third Party,229.5,0,VENDOR
03-08-2022,Children and Young People,adam HTT LTd T/A Adam,Additional Placements - Third Party,229.5,0,VENDOR
03-08-2022,Children and Young People,adam HTT LTd T/A Adam,Additional Placements - Third Party,119.5,0,VENDOR
03-08-2022,Children and Young People,adam HTT LTd T/A Adam,Additional Placements - Third Party,119.5,0,VENDOR
03-08-2022,Children and Young People,adam HTT LTd T/A Adam,Additional Placements - Third Party,119.5,0,VENDOR
03-08-2022,Children and Young People,adam HTT LTd T/A Adam,Additional Placements - Third Party,153.46,0,VENDOR
03-08-2022,Children and Young People,adam HTT LTd T/A Adam,Additional Placements - Third Party,153.46,0,VENDOR
03-08-2022,Children and Young People,adam HTT LTd T/A Adam,Additional Placements - Third Party,65,0,VENDOR
03-08-2022,Children and Young People,adam HTT LTd T/A Adam,Additional Placements - Third Party,52,0,VENDOR
03-08-2022,Children and Young People,adam HTT LTd T/A Adam,Additional Placements - Third Party,106.4,0,VENDOR
03-08-2022,Children and Young People,adam HTT LTd T/A Adam,Additional Placements - Third Party,78,0,VENDOR
03-08-2022,Children and Young People,adam HTT LTd T/A Adam,Additional Placements - Third Party,390,0,VENDOR
03-08-2022,Children and Young People,adam HTT LTd T/A Adam,Additional Placements - Third Party,420,0,VENDOR
03-08-2022,Children and Young People,adam HTT LTd T/A Adam,Additional Placements - Third Party,224,0,VENDOR
03-08-2022,Children and Young People,adam HTT LTd T/A Adam,Additional Placements - Third Party,61.5,0,VENDOR
03-08-2022,Children and Young People,adam HTT LTd T/A Adam,Additional Placements - Third Party,48,0,VENDOR
03-08-2022,Children and Young People,adam HTT LTd T/A Adam,Additional Placements - Third Party,345,0,VENDOR
03-08-2022,Children and Young People,adam HTT LTd T/A Adam,Additional Placements - Third Party,34.8,0,VENDOR
03-08-2022,Children and Young People,adam HTT LTd T/A Adam,Additional Placements - Third Party,83.7,0,VENDOR
03-08-2022,Children and Young People,adam HTT LTd T/A Adam,Additional Placements - Third Party,153.46,0,VENDOR
03-08-2022,Children and Young People,adam HTT LTd T/A Adam,Additional Placements - Third Party,510,0,VENDOR
03-08-2022,Children and Young People,adam HTT LTd T/A Adam,Additional Placements - Third Party,240,0,VENDOR
03-08-2022,Children and Young People,adam HTT LTd T/A Adam,Additional Placements - Third Party,103.5,0,VENDOR
03-08-2022,Children and Young People,adam HTT LTd T/A Adam,Additional Placements - Third Party,103.5,0,VENDOR
03-08-2022,Children and Young People,adam HTT LTd T/A Adam,Additional Placements - Third Party,99,0,VENDOR
03-08-2022,Children and Young People,adam HTT LTd T/A Adam,Additional Placements - Third Party,99,0,VENDOR
03-08-2022,Children and Young People,adam HTT LTd T/A Adam,Additional Placements - Third Party,99,0,VENDOR
03-08-2022,Children and Young People,adam HTT LTd T/A Adam,Additional Placements - Third Party,99,0,VENDOR
03-08-2022,Children and Young People,adam HTT LTd T/A Adam,Additional Placements - Third Party,99,0,VENDOR
03-08-2022,Children and Young People,adam HTT LTd T/A Adam,Additional Placements - Third Party,80,0,VENDOR
03-08-2022,Children and Young People,adam HTT LTd T/A Adam,Additional Placements - Third Party,96,0,VENDOR
03-08-2022,Children and Young People,adam HTT LTd T/A Adam,Additional Placements - Third Party,96,0,VENDOR
03-08-2022,Children and Young People,adam HTT LTd T/A Adam,Additional Placements - Third Party,96,0,VENDOR
03-08-2022,Children and Young People,adam HTT LTd T/A Adam,Additional Placements - Third Party,96,0,VENDOR
03-08-2022,Children and Young People,adam HTT LTd T/A Adam,Additional Placements - Third Party,96,0,VENDOR
03-08-2022,Children and Young People,adam HTT LTd T/A Adam,Additional Placements - Third Party,96,0,VENDOR
03-08-2022,Children and Young People,adam HTT LTd T/A Adam,Additional Placements - Third Party,64,0,VENDOR
03-08-2022,Children and Young People,adam HTT LTd T/A Adam,Additional Placements - Third Party,270,0,VENDOR
03-08-2022,Children and Young People,adam HTT LTd T/A Adam,Additional Placements - Third Party,270,0,VENDOR
03-08-2022,Children and Young People,adam HTT LTd T/A Adam,Additional Placements - Third Party,108,0,VENDOR
03-08-2022,Children and Young People,adam HTT LTd T/A Adam,Additional Placements - Third Party,248,0,VENDOR
03-08-2022,Children and Young People,adam HTT LTd T/A Adam,Additional Placements - Third Party,84,0,VENDOR
03-08-2022,Children and Young People,adam HTT LTd T/A Adam,Additional Placements - Third Party,248,0,VENDOR
03-08-2022,Children and Young People,adam HTT LTd T/A Adam,Additional Placements - Third Party,99,0,VENDOR
03-08-2022,Children and Young People,adam HTT LTd T/A Adam,Additional Placements - Third Party,99,0,VENDOR
03-08-2022,Children and Young People,adam HTT LTd T/A Adam,Additional Placements - Third Party,99,0,VENDOR
03-08-2022,Children and Young People,adam HTT LTd T/A Adam,Additional Placements - Third Party,99,0,VENDOR
03-08-2022,Children and Young People,adam HTT LTd T/A Adam,Additional Placements - Third Party,99,0,VENDOR
03-08-2022,Children and Young People,adam HTT LTd T/A Adam,Additional Placements - Third Party,99,0,VENDOR
03-08-2022,Children and Young People,adam HTT LTd T/A Adam,Additional Placements - Third Party,99,0,VENDOR
03-08-2022,Children and Young People,adam HTT LTd T/A Adam,Additional Placements - Third Party,99,0,VENDOR
03-08-2022,Children and Young People,adam HTT LTd T/A Adam,Additional Placements - Third Party,107.25,0,VENDOR
03-08-2022,Children and Young People,adam HTT LTd T/A Adam,Additional Placements - Third Party,41.25,0,VENDOR
03-08-2022,Children and Young People,adam HTT LTd T/A Adam,Additional Placements - Third Party,99,0,VENDOR
03-08-2022,Children and Young People,adam HTT LTd T/A Adam,Additional Placements - Third Party,99,0,VENDOR
03-08-2022,Children and Young People,adam HTT LTd T/A Adam,Additional Placements - Third Party,255.75,0,VENDOR
03-08-2022,Children and Young People,adam HTT LTd T/A Adam,Additional Placements - Third Party,486,0,VENDOR
03-08-2022,Children and Young People,adam HTT LTd T/A Adam,Additional Placements - Third Party,270,0,VENDOR
03-08-2022,Children and Young People,adam HTT LTd T/A Adam,Additional Placements - Third Party,1260,0,VENDOR
03-08-2022,Children and Young People,adam HTT LTd T/A Adam,Additional Placements - Third Party,1260,0,VENDOR
03-08-2022,Children and Young People,adam HTT LTd T/A Adam,Additional Placements - Third Party,208,0,VENDOR
03-08-2022,Children and Young People,adam HTT LTd T/A Adam,Additional Placements - Third Party,585,0,VENDOR
03-08-2022,Children and Young People,adam HTT LTd T/A Adam,Additional Placements - Third Party,585,0,VENDOR
03-08-2022,Children and Young People,adam HTT LTd T/A Adam,Additional Placements - Third Party,84,0,VENDOR
03-08-2022,Children and Young People,adam HTT LTd T/A Adam,Additional Placements - Third Party,70,0,VENDOR
03-08-2022,Children and Young People,adam HTT LTd T/A Adam,Additional Placements - Third Party,70,0,VENDOR
03-08-2022,Children and Young People,adam HTT LTd T/A Adam,Additional Placements - Third Party,124,0,VENDOR
03-08-2022,Children and Young People,adam HTT LTd T/A Adam,Additional Placements - Third Party,248,0,VENDOR
03-08-2022,Children and Young People,adam HTT LTd T/A Adam,Additional Placements - Third Party,248,0,VENDOR
03-08-2022,Children and Young People,adam HTT LTd T/A Adam,Additional Placements - Third Party,248,0,VENDOR
03-08-2022,Children and Young People,adam HTT LTd T/A Adam,Additional Placements - Third Party,248,0,VENDOR
03-08-2022,Children and Young People,adam HTT LTd T/A Adam,Additional Placements - Third Party,84,0,VENDOR
03-08-2022,Children and Young People,adam HTT LTd T/A Adam,Additional Placements - Third Party,248,0,VENDOR
03-08-2022,Children and Young People,adam HTT LTd T/A Adam,Additional Placements - Third Party,84,0,VENDOR
03-08-2022,Children and Young People,adam HTT LTd T/A Adam,Additional Placements - Third Party,248,0,VENDOR
03-08-2022,Children and Young People,adam HTT LTd T/A Adam,Additional Placements - Third Party,585,0,VENDOR
03-08-2022,Children and Young People,adam HTT LTd T/A Adam,Additional Placements - Third Party,585,0,VENDOR
03-08-2022,Children and Young People,adam HTT LTd T/A Adam,Additional Placements - Third Party,585,0,VENDOR
03-08-2022,Children and Young People,adam HTT LTd T/A Adam,Additional Placements - Third Party,585,0,VENDOR
03-08-2022,Children and Young People,adam HTT LTd T/A Adam,Additional Placements - Third Party,90,0,VENDOR
03-08-2022,Children and Young People,adam HTT LTd T/A Adam,Additional Placements - Third Party,90,0,VENDOR
03-08-2022,Children and Young People,adam HTT LTd T/A Adam,Additional Placements - Third Party,248.9,0,VENDOR
03-08-2022,Children and Young People,adam HTT LTd T/A Adam,Additional Placements - Third Party,350.6,0,VENDOR
03-08-2022,Children and Young People,adam HTT LTd T/A Adam,Additional Placements - Third Party,330,0,VENDOR
03-08-2022,Children and Young People,adam HTT LTd T/A Adam,Additional Placements - Third Party,330,0,VENDOR
03-08-2022,Children and Young People,adam HTT LTd T/A Adam,Additional Placements - Third Party,720,0,VENDOR
03-08-2022,Children and Young People,adam HTT LTd T/A Adam,Additional Placements - Third Party,720,0,VENDOR
03-08-2022,Children and Young People,adam HTT LTd T/A Adam,Additional Placements - Third Party,248,0,VENDOR
03-08-2022,Children and Young People,adam HTT LTd T/A Adam,Additional Placements - Third Party,238,0,VENDOR
03-08-2022,Children and Young People,adam HTT LTd T/A Adam,Additional Placements - Third Party,248,0,VENDOR
03-08-2022,Children and Young People,adam HTT LTd T/A Adam,Additional Placements - Third Party,238,0,VENDOR
03-08-2022,Children and Young People,adam HTT LTd T/A Adam,Additional Placements - Third Party,112,0,VENDOR
03-08-2022,Children and Young People,adam HTT LTd T/A Adam,Additional Placements - Third Party,182,0,VENDOR
03-08-2022,Children and Young People,adam HTT LTd T/A Adam,Additional Placements - Third Party,486,0,VENDOR
03-08-2022,Children and Young People,adam HTT LTd T/A Adam,Additional Placements - Third Party,64,0,VENDOR
03-08-2022,Children and Young People,adam HTT LTd T/A Adam,Additional Placements - Third Party,42,0,VENDOR
03-08-2022,Children and Young People,adam HTT LTd T/A Adam,Additional Placements - Third Party,42,0,VENDOR
03-08-2022,Children and Young People,adam HTT LTd T/A Adam,Additional Placements - Third Party,42,0,VENDOR
03-08-2022,Children and Young People,adam HTT LTd T/A Adam,Additional Placements - Third Party,42,0,VENDOR
03-08-2022,Children and Young People,adam HTT LTd T/A Adam,Additional Placements - Third Party,42,0,VENDOR
03-08-2022,Children and Young People,adam HTT LTd T/A Adam,Additional Placements - Third Party,42,0,VENDOR
03-08-2022,Children and Young People,adam HTT LTd T/A Adam,Additional Placements - Third Party,42,0,VENDOR
03-08-2022,Children and Young People,adam HTT LTd T/A Adam,Additional Placements - Third Party,42,0,VENDOR
03-08-2022,Children and Young People,adam HTT LTd T/A Adam,Additional Placements - Third Party,42,0,VENDOR
03-08-2022,Children and Young People,adam HTT LTd T/A Adam,Additional Placements - Third Party,42,0,VENDOR
03-08-2022,Children and Young People,adam HTT LTd T/A Adam,Additional Placements - Third Party,42,0,VENDOR
03-08-2022,Children and Young People,adam HTT LTd T/A Adam,Additional Placements - Third Party,42,0,VENDOR
03-08-2022,Children and Young People,adam HTT LTd T/A Adam,Additional Placements - Third Party,75,0,VENDOR
03-08-2022,Children and Young People,adam HTT LTd T/A Adam,Additional Placements - Third Party,46,0,VENDOR
03-08-2022,Children and Young People,adam HTT LTd T/A Adam,Additional Placements - Third Party,23,0,VENDOR
03-08-2022,Children and Young People,adam HTT LTd T/A Adam,Additional Placements - Third Party,23,0,VENDOR
03-08-2022,Children and Young People,adam HTT LTd T/A Adam,Additional Placements - Third Party,210,0,VENDOR
03-08-2022,Children and Young People,adam HTT LTd T/A Adam,Additional Placements - Third Party,350,0,VENDOR
03-08-2022,Children and Young People,adam HTT LTd T/A Adam,Additional Placements - Third Party,275,0,VENDOR
03-08-2022,Children and Young People,adam HTT LTd T/A Adam,Additional Placements - Third Party,675,0,VENDOR
03-08-2022,Children and Young People,adam HTT LTd T/A Adam,Additional Placements - Third Party,675,0,VENDOR
03-08-2022,Children and Young People,adam HTT LTd T/A Adam,Additional Placements - Third Party,252,0,VENDOR
03-08-2022,Children and Young People,adam HTT LTd T/A Adam,Additional Placements - Third Party,252,0,VENDOR
03-08-2022,Children and Young People,adam HTT LTd T/A Adam,Additional Placements - Third Party,252,0,VENDOR
03-08-2022,Children and Young People,adam HTT LTd T/A Adam,Additional Placements - Third Party,62.75,0,VENDOR
03-08-2022,Children and Young People,adam HTT LTd T/A Adam,Additional Placements - Third Party,62.75,0,VENDOR
03-08-2022,Children and Young People,adam HTT LTd T/A Adam,Additional Placements - Third Party,135,0,VENDOR
03-08-2022,Children and Young People,adam HTT LTd T/A Adam,Additional Placements - Third Party,135,0,VENDOR
03-08-2022,Children and Young People,adam HTT LTd T/A Adam,Additional Placements - Third Party,352.5,0,VENDOR
03-08-2022,Children and Young People,adam HTT LTd T/A Adam,Additional Placements - Third Party,148.5,0,VENDOR
03-08-2022,Children and Young People,adam HTT LTd T/A Adam,Additional Placements - Third Party,191.25,0,VENDOR
03-08-2022,Children and Young People,adam HTT LTd T/A Adam,Additional Placements - Third Party,32,0,VENDOR
03-08-2022,Children and Young People,adam HTT LTd T/A Adam,Additional Placements - Third Party,64,0,VENDOR
03-08-2022,Children and Young People,adam HTT LTd T/A Adam,Additional Placements - Third Party,121.5,0,VENDOR
03-08-2022,Children and Young People,adam HTT LTd T/A Adam,Additional Placements - Third Party,232.78,0,VENDOR
03-08-2022,Children and Young People,adam HTT LTd T/A Adam,Additional Placements - Third Party,270,0,VENDOR
03-08-2022,Children and Young People,adam HTT LTd T/A Adam,Additional Placements - Third Party,90,0,VENDOR
03-08-2022,Children and Young People,adam HTT LTd T/A Adam,Additional Placements - Third Party,90,0,VENDOR
03-08-2022,Children and Young People,adam HTT LTd T/A Adam,Additional Placements - Third Party,90,0,VENDOR
03-08-2022,Children and Young People,adam HTT LTd T/A Adam,Additional Placements - Third Party,90,0,VENDOR
03-08-2022,Children and Young People,adam HTT LTd T/A Adam,Additional Placements - Third Party,90,0,VENDOR
03-08-2022,Children and Young People,adam HTT LTd T/A Adam,Additional Placements - Third Party,90,0,VENDOR
03-08-2022,Children and Young People,adam HTT LTd T/A Adam,Additional Placements - Third Party,90,0,VENDOR
03-08-2022,Children and Young People,adam HTT LTd T/A Adam,Additional Placements - Third Party,90,0,VENDOR
03-08-2022,Children and Young People,adam HTT LTd T/A Adam,Additional Placements - Third Party,90,0,VENDOR
03-08-2022,Children and Young People,adam HTT LTd T/A Adam,Additional Placements - Third Party,80,0,VENDOR
03-08-2022,Children and Young People,adam HTT LTd T/A Adam,Additional Placements - Third Party,80,0,VENDOR
03-08-2022,Children and Young People,adam HTT LTd T/A Adam,Additional Placements - Third Party,80,0,VENDOR
03-08-2022,Children and Young People,adam HTT LTd T/A Adam,Additional Placements - Third Party,108,0,VENDOR
03-08-2022,Children and Young People,adam HTT LTd T/A Adam,Additional Placements - Third Party,96,0,VENDOR
03-08-2022,Children and Young People,adam HTT LTd T/A Adam,Additional Placements - Third Party,259,0,VENDOR
03-08-2022,Children and Young People,adam HTT LTd T/A Adam,Additional Placements - Third Party,160,0,VENDOR
03-08-2022,Children and Young People,adam HTT LTd T/A Adam,Additional Placements - Third Party,124,0,VENDOR
03-08-2022,Children and Young People,adam HTT LTd T/A Adam,Additional Placements - Third Party,160,0,VENDOR
03-08-2022,Children and Young People,adam HTT LTd T/A Adam,Additional Placements - Third Party,124,0,VENDOR
03-08-2022,Children and Young People,adam HTT LTd T/A Adam,Additional Placements - Third Party,75,0,VENDOR
03-08-2022,Children and Young People,adam HTT LTd T/A Adam,Additional Placements - Third Party,75,0,VENDOR
03-08-2022,Children and Young People,adam HTT LTd T/A Adam,Additional Placements - Third Party,248,0,VENDOR
03-08-2022,Children and Young People,adam HTT LTd T/A Adam,Additional Placements - Third Party,175.5,0,VENDOR
03-08-2022,Children and Young People,adam HTT LTd T/A Adam,Additional Placements - Third Party,248,0,VENDOR
03-08-2022,Children and Young People,adam HTT LTd T/A Adam,Additional Placements - Third Party,80,0,VENDOR
03-08-2022,Children and Young People,adam HTT LTd T/A Adam,Additional Placements - Third Party,80,0,VENDOR
03-08-2022,Children and Young People,adam HTT LTd T/A Adam,Additional Placements - Third Party,144,0,VENDOR
03-08-2022,Children and Young People,adam HTT LTd T/A Adam,Additional Placements - Third Party,48,0,VENDOR
03-08-2022,Children and Young People,adam HTT LTd T/A Adam,Additional Placements - Third Party,48,0,VENDOR
03-08-2022,Children and Young People,adam HTT LTd T/A Adam,Additional Placements - Third Party,48,0,VENDOR
03-08-2022,Children and Young People,adam HTT LTd T/A Adam,Additional Placements - Third Party,48,0,VENDOR
03-08-2022,Children and Young People,adam HTT LTd T/A Adam,Additional Placements - Third Party,48,0,VENDOR
03-08-2022,Children and Young People,adam HTT LTd T/A Adam,Additional Placements - Third Party,630,0,VENDOR
03-08-2022,Children and Young People,adam HTT LTd T/A Adam,Additional Placements - Third Party,630,0,VENDOR
03-08-2022,Children and Young People,adam HTT LTd T/A Adam,Additional Placements - Third Party,630,0,VENDOR
03-08-2022,Children and Young People,adam HTT LTd T/A Adam,Additional Placements - Third Party,630,0,VENDOR
